Workbook

Sheet Student Entry
A1: Student Entry
A2: School # 1 Name: | B2: School # 2 Name: | C2: School # 3 Name:
A3: Stillwater | B3: Osseo-Maple Grove
A4: Student Names: | B4: Student Names: | C4: Student Names:
A5: Rubie Ballantyne | B5: Anneke DeLooze
A6: Laurel Bremer | B6: Allison Hannan
A7: Sophie Browning | B7: Hayley Heiss
A8: Hannah Dettmann | B8: Katherine Hildebrandt
A9: Rachel Duerr | B9: Emily Honnold
A10: Andrea Finholt | B10: Rachel Knox
A11: Kya Hodgdon | B11: Ellery Mason
A12: Angelina Langford | B12: Madison Peters
A13: Emily Shanley | B13: Margo Prentice
A14: Bree Sheridan | B14: Zoe Waldron
A15: Emma Sneden
A16: Grace Sneden
A17: Morgan Tope-Yates
A18: Mira Torzewski
A19: Carolyn Wrightsman
A20: Khuluc Yang

Sheet Fig 1 Ballet Leg
B1: Figure #1: | C1: 101 R/L Ballet Leg, single, *right or *left
A2: # | B2: Degree of Difficulty | C2: judge 1 | D2: judge 2 | E2: judge 3 | F2: judge 4 | G2: judge 5 | H2: Score | I2: Penalty
A3: =IF(Draw!E2=0,"",Draw!E2) -> 1 | B3: 1.6 | C3: 47 | D3: 48 | E3: 47 | H3: =IF(B3="","",IF(K3=3,(SUM(C3:G3)/(300/(6.5+(B3-1)*6.5))),IF(K3=4,(SUM(C3:G3)-MAX(C3:G3))/(300/(6.5+(B3-1)*6.5)),IF(K3=5,(SUM(C3:G3)-MAX(C3:G3)-MIN(C3:G3))/(300/(6.5+(B3-1)*6.5)),0)))) -> 4.922666667 | K3: =COUNT(C3:G3) -> 3
A4: =IF(Draw!E3=0,"",Draw!E3) -> 2 | B4: =IF(A4="","",B$3) -> 1.6 | C4: 51 | D4: 44 | E4: 46 | H4: 4.888 | K4: =COUNT(C4:G4) -> 3
A5: =IF(Draw!E4=0,"",Draw!E4) -> 3 | B5: 1.6 | C5: 46 | D5: 43 | E5: 45 | H5: 4.645333333 | K5: 3
A6: =IF(Draw!E5=0,"",Draw!E5) -> 4 | B6: =IF(A6="","",B$3) -> 1.6 | C6: 48 | D6: 49 | E6: 50 | H6: =IF(B6="","",IF(K6=3,(SUM(C6:G6)/(300/(6.5+(B6-1)*6.5))),IF(K6=4,(SUM(C6:G6)-MAX(C6:G6))/(300/(6.5+(B6-1)*6.5)),IF(K6=5,(SUM(C6:G6)-MAX(C6:G6)-MIN(C6:G6))/(300/(6.5+(B6-1)*6.5)),0)))) -> 5.096 | K6: 3
A7: =IF(Draw!E6=0,"",Draw!E6) -> 5 | B7: 1.6 | C7: 52 | D7: 52 | E7: 52 | H7: 5.408 | K7: 3
A8: =IF(Draw!E7=0,"",Draw!E7) -> 6 | B8: 1.6 | C8: 53 | D8: 54 | E8: 56 | H8: 5.650666667 | K8: 3
A9: =IF(Draw!E8=0,"",Draw!E8) -> 7 | B9: 1.6 | C9: 52 | D9: 51 | E9: 50 | H9: 5.304 | K9: 3
A10: =IF(Draw!E9=0,"",Draw!E9) -> 8 | B10: 1.6 | C10: 51 | D10: 50 | E10: 54 | H10: 5.373333333 | K10: 3
A11: =IF(Draw!E10=0,"",Draw!E10) -> 9 | B11: 1.6 | C11: 55 | D11: 55 | E11: 54 | H11: 5.685333333 | K11: 3
A12: =IF(Draw!E11=0,"",Draw!E11) -> 10 | B12: 1.6 | C12: 54 | D12: 53 | E12: 51 | H12: 5.477333333 | K12: 3
A13: =IF(Draw!E12=0,"",Draw!E12) -> 11 | B13: 1.6 | C13: 53 | D13: 56 | E13: 54 | H13: 5.650666667 | K13: 3
A14: =IF(Draw!E13=0,"",Draw!E13) -> 12 | B14: 1.6 | C14: 55 | D14: 54 | E14: 53 | H14: 5.616 | K14: 3
A15: =IF(Draw!E14=0,"",Draw!E14) -> 13 | B15: 1.6 | C15: 56 | D15: 47 | E15: 54 | H15: 5.442666667 | K15: 3
A16: =IF(Draw!E15=0,"",Draw!E15) -> 14 | B16: 1.6 | C16: 48 | D16: 44 | E16: 47 | H16: 4.818666667 | K16: 3
A17: =IF(Draw!E16=0,"",Draw!E16) -> 15 | B17: 1.6 | C17: 51 | D17: 50 | E17: 53 | H17: 5.338666667 | K17: 3
A18: =IF(Draw!E17=0,"",Draw!E17) -> 16 | B18: 1.6 | C18: 47 | D18: 47 | E18: 49 | H18: 4.957333333 | K18: 3
A19: =IF(Draw!E18=0,"",Draw!E18) -> 17 | B19: 1.6 | C19: 49 | D19: 44 | E19: 50 | H19: 4.957333333 | K19: 3
A20: =IF(Draw!E19=0,"",Draw!E19) -> 18 | B20: 1.6 | C20: 52 | D20: 51 | E20: 52 | H20: 5.373333333 | K20: 3
A21: =IF(Draw!E20=0,"",Draw!E20) -> 19 | B21: 1.6 | C21: 55 | D21: 58 | E21: 56 | H21: 5.858666667 | K21: 3
A22: =IF(Draw!E21=0,"",Draw!E21) -> 20 | B22: 1.6 | C22: 46 | D22: 47 | E22: 49 | H22: 4.922666667 | K22: 3
A23: =IF(Draw!E22=0,"",Draw!E22) -> 21 | B23: 1.6 | C23: 49 | D23: 45 | E23: 50 | H23: 4.992 | K23: 3
A24: =IF(Draw!E23=0,"",Draw!E23) -> 22 | B24: 1.6 | C24: 51 | D24: 52 | E24: 51 | H24: 5.338666667 | K24: 3
A25: =IF(Draw!E24=0,"",Draw!E24) -> 23 | B25: 1.6 | C25: 41 | D25: 36 | E25: 42 | H25: 4.125333333 | K25: 3
A26: =IF(Draw!E25=0,"",Draw!E25) -> 24 | B26: 1.6 | C26: 52 | D26: 55 | E26: 52 | H26: 5.512 | K26: 3
A27: =IF(Draw!E26=0,"",Draw!E26) -> 25 | B27: 1.6 | C27: 47 | D27: 45 | E27: 47 | H27: 4.818666667 | K27: 3
A28: =IF(Draw!E27=0,"",Draw!E27) -> 26 | B28: 1.6 | C28: 48 | D28: 46 | E28: 48 | H28: 4.922666667 | K28: 3
A29: =IF(Draw!E28=0,"",Draw!E28) ->  | K29: 0
A30: =IF(Draw!E29=0,"",Draw!E29) ->  | K30: 0
A31: =IF(Draw!E30=0,"",Draw!E30) ->  | K31: 0
A32: =IF(Draw!E31=0,"",Draw!E31) ->  | K32: 0
A33: =IF(Draw!E32=0,"",Draw!E32) ->  | K33: 0
A34: =IF(Draw!E33=0,"",Draw!E33) ->  | K34: 0
A35: =IF(Draw!E34=0,"",Draw!E34) ->  | K35: 0
A36: =IF(Draw!E35=0,"",Draw!E35) ->  | K36: 0
A37: =IF(Draw!E36=0,"",Draw!E36) ->  | K37: 0
A38: =IF(Draw!E37=0,"",Draw!E37) ->  | K38: 0
A39: =IF(Draw!E38=0,"",Draw!E38) ->  | K39: 0
A40: =IF(Draw!E39=0,"",Draw!E39) ->  | K40: 0
A41: =IF(Draw!E40=0,"",Draw!E40) ->  | K41: 0
A42: =IF(Draw!E41=0,"",Draw!E41) ->  | K42: 0
A43: =IF(Draw!E42=0,"",Draw!E42) ->  | K43: 0
A44: =IF(Draw!E43=0,"",Draw!E43) ->  | K44: 0
A45: =IF(Draw!E44=0,"",Draw!E44) ->  | K45: 0
A46: =IF(Draw!E45=0,"",Draw!E45) ->  | K46: 0
A47: =IF(Draw!E46=0,"",Draw!E46) ->  | K47: 0
A48: =IF(Draw!E47=0,"",Draw!E47) ->  | K48: 0
A49: =IF(Draw!E48=0,"",Draw!E48) ->  | K49: 0
A50: =IF(Draw!E49=0,"",Draw!E49) ->  | K50: 0
A51: =IF(Draw!E50=0,"",Draw!E50) ->  | K51: 0
A52: =IF(Draw!E51=0,"",Draw!E51) ->  | K52: 0
A53: =IF(Draw!E52=0,"",Draw!E52) ->  | K53: 0
A54: =IF(Draw!E53=0,"",Draw!E53) ->  | K54: 0
A55: =IF(Draw!E54=0,"",Draw!E54) ->  | K55: 0
A56: =IF(Draw!E55=0,"",Draw!E55) ->  | K56: 0
A57: =IF(Draw!E56=0,"",Draw!E56) ->  | K57: 0
A58: =IF(Draw!E57=0,"",Draw!E57) ->  | K58: 0
A59: =IF(Draw!E58=0,"",Draw!E58) ->  | K59: 0
A60: =IF(Draw!E59=0,"",Draw!E59) ->  | K60: 0
A61: =IF(Draw!E60=0,"",Draw!E60) ->  | K61: 0
A62: =IF(Draw!E61=0,"",Draw!E61) ->  | K62: 0
A63: =IF(Draw!E62=0,"",Draw!E62) ->  | K63: 0
A64: =IF(Draw!E63=0,"",Draw!E63) ->  | K64: 0
A65: =IF(Draw!E64=0,"",Draw!E64) ->  | K65: 0
A66: =IF(Draw!E65=0,"",Draw!E65) ->  | K66: 0
A67: =IF(Draw!E66=0,"",Draw!E66) ->  | K67: 0
A68: =IF(Draw!E67=0,"",Draw!E67) ->  | K68: =COUNT(C68:G68) -> 0
A69: =IF(Draw!E68=0,"",Draw!E68) ->  | K69: 0
A70: =IF(Draw!E69=0,"",Draw!E69) ->  | B70: =IF(A70="","",B$3) ->  | H70: =IF(B70="","",IF(K70=3,(SUM(C70:G70)/(300/(6.5+(B70-1)*6.5))),IF(K70=4,(SUM(C70:G70)-MAX(C70:G70))/(300/(6.5+(B70-1)*6.5)),IF(K70=5,(SUM(C70:G70)-MAX(C70:G70)-MIN(C70:G70))/(300/(6.5+(B70-1)*6.5)),0)))) ->  | K70: 0
A71: =IF(Draw!E70=0,"",Draw!E70) ->  | K71: 0
A72: =IF(Draw!E71=0,"",Draw!E71) ->  | K72: 0
A73: =IF(Draw!E72=0,"",Draw!E72) ->  | K73: 0
A74: =IF(Draw!E73=0,"",Draw!E73) ->  | K74: 0
A75: =IF(Draw!E74=0,"",Draw!E74) ->  | K75: 0
A76: =IF(Draw!E75=0,"",Draw!E75) ->  | K76: 0
A77: =IF(Draw!E76=0,"",Draw!E76) ->  | K77: 0
A78: =IF(Draw!E77=0,"",Draw!E77) ->  | K78: 0
A79: =IF(Draw!E78=0,"",Draw!E78) ->  | K79: 0
A80: =IF(Draw!E79=0,"",Draw!E79) ->  | K80: 0
A81: =IF(Draw!E80=0,"",Draw!E80) ->  | K81: 0
A82: =IF(Draw!E81=0,"",Draw!E81) ->  | K82: 0
A83: =IF(Draw!E82=0,"",Draw!E82) ->  | K83: 0
A84: =IF(Draw!E83=0,"",Draw!E83) ->  | K84: 0
A85: =IF(Draw!E84=0,"",Draw!E84) ->  | K85: 0
A86: =IF(Draw!E85=0,"",Draw!E85) ->  | K86: 0
A87: =IF(Draw!E86=0,"",Draw!E86) ->  | K87: 0
A88: =IF(Draw!E87=0,"",Draw!E87) ->  | K88: 0
A89: =IF(Draw!E88=0,"",Draw!E88) ->  | K89: 0
A90: =IF(Draw!E89=0,"",Draw!E89) ->  | K90: 0
A91: =IF(Draw!E90=0,"",Draw!E90) ->  | K91: 0
A92: =IF(Draw!E91=0,"",Draw!E91) ->  | K92: 0
A93: =IF(Draw!E92=0,"",Draw!E92) ->  | K93: 0
A94: =IF(Draw!E93=0,"",Draw!E93) ->  | K94: 0
A95: =IF(Draw!E94=0,"",Draw!E94) ->  | K95: 0
A96: =IF(Draw!E95=0,"",Draw!E95) ->  | K96: 0
A97: =IF(Draw!E96=0,"",Draw!E96) ->  | K97: 0
A98: =IF(Draw!E97=0,"",Draw!E97) ->  | K98: 0
A99: =IF(Draw!E98=0,"",Draw!E98) ->  | K99: 0
A100: =IF(Draw!E99=0,"",Draw!E99) ->  | K100: 0
A101: =IF(Draw!E100=0,"",Draw!E100) ->  | K101: 0
A102: =IF(Draw!E101=0,"",Draw!E101) ->  | K102: 0
A103: =IF(Draw!E102=0,"",Draw!E102) ->  | K103: 0
A104: =IF(Draw!E103=0,"",Draw!E103) ->  | K104: 0
A105: =IF(Draw!E104=0,"",Draw!E104) ->  | K105: 0
A106: =IF(Draw!E105=0,"",Draw!E105) ->  | K106: 0
A107: =IF(Draw!E106=0,"",Draw!E106) ->  | K107: 0
A108: =IF(Draw!E107=0,"",Draw!E107) ->  | K108: 0
A109: =IF(Draw!E108=0,"",Draw!E108) ->  | K109: 0
A110: =IF(Draw!E109=0,"",Draw!E109) ->  | K110: 0
A111: =IF(Draw!E110=0,"",Draw!E110) ->  | K111: 0
A112: =IF(Draw!E111=0,"",Draw!E111) ->  | K112: 0
A113: =IF(Draw!E112=0,"",Draw!E112) ->  | K113: 0
A114: =IF(Draw!E113=0,"",Draw!E113) ->  | K114: 0
A115: =IF(Draw!E114=0,"",Draw!E114) ->  | K115: 0
A116: =IF(Draw!E115=0,"",Draw!E115) ->  | K116: 0
A117: =IF(Draw!E116=0,"",Draw!E116) ->  | K117: 0
A118: =IF(Draw!E117=0,"",Draw!E117) ->  | K118: 0
A119: =IF(Draw!E118=0,"",Draw!E118) ->  | K119: 0
A120: =IF(Draw!E119=0,"",Draw!E119) ->  | K120: 0
A121: =IF(Draw!E120=0,"",Draw!E120) ->  | K121: 0
A122: =IF(Draw!E121=0,"",Draw!E121) ->  | K122: 0
A123: =IF(Draw!E122=0,"",Draw!E122) ->  | K123: 0
A124: =IF(Draw!E123=0,"",Draw!E123) ->  | K124: 0
A125: =IF(Draw!E124=0,"",Draw!E124) ->  | K125: 0
A126: =IF(Draw!E125=0,"",Draw!E125) ->  | K126: 0
A127: =IF(Draw!E126=0,"",Draw!E126) ->  | K127: 0
A128: =IF(Draw!E127=0,"",Draw!E127) ->  | K128: 0
A129: =IF(Draw!E128=0,"",Draw!E128) ->  | K129: 0
A130: =IF(Draw!E129=0,"",Draw!E129) ->  | K130: 0
A131: =IF(Draw!E130=0,"",Draw!E130) ->  | K131: 0
A132: =IF(Draw!E131=0,"",Draw!E131) ->  | K132: =COUNT(C132:G132) -> 0
A133: =IF(Draw!E132=0,"",Draw!E132) ->  | K133: 0
A134: =IF(Draw!E133=0,"",Draw!E133) ->  | B134: =IF(A134="","",B$3) ->  | H134: =IF(B134="","",IF(K134=3,(SUM(C134:G134)/(300/(6.5+(B134-1)*6.5))),IF(K134=4,(SUM(C134:G134)-MAX(C134:G134))/(300/(6.5+(B134-1)*6.5)),IF(K134=5,(SUM(C134:G134)-MAX(C134:G134)-MIN(C134:G134))/(300/(6.5+(B134-1)*6.5)),0)))) ->  | K134: 0
A135: =IF(Draw!E134=0,"",Draw!E134) ->  | K135: 0
A136: =IF(Draw!E135=0,"",Draw!E135) ->  | K136: 0
A137: =IF(Draw!E136=0,"",Draw!E136) ->  | K137: 0
A138: =IF(Draw!E137=0,"",Draw!E137) ->  | K138: 0
A139: =IF(Draw!E138=0,"",Draw!E138) ->  | K139: 0
A140: =IF(Draw!E139=0,"",Draw!E139) ->  | K140: 0
A141: =IF(Draw!E140=0,"",Draw!E140) ->  | K141: 0
A142: =IF(Draw!E141=0,"",Draw!E141) ->  | K142: 0
A143: =IF(Draw!E142=0,"",Draw!E142) ->  | K143: 0
A144: =IF(Draw!E143=0,"",Draw!E143) ->  | K144: 0
A145: =IF(Draw!E144=0,"",Draw!E144) ->  | K145: 0
A146: =IF(Draw!E145=0,"",Draw!E145) ->  | K146: 0
A147: =IF(Draw!E146=0,"",Draw!E146) ->  | K147: 0
A148: =IF(Draw!E147=0,"",Draw!E147) ->  | K148: 0
A149: =IF(Draw!E148=0,"",Draw!E148) ->  | K149: 0
A150: =IF(Draw!E149=0,"",Draw!E149) ->  | K150: 0

Sheet Fig 2 Somersault, Back Tuck
B1: Figure #2: | C1: 301 Summersault, Back Tuck
A2: # | B2: Degree of Difficulty | C2: judge 1 | D2: judge 2 | E2: judge 3 | F2: judge 4 | G2: judge 5 | H2: Score | I2: Penalty
A3: =IF(Draw!E2=0,"",Draw!E2) -> 1 | B3: 1.1 | C3: 47 | D3: 46 | E3: 46 | F3: 41 | G3: 45 | H3: =IF(B3="","",IF(K3=3,(SUM(C3:G3)/(300/(6.5+(B3-1)*6.5))),IF(K3=4,(SUM(C3:G3)-MAX(C3:G3))/(300/(6.5+(B3-1)*6.5)),IF(K3=5,(SUM(C3:G3)-MAX(C3:G3)-MIN(C3:G3))/(300/(6.5+(B3-1)*6.5)),0)))) -> 3.265166667 | K3: =COUNT(C3:G3) -> 5
A4: =IF(Draw!E3=0,"",Draw!E3) -> 2 | B4: =IF(A4="","",B$3) -> 1.1 | C4: 51 | D4: 51 | E4: 50 | F4: 44 | G4: 51 | H4: 3.622666667 | K4: =COUNT(C4:G4) -> 5
A5: =IF(Draw!E4=0,"",Draw!E4) -> 3 | B5: 1.1 | C5: 52 | D5: 52 | E5: 50 | F5: 50 | G5: 49 | H5: 3.622666667 | K5: 5
A6: =IF(Draw!E5=0,"",Draw!E5) -> 4 | B6: =IF(A6="","",B$3) -> 1.1 | C6: 53 | D6: 53 | E6: 52 | F6: 54 | G6: 53 | H6: =IF(B6="","",IF(K6=3,(SUM(C6:G6)/(300/(6.5+(B6-1)*6.5))),IF(K6=4,(SUM(C6:G6)-MAX(C6:G6))/(300/(6.5+(B6-1)*6.5)),IF(K6=5,(SUM(C6:G6)-MAX(C6:G6)-MIN(C6:G6))/(300/(6.5+(B6-1)*6.5)),0)))) -> 3.7895 | K6: 5
A7: =IF(Draw!E6=0,"",Draw!E6) -> 5 | B7: 1.1 | C7: 53 | D7: 54 | E7: 52 | F7: 52 | G7: 57 | H7: 3.7895 | K7: 5
A8: =IF(Draw!E7=0,"",Draw!E7) -> 6 | B8: 1.1 | C8: 55 | D8: 56 | E8: 54 | F8: 53 | G8: 50 | H8: 3.861 | K8: 5
A9: =IF(Draw!E8=0,"",Draw!E8) -> 7 | B9: 1.1 | C9: 54 | D9: 51 | E9: 51 | F9: 54 | G9: 49 | H9: 3.718 | K9: 5
A10: =IF(Draw!E9=0,"",Draw!E9) -> 8 | B10: 1.1 | C10: 52 | D10: 55 | E10: 54 | F10: 53 | G10: 50 | H10: 3.7895 | K10: 5
A11: =IF(Draw!E10=0,"",Draw!E10) -> 9 | B11: 1.1 | C11: 54 | D11: 54 | E11: 53 | F11: 53 | G11: 57 | H11: 3.837166667 | K11: 5
A12: =IF(Draw!E11=0,"",Draw!E11) -> 10 | B12: 1.1 | C12: 53 | D12: 48 | E12: 48 | F12: 52 | G12: 52 | H12: 3.622666667 | K12: 5
A13: =IF(Draw!E12=0,"",Draw!E12) -> 11 | B13: 1.1 | C13: 58 | D13: 57 | E13: 55 | F13: 60 | G13: 51 | H13: 4.051666667 | K13: 5
A14: =IF(Draw!E13=0,"",Draw!E13) -> 12 | B14: 1.1 | C14: 56 | D14: 56 | E14: 57 | F14: 54 | G14: 54 | H14: 3.956333333 | K14: 5
A15: =IF(Draw!E14=0,"",Draw!E14) -> 13 | B15: 1.1 | C15: 58 | D15: 59 | E15: 58 | F15: 56 | G15: 56 | H15: 4.099333333 | K15: 5
A16: =IF(Draw!E15=0,"",Draw!E15) -> 14 | B16: 1.1 | C16: 50 | D16: 50 | E16: 50 | F16: 51 | G16: 47 | H16: 3.575 | K16: 5
A17: =IF(Draw!E16=0,"",Draw!E16) -> 15 | B17: 1.1 | C17: 52 | D17: 53 | E17: 52 | F17: 56 | G17: 55 | H17: 3.813333333 | K17: 5
A18: =IF(Draw!E17=0,"",Draw!E17) -> 16 | B18: 1.1 | C18: 48 | D18: 47 | E18: 48 | F18: 48 | G18: 50 | H18: 3.432 | K18: 5
A19: =IF(Draw!E18=0,"",Draw!E18) -> 17 | B19: 1.1 | C19: 53 | D19: 50 | E19: 50 | F19: 47 | G19: 48 | H19: 3.527333333 | K19: 5
A20: =IF(Draw!E19=0,"",Draw!E19) -> 18 | B20: 1.1 | C20: 49 | D20: 51 | E20: 52 | F20: 50 | G20: 50 | H20: 3.598833333 | K20: 5
A21: =IF(Draw!E20=0,"",Draw!E20) -> 19 | B21: 1.1 | C21: 53 | D21: 58 | E21: 58 | F21: 53 | G21: 57 | H21: 4.004 | K21: 5
A22: =IF(Draw!E21=0,"",Draw!E21) -> 20 | B22: 1.1 | C22: 54 | D22: 54 | E22: 52 | F22: 55 | G22: 54 | H22: 3.861 | K22: 5
A23: =IF(Draw!E22=0,"",Draw!E22) -> 21 | B23: 1.1 | C23: 49 | D23: 49 | E23: 49 | F23: 48 | G23: 47 | H23: 3.479666667 | K23: 5
A24: =IF(Draw!E23=0,"",Draw!E23) -> 22 | B24: 1.1 | C24: 57 | D24: 55 | E24: 53 | F24: 50 | G24: 52 | H24: 3.813333333 | K24: 5
A25: =IF(Draw!E24=0,"",Draw!E24) -> 23 | B25: 1.1 | C25: 44 | D25: 44 | E25: 44 | F25: 41 | G25: 44 | H25: 3.146 | K25: 5
A26: =IF(Draw!E25=0,"",Draw!E25) -> 24 | B26: 1.1 | C26: 56 | D26: 59 | E26: 59 | F26: 57 | G26: 56 | H26: 4.099333333 | K26: 5
A27: =IF(Draw!E26=0,"",Draw!E26) -> 25 | B27: 1.1 | C27: 54 | D27: 56 | E27: 50 | F27: 53 | G27: 50 | H27: 3.741833333 | K27: 5
A28: =IF(Draw!E27=0,"",Draw!E27) -> 26 | B28: 1.1 | C28: 49 | D28: 50 | E28: 48 | F28: 54 | G28: 53 | H28: 3.622666667 | K28: 5
A29: =IF(Draw!E28=0,"",Draw!E28) ->  | K29: 0
A30: =IF(Draw!E29=0,"",Draw!E29) ->  | K30: 0
A31: =IF(Draw!E30=0,"",Draw!E30) ->  | K31: 0
A32: =IF(Draw!E31=0,"",Draw!E31) ->  | K32: 0
A33: =IF(Draw!E32=0,"",Draw!E32) ->  | K33: 0
A34: =IF(Draw!E33=0,"",Draw!E33) ->  | K34: 0
A35: =IF(Draw!E34=0,"",Draw!E34) ->  | K35: 0
A36: =IF(Draw!E35=0,"",Draw!E35) ->  | K36: 0
A37: =IF(Draw!E36=0,"",Draw!E36) ->  | K37: 0
A38: =IF(Draw!E37=0,"",Draw!E37) ->  | K38: 0
A39: =IF(Draw!E38=0,"",Draw!E38) ->  | K39: 0
A40: =IF(Draw!E39=0,"",Draw!E39) ->  | K40: 0
A41: =IF(Draw!E40=0,"",Draw!E40) ->  | K41: 0
A42: =IF(Draw!E41=0,"",Draw!E41) ->  | K42: 0
A43: =IF(Draw!E42=0,"",Draw!E42) ->  | K43: 0
A44: =IF(Draw!E43=0,"",Draw!E43) ->  | K44: 0
A45: =IF(Draw!E44=0,"",Draw!E44) ->  | K45: 0
A46: =IF(Draw!E45=0,"",Draw!E45) ->  | K46: 0
A47: =IF(Draw!E46=0,"",Draw!E46) ->  | K47: 0
A48: =IF(Draw!E47=0,"",Draw!E47) ->  | K48: 0
A49: =IF(Draw!E48=0,"",Draw!E48) ->  | K49: 0
A50: =IF(Draw!E49=0,"",Draw!E49) ->  | K50: 0
A51: =IF(Draw!E50=0,"",Draw!E50) ->  | K51: 0
A52: =IF(Draw!E51=0,"",Draw!E51) ->  | K52: 0
A53: =IF(Draw!E52=0,"",Draw!E52) ->  | K53: 0
A54: =IF(Draw!E53=0,"",Draw!E53) ->  | K54: 0
A55: =IF(Draw!E54=0,"",Draw!E54) ->  | K55: 0
A56: =IF(Draw!E55=0,"",Draw!E55) ->  | K56: 0
A57: =IF(Draw!E56=0,"",Draw!E56) ->  | K57: 0
A58: =IF(Draw!E57=0,"",Draw!E57) ->  | K58: 0
A59: =IF(Draw!E58=0,"",Draw!E58) ->  | K59: 0
A60: =IF(Draw!E59=0,"",Draw!E59) ->  | K60: 0
A61: =IF(Draw!E60=0,"",Draw!E60) ->  | K61: 0
A62: =IF(Draw!E61=0,"",Draw!E61) ->  | K62: 0
A63: =IF(Draw!E62=0,"",Draw!E62) ->  | K63: 0
A64: =IF(Draw!E63=0,"",Draw!E63) ->  | K64: 0
A65: =IF(Draw!E64=0,"",Draw!E64) ->  | K65: 0
A66: =IF(Draw!E65=0,"",Draw!E65) ->  | K66: 0
A67: =IF(Draw!E66=0,"",Draw!E66) ->  | K67: 0
A68: =IF(Draw!E67=0,"",Draw!E67) ->  | K68: =COUNT(C68:G68) -> 0
A69: =IF(Draw!E68=0,"",Draw!E68) ->  | K69: 0
A70: =IF(Draw!E69=0,"",Draw!E69) ->  | B70: =IF(A70="","",B$3) ->  | H70: =IF(B70="","",IF(K70=3,(SUM(C70:G70)/(300/(6.5+(B70-1)*6.5))),IF(K70=4,(SUM(C70:G70)-MAX(C70:G70))/(300/(6.5+(B70-1)*6.5)),IF(K70=5,(SUM(C70:G70)-MAX(C70:G70)-MIN(C70:G70))/(300/(6.5+(B70-1)*6.5)),0)))) ->  | K70: 0
A71: =IF(Draw!E70=0,"",Draw!E70) ->  | K71: 0
A72: =IF(Draw!E71=0,"",Draw!E71) ->  | K72: 0
A73: =IF(Draw!E72=0,"",Draw!E72) ->  | K73: 0
A74: =IF(Draw!E73=0,"",Draw!E73) ->  | K74: 0
A75: =IF(Draw!E74=0,"",Draw!E74) ->  | K75: 0
A76: =IF(Draw!E75=0,"",Draw!E75) ->  | K76: 0
A77: =IF(Draw!E76=0,"",Draw!E76) ->  | K77: 0
A78: =IF(Draw!E77=0,"",Draw!E77) ->  | K78: 0
A79: =IF(Draw!E78=0,"",Draw!E78) ->  | K79: 0
A80: =IF(Draw!E79=0,"",Draw!E79) ->  | K80: 0
A81: =IF(Draw!E80=0,"",Draw!E80) ->  | K81: 0
A82: =IF(Draw!E81=0,"",Draw!E81) ->  | K82: 0
A83: =IF(Draw!E82=0,"",Draw!E82) ->  | K83: 0
A84: =IF(Draw!E83=0,"",Draw!E83) ->  | K84: 0
A85: =IF(Draw!E84=0,"",Draw!E84) ->  | K85: 0
A86: =IF(Draw!E85=0,"",Draw!E85) ->  | K86: 0
A87: =IF(Draw!E86=0,"",Draw!E86) ->  | K87: 0
A88: =IF(Draw!E87=0,"",Draw!E87) ->  | K88: 0
A89: =IF(Draw!E88=0,"",Draw!E88) ->  | K89: 0
A90: =IF(Draw!E89=0,"",Draw!E89) ->  | K90: 0
A91: =IF(Draw!E90=0,"",Draw!E90) ->  | K91: 0
A92: =IF(Draw!E91=0,"",Draw!E91) ->  | K92: 0
A93: =IF(Draw!E92=0,"",Draw!E92) ->  | K93: 0
A94: =IF(Draw!E93=0,"",Draw!E93) ->  | K94: 0
A95: =IF(Draw!E94=0,"",Draw!E94) ->  | K95: 0
A96: =IF(Draw!E95=0,"",Draw!E95) ->  | K96: 0
A97: =IF(Draw!E96=0,"",Draw!E96) ->  | K97: 0
A98: =IF(Draw!E97=0,"",Draw!E97) ->  | K98: 0
A99: =IF(Draw!E98=0,"",Draw!E98) ->  | K99: 0
A100: =IF(Draw!E99=0,"",Draw!E99) ->  | K100: 0
A101: =IF(Draw!E100=0,"",Draw!E100) ->  | K101: 0
A102: =IF(Draw!E101=0,"",Draw!E101) ->  | K102: 0
A103: =IF(Draw!E102=0,"",Draw!E102) ->  | K103: 0
A104: =IF(Draw!E103=0,"",Draw!E103) ->  | K104: 0
A105: =IF(Draw!E104=0,"",Draw!E104) ->  | K105: 0
A106: =IF(Draw!E105=0,"",Draw!E105) ->  | K106: 0
A107: =IF(Draw!E106=0,"",Draw!E106) ->  | K107: 0
A108: =IF(Draw!E107=0,"",Draw!E107) ->  | K108: 0
A109: =IF(Draw!E108=0,"",Draw!E108) ->  | K109: 0
A110: =IF(Draw!E109=0,"",Draw!E109) ->  | K110: 0
A111: =IF(Draw!E110=0,"",Draw!E110) ->  | K111: 0
A112: =IF(Draw!E111=0,"",Draw!E111) ->  | K112: 0
A113: =IF(Draw!E112=0,"",Draw!E112) ->  | K113: 0
A114: =IF(Draw!E113=0,"",Draw!E113) ->  | K114: 0
A115: =IF(Draw!E114=0,"",Draw!E114) ->  | K115: 0
A116: =IF(Draw!E115=0,"",Draw!E115) ->  | K116: 0
A117: =IF(Draw!E116=0,"",Draw!E116) ->  | K117: 0
A118: =IF(Draw!E117=0,"",Draw!E117) ->  | K118: 0
A119: =IF(Draw!E118=0,"",Draw!E118) ->  | K119: 0
A120: =IF(Draw!E119=0,"",Draw!E119) ->  | K120: 0
A121: =IF(Draw!E120=0,"",Draw!E120) ->  | K121: 0
A122: =IF(Draw!E121=0,"",Draw!E121) ->  | K122: 0
A123: =IF(Draw!E122=0,"",Draw!E122) ->  | K123: 0
A124: =IF(Draw!E123=0,"",Draw!E123) ->  | K124: 0
A125: =IF(Draw!E124=0,"",Draw!E124) ->  | K125: 0
A126: =IF(Draw!E125=0,"",Draw!E125) ->  | K126: 0
A127: =IF(Draw!E126=0,"",Draw!E126) ->  | K127: 0
A128: =IF(Draw!E127=0,"",Draw!E127) ->  | K128: 0
A129: =IF(Draw!E128=0,"",Draw!E128) ->  | K129: 0
A130: =IF(Draw!E129=0,"",Draw!E129) ->  | K130: 0
A131: =IF(Draw!E130=0,"",Draw!E130) ->  | K131: 0
A132: =IF(Draw!E131=0,"",Draw!E131) ->  | K132: =COUNT(C132:G132) -> 0
A133: =IF(Draw!E132=0,"",Draw!E132) ->  | K133: 0
A134: =IF(Draw!E133=0,"",Draw!E133) ->  | B134: =IF(A134="","",B$3) ->  | H134: =IF(B134="","",IF(K134=3,(SUM(C134:G134)/(300/(6.5+(B134-1)*6.5))),IF(K134=4,(SUM(C134:G134)-MAX(C134:G134))/(300/(6.5+(B134-1)*6.5)),IF(K134=5,(SUM(C134:G134)-MAX(C134:G134)-MIN(C134:G134))/(300/(6.5+(B134-1)*6.5)),0)))) ->  | K134: 0
A135: =IF(Draw!E134=0,"",Draw!E134) ->  | K135: 0
A136: =IF(Draw!E135=0,"",Draw!E135) ->  | K136: 0
A137: =IF(Draw!E136=0,"",Draw!E136) ->  | K137: 0
A138: =IF(Draw!E137=0,"",Draw!E137) ->  | K138: 0
A139: =IF(Draw!E138=0,"",Draw!E138) ->  | K139: 0
A140: =IF(Draw!E139=0,"",Draw!E139) ->  | K140: 0
A141: =IF(Draw!E140=0,"",Draw!E140) ->  | K141: 0
A142: =IF(Draw!E141=0,"",Draw!E141) ->  | K142: 0
A143: =IF(Draw!E142=0,"",Draw!E142) ->  | K143: 0
A144: =IF(Draw!E143=0,"",Draw!E143) ->  | K144: 0
A145: =IF(Draw!E144=0,"",Draw!E144) ->  | K145: 0
A146: =IF(Draw!E145=0,"",Draw!E145) ->  | K146: 0
A147: =IF(Draw!E146=0,"",Draw!E146) ->  | K147: 0
A148: =IF(Draw!E147=0,"",Draw!E147) ->  | K148: 0
A149: =IF(Draw!E148=0,"",Draw!E148) ->  | K149: 0
A150: =IF(Draw!E149=0,"",Draw!E149) ->  | K150: 0

Sheet Fig 3 Somersault, Front Pike
B1: Figure #3: | C1: 320 Somersault, Front Pike
A2: # | B2: Degree of Difficulty | C2: judge 1 | D2: judge 2 | E2: judge 3 | F2: judge 4 | G2: judge 5 | H2: Score | I2: Penalty
A3: =IF(Draw!E2=0,"",Draw!E2) -> 1 | B3: 1.7 | C3: 50 | D3: 49 | E3: 48 | F3: 52 | G3: 49 | H3: =IF(B3="","",IF(K3=3,(SUM(C3:G3)/(300/(6.5+(B3-1)*6.5))),IF(K3=4,(SUM(C3:G3)-MAX(C3:G3))/(300/(6.5+(B3-1)*6.5)),IF(K3=5,(SUM(C3:G3)-MAX(C3:G3)-MIN(C3:G3))/(300/(6.5+(B3-1)*6.5)),0)))) -> 5.451333333 | K3: =COUNT(C3:G3) -> 5
A4: =IF(Draw!E3=0,"",Draw!E3) -> 2 | B4: =IF(A4="","",B$3) -> 1.7 | C4: 52 | D4: 47 | E4: 48 | F4: 49 | G4: 47 | H4: 5.304 | K4: =COUNT(C4:G4) -> 5
A5: =IF(Draw!E4=0,"",Draw!E4) -> 3 | B5: 1.7 | C5: 50 | D5: 50 | E5: 50 | F5: 52 | G5: 46 | H5: 5.525 | K5: 5
A6: =IF(Draw!E5=0,"",Draw!E5) -> 4 | B6: =IF(A6="","",B$3) -> 1.7 | C6: 53 | D6: 53 | E6: 54 | F6: 53 | G6: 50 | H6: =IF(B6="","",IF(K6=3,(SUM(C6:G6)/(300/(6.5+(B6-1)*6.5))),IF(K6=4,(SUM(C6:G6)-MAX(C6:G6))/(300/(6.5+(B6-1)*6.5)),IF(K6=5,(SUM(C6:G6)-MAX(C6:G6)-MIN(C6:G6))/(300/(6.5+(B6-1)*6.5)),0)))) -> 5.8565 | K6: 5
A7: =IF(Draw!E6=0,"",Draw!E6) -> 5 | B7: 1.7 | C7: 51 | D7: 56 | E7: 54 | F7: 55 | G7: 51 | H7: 5.893333333 | K7: 5
A8: =IF(Draw!E7=0,"",Draw!E7) -> 6 | B8: 1.7 | C8: 59 | D8: 59 | E8: 59 | F8: 60 | G8: 58 | H8: 6.5195 | J8: Discrepancy on judge 2: 59, 59, 49 | K8: 5
A9: =IF(Draw!E8=0,"",Draw!E8) -> 7 | B9: 1.7 | C9: 53 | D9: 53 | E9: 54 | F9: 49 | G9: 52 | H9: 5.819666667 | K9: 5
A10: =IF(Draw!E9=0,"",Draw!E9) -> 8 | B10: 1.7 | C10: 51 | D10: 50 | E10: 55 | F10: 50 | G10: 50 | H10: 5.561833333 | K10: 5
A11: =IF(Draw!E10=0,"",Draw!E10) -> 9 | B11: 1.7 | C11: 55 | D11: 60 | E11: 58 | F11: 58 | G11: 56 | H11: 6.335333333 | K11: 5
A12: =IF(Draw!E11=0,"",Draw!E11) -> 10 | B12: 1.7 | C12: 56 | D12: 54 | E12: 54 | F12: 56 | G12: 51 | H12: 6.040666667 | K12: 5
A13: =IF(Draw!E12=0,"",Draw!E12) -> 11 | B13: 1.7 | C13: 54 | D13: 52 | E13: 55 | F13: 54 | G13: 55 | H13: 6.003833333 | K13: 5
A14: =IF(Draw!E13=0,"",Draw!E13) -> 12 | B14: 1.7 | C14: 56 | D14: 53 | E14: 52 | F14: 52 | G14: 58 | H14: 5.930166667 | K14: 5
A15: =IF(Draw!E14=0,"",Draw!E14) -> 13 | B15: 1.7 | C15: 54 | D15: 50 | E15: 54 | F15: 52 | G15: 53 | H15: 5.8565 | K15: 5
A16: =IF(Draw!E15=0,"",Draw!E15) -> 14 | B16: 1.7 | C16: 45 | D16: 44 | E16: 44 | F16: 48 | G16: 45 | H16: 4.935666667 | K16: 5
A17: =IF(Draw!E16=0,"",Draw!E16) -> 15 | B17: 1.7 | C17: 50 | D17: 46 | E17: 48 | F17: 45 | G17: 50 | H17: 5.304 | K17: 5
A18: =IF(Draw!E17=0,"",Draw!E17) -> 16 | B18: 1.7 | C18: 49 | D18: 50 | E18: 50 | F18: 46 | G18: 51 | H18: 5.488166667 | K18: 5
A19: =IF(Draw!E18=0,"",Draw!E18) -> 17 | B19: 1.7 | C19: 51 | D19: 55 | E19: 54 | F19: 49 | G19: 56 | H19: 5.893333333 | K19: 5
A20: =IF(Draw!E19=0,"",Draw!E19) -> 18 | B20: 1.7 | C20: 53 | D20: 53 | E20: 54 | F20: 52 | G20: 53 | H20: 5.8565 | K20: 5
A21: =IF(Draw!E20=0,"",Draw!E20) -> 19 | B21: 1.7 | C21: 52 | D21: 54 | E21: 53 | F21: 55 | G21: 49 | H21: 5.8565 | K21: 5
A22: =IF(Draw!E21=0,"",Draw!E21) -> 20 | B22: 1.7 | C22: 52 | D22: 51 | E22: 52 | F22: 55 | G22: 50 | H22: 5.709166667 | K22: 5
A23: =IF(Draw!E22=0,"",Draw!E22) -> 21 | B23: 1.7 | C23: 49 | D23: 49 | E23: 47 | F23: 51 | G23: 51 | H23: 5.488166667 | K23: 5
A24: =IF(Draw!E23=0,"",Draw!E23) -> 22 | B24: 1.7 | C24: 52 | D24: 52 | E24: 51 | F24: 50 | G24: 50 | H24: 5.6355 | K24: 5
A25: =IF(Draw!E24=0,"",Draw!E24) -> 23 | B25: 1.7 | C25: 44 | D25: 46 | E25: 42 | F25: 42 | G25: 44 | H25: 4.788333333 | K25: 5
A26: =IF(Draw!E25=0,"",Draw!E25) -> 24 | B26: 1.7 | C26: 54 | D26: 58 | E26: 58 | F26: 58 | G26: 56 | H26: 6.335333333 | K26: 5
A27: =IF(Draw!E26=0,"",Draw!E26) -> 25 | B27: 1.7 | C27: 49 | D27: 48 | E27: 46 | F27: 44 | G27: 51 | H27: 0 | J27: Discrepancy judge 5: 51, 51, 41 | K27: Tt
A28: =IF(Draw!E27=0,"",Draw!E27) -> 26 | B28: 1.7 | C28: 51 | D28: 52 | E28: 50 | F28: 53 | G28: 53 | H28: 5.746 | K28: 5
A29: =IF(Draw!E28=0,"",Draw!E28) ->  | K29: 0
A30: =IF(Draw!E29=0,"",Draw!E29) ->  | K30: 0
A31: =IF(Draw!E30=0,"",Draw!E30) ->  | K31: 0
A32: =IF(Draw!E31=0,"",Draw!E31) ->  | K32: 0
A33: =IF(Draw!E32=0,"",Draw!E32) ->  | K33: 0
A34: =IF(Draw!E33=0,"",Draw!E33) ->  | K34: 0
A35: =IF(Draw!E34=0,"",Draw!E34) ->  | K35: 0
A36: =IF(Draw!E35=0,"",Draw!E35) ->  | K36: 0
A37: =IF(Draw!E36=0,"",Draw!E36) ->  | K37: 0
A38: =IF(Draw!E37=0,"",Draw!E37) ->  | K38: 0
A39: =IF(Draw!E38=0,"",Draw!E38) ->  | K39: 0
A40: =IF(Draw!E39=0,"",Draw!E39) ->  | K40: 0
A41: =IF(Draw!E40=0,"",Draw!E40) ->  | K41: 0
A42: =IF(Draw!E41=0,"",Draw!E41) ->  | K42: 0
A43: =IF(Draw!E42=0,"",Draw!E42) ->  | K43: 0
A44: =IF(Draw!E43=0,"",Draw!E43) ->  | K44: 0
A45: =IF(Draw!E44=0,"",Draw!E44) ->  | K45: 0
A46: =IF(Draw!E45=0,"",Draw!E45) ->  | K46: 0
A47: =IF(Draw!E46=0,"",Draw!E46) ->  | K47: 0
A48: =IF(Draw!E47=0,"",Draw!E47) ->  | K48: 0
A49: =IF(Draw!E48=0,"",Draw!E48) ->  | K49: 0
A50: =IF(Draw!E49=0,"",Draw!E49) ->  | K50: 0
A51: =IF(Draw!E50=0,"",Draw!E50) ->  | K51: 0
A52: =IF(Draw!E51=0,"",Draw!E51) ->  | K52: 0
A53: =IF(Draw!E52=0,"",Draw!E52) ->  | K53: 0
A54: =IF(Draw!E53=0,"",Draw!E53) ->  | K54: 0
A55: =IF(Draw!E54=0,"",Draw!E54) ->  | K55: 0
A56: =IF(Draw!E55=0,"",Draw!E55) ->  | K56: 0
A57: =IF(Draw!E56=0,"",Draw!E56) ->  | K57: 0
A58: =IF(Draw!E57=0,"",Draw!E57) ->  | K58: 0
A59: =IF(Draw!E58=0,"",Draw!E58) ->  | K59: 0
A60: =IF(Draw!E59=0,"",Draw!E59) ->  | K60: 0
A61: =IF(Draw!E60=0,"",Draw!E60) ->  | K61: 0
A62: =IF(Draw!E61=0,"",Draw!E61) ->  | K62: 0
A63: =IF(Draw!E62=0,"",Draw!E62) ->  | K63: 0
A64: =IF(Draw!E63=0,"",Draw!E63) ->  | K64: 0
A65: =IF(Draw!E64=0,"",Draw!E64) ->  | K65: 0
A66: =IF(Draw!E65=0,"",Draw!E65) ->  | K66: 0
A67: =IF(Draw!E66=0,"",Draw!E66) ->  | K67: 0
A68: =IF(Draw!E67=0,"",Draw!E67) ->  | K68: =COUNT(C68:G68) -> 0
A69: =IF(Draw!E68=0,"",Draw!E68) ->  | K69: 0
A70: =IF(Draw!E69=0,"",Draw!E69) ->  | B70: =IF(A70="","",B$3) ->  | H70: =IF(B70="","",IF(K70=3,(SUM(C70:G70)/(300/(6.5+(B70-1)*6.5))),IF(K70=4,(SUM(C70:G70)-MAX(C70:G70))/(300/(6.5+(B70-1)*6.5)),IF(K70=5,(SUM(C70:G70)-MAX(C70:G70)-MIN(C70:G70))/(300/(6.5+(B70-1)*6.5)),0)))) ->  | K70: 0
A71: =IF(Draw!E70=0,"",Draw!E70) ->  | K71: 0
A72: =IF(Draw!E71=0,"",Draw!E71) ->  | K72: 0
A73: =IF(Draw!E72=0,"",Draw!E72) ->  | K73: 0
A74: =IF(Draw!E73=0,"",Draw!E73) ->  | K74: 0
A75: =IF(Draw!E74=0,"",Draw!E74) ->  | K75: 0
A76: =IF(Draw!E75=0,"",Draw!E75) ->  | K76: 0
A77: =IF(Draw!E76=0,"",Draw!E76) ->  | K77: 0
A78: =IF(Draw!E77=0,"",Draw!E77) ->  | K78: 0
A79: =IF(Draw!E78=0,"",Draw!E78) ->  | K79: 0
A80: =IF(Draw!E79=0,"",Draw!E79) ->  | K80: 0
A81: =IF(Draw!E80=0,"",Draw!E80) ->  | K81: 0
A82: =IF(Draw!E81=0,"",Draw!E81) ->  | K82: 0
A83: =IF(Draw!E82=0,"",Draw!E82) ->  | K83: 0
A84: =IF(Draw!E83=0,"",Draw!E83) ->  | K84: 0
A85: =IF(Draw!E84=0,"",Draw!E84) ->  | K85: 0
A86: =IF(Draw!E85=0,"",Draw!E85) ->  | K86: 0
A87: =IF(Draw!E86=0,"",Draw!E86) ->  | K87: 0
A88: =IF(Draw!E87=0,"",Draw!E87) ->  | K88: 0
A89: =IF(Draw!E88=0,"",Draw!E88) ->  | K89: 0
A90: =IF(Draw!E89=0,"",Draw!E89) ->  | K90: 0
A91: =IF(Draw!E90=0,"",Draw!E90) ->  | K91: 0
A92: =IF(Draw!E91=0,"",Draw!E91) ->  | K92: 0
A93: =IF(Draw!E92=0,"",Draw!E92) ->  | K93: 0
A94: =IF(Draw!E93=0,"",Draw!E93) ->  | K94: 0
A95: =IF(Draw!E94=0,"",Draw!E94) ->  | K95: 0
A96: =IF(Draw!E95=0,"",Draw!E95) ->  | K96: 0
A97: =IF(Draw!E96=0,"",Draw!E96) ->  | K97: 0
A98: =IF(Draw!E97=0,"",Draw!E97) ->  | K98: 0
A99: =IF(Draw!E98=0,"",Draw!E98) ->  | K99: 0
A100: =IF(Draw!E99=0,"",Draw!E99) ->  | K100: 0
A101: =IF(Draw!E100=0,"",Draw!E100) ->  | K101: 0
A102: =IF(Draw!E101=0,"",Draw!E101) ->  | K102: 0
A103: =IF(Draw!E102=0,"",Draw!E102) ->  | K103: 0
A104: =IF(Draw!E103=0,"",Draw!E103) ->  | K104: 0
A105: =IF(Draw!E104=0,"",Draw!E104) ->  | K105: 0
A106: =IF(Draw!E105=0,"",Draw!E105) ->  | K106: 0
A107: =IF(Draw!E106=0,"",Draw!E106) ->  | K107: 0
A108: =IF(Draw!E107=0,"",Draw!E107) ->  | K108: 0
A109: =IF(Draw!E108=0,"",Draw!E108) ->  | K109: 0
A110: =IF(Draw!E109=0,"",Draw!E109) ->  | K110: 0
A111: =IF(Draw!E110=0,"",Draw!E110) ->  | K111: 0
A112: =IF(Draw!E111=0,"",Draw!E111) ->  | K112: 0
A113: =IF(Draw!E112=0,"",Draw!E112) ->  | K113: 0
A114: =IF(Draw!E113=0,"",Draw!E113) ->  | K114: 0
A115: =IF(Draw!E114=0,"",Draw!E114) ->  | K115: 0
A116: =IF(Draw!E115=0,"",Draw!E115) ->  | K116: 0
A117: =IF(Draw!E116=0,"",Draw!E116) ->  | K117: 0
A118: =IF(Draw!E117=0,"",Draw!E117) ->  | K118: 0
A119: =IF(Draw!E118=0,"",Draw!E118) ->  | K119: 0
A120: =IF(Draw!E119=0,"",Draw!E119) ->  | K120: 0
A121: =IF(Draw!E120=0,"",Draw!E120) ->  | K121: 0
A122: =IF(Draw!E121=0,"",Draw!E121) ->  | K122: 0
A123: =IF(Draw!E122=0,"",Draw!E122) ->  | K123: 0
A124: =IF(Draw!E123=0,"",Draw!E123) ->  | K124: 0
A125: =IF(Draw!E124=0,"",Draw!E124) ->  | K125: 0
A126: =IF(Draw!E125=0,"",Draw!E125) ->  | K126: 0
A127: =IF(Draw!E126=0,"",Draw!E126) ->  | K127: 0
A128: =IF(Draw!E127=0,"",Draw!E127) ->  | K128: 0
A129: =IF(Draw!E128=0,"",Draw!E128) ->  | K129: 0
A130: =IF(Draw!E129=0,"",Draw!E129) ->  | K130: 0
A131: =IF(Draw!E130=0,"",Draw!E130) ->  | K131: 0
A132: =IF(Draw!E131=0,"",Draw!E131) ->  | K132: =COUNT(C132:G132) -> 0
A133: =IF(Draw!E132=0,"",Draw!E132) ->  | K133: 0
A134: =IF(Draw!E133=0,"",Draw!E133) ->  | B134: =IF(A134="","",B$3) ->  | H134: =IF(B134="","",IF(K134=3,(SUM(C134:G134)/(300/(6.5+(B134-1)*6.5))),IF(K134=4,(SUM(C134:G134)-MAX(C134:G134))/(300/(6.5+(B134-1)*6.5)),IF(K134=5,(SUM(C134:G134)-MAX(C134:G134)-MIN(C134:G134))/(300/(6.5+(B134-1)*6.5)),0)))) ->  | K134: 0
A135: =IF(Draw!E134=0,"",Draw!E134) ->  | K135: 0
A136: =IF(Draw!E135=0,"",Draw!E135) ->  | K136: 0
A137: =IF(Draw!E136=0,"",Draw!E136) ->  | K137: 0
A138: =IF(Draw!E137=0,"",Draw!E137) ->  | K138: 0
A139: =IF(Draw!E138=0,"",Draw!E138) ->  | K139: 0
A140: =IF(Draw!E139=0,"",Draw!E139) ->  | K140: 0
A141: =IF(Draw!E140=0,"",Draw!E140) ->  | K141: 0
A142: =IF(Draw!E141=0,"",Draw!E141) ->  | K142: 0
A143: =IF(Draw!E142=0,"",Draw!E142) ->  | K143: 0
A144: =IF(Draw!E143=0,"",Draw!E143) ->  | K144: 0
A145: =IF(Draw!E144=0,"",Draw!E144) ->  | K145: 0
A146: =IF(Draw!E145=0,"",Draw!E145) ->  | K146: 0
A147: =IF(Draw!E146=0,"",Draw!E146) ->  | K147: 0
A148: =IF(Draw!E147=0,"",Draw!E147) ->  | K148: 0
A149: =IF(Draw!E148=0,"",Draw!E148) ->  | K149: 0
A150: =IF(Draw!E149=0,"",Draw!E149) ->  | K150: 0

Sheet Fig 4 Optional
B1: Figure #4: | C1: Optional
A2: # | B2: Degree of Difficulty | C2: judge 1 | D2: judge 2 | E2: judge 3 | F2: judge 4 | G2: judge 5 | H2: Score | I2: Penalties
A3: =IF(Draw!E2=0,"",Draw!E2) -> 1 | B3: 2.1 | C3: 44 | D3: 43 | E3: 44 | H3: =IF(B3="","",IF(K3=3,(SUM(C3:G3)/(300/(6.5+(B3-1)*6.5))),IF(K3=4,(SUM(C3:G3)-MAX(C3:G3))/(300/(6.5+(B3-1)*6.5)),IF(K3=5,(SUM(C3:G3)-MAX(C3:G3)-MIN(C3:G3))/(300/(6.5+(B3-1)*6.5)),0)))) -> 5.9605 | K3: =COUNT(C3:G3) -> 3
A4: =IF(Draw!E3=0,"",Draw!E3) -> 2 | B4: =IF(A4="","",B$3) -> 2.1 | C4: 47 | D4: 47 | E4: 47 | H4: 6.4155 | K4: =COUNT(C4:G4) -> 3
A5: =IF(Draw!E4=0,"",Draw!E4) -> 3 | B5: 1.2 | C5: 55 | D5: 58 | E5: 54 | H5: 4.342 | K5: 3
A6: =IF(Draw!E5=0,"",Draw!E5) -> 4 | B6: =IF(A6="","",B$3) -> 2.1 | C6: 48 | D6: 49 | E6: 49 | H6: =IF(B6="","",IF(K6=3,(SUM(C6:G6)/(300/(6.5+(B6-1)*6.5))),IF(K6=4,(SUM(C6:G6)-MAX(C6:G6))/(300/(6.5+(B6-1)*6.5)),IF(K6=5,(SUM(C6:G6)-MAX(C6:G6)-MIN(C6:G6))/(300/(6.5+(B6-1)*6.5)),0)))) -> 6.643 | K6: 3
A7: =IF(Draw!E6=0,"",Draw!E6) -> 5 | B7: 2.1 | C7: 48 | D7: 52 | E7: 48 | H7: 6.734 | K7: 3
A8: =IF(Draw!E7=0,"",Draw!E7) -> 6 | B8: 2.1 | C8: 54 | D8: 56 | E8: 57 | H8: 7.5985 | K8: 3
A9: =IF(Draw!E8=0,"",Draw!E8) -> 7 | B9: 2.1 | C9: 49 | D9: 48 | E9: 46 | H9: 6.5065 | K9: 3
A10: =IF(Draw!E9=0,"",Draw!E9) -> 8 | B10: 2.1 | C10: 43 | D10: 41 | E10: 42 | H10: 5.733 | K10: 3
A11: =IF(Draw!E10=0,"",Draw!E10) -> 9 | B11: 2.1 | C11: 51 | D11: 56 | E11: 49 | H11: 7.098 | K11: 3
A12: =IF(Draw!E11=0,"",Draw!E11) -> 10 | B12: 2.1 | C12: 53 | D12: 51 | E12: 48 | H12: 6.916 | K12: 3
A13: =IF(Draw!E12=0,"",Draw!E12) -> 11 | B13: 2.1 | C13: 55 | D13: 55 | E13: 52 | H13: 7.371 | K13: 3
A14: =IF(Draw!E13=0,"",Draw!E13) -> 12 | B14: 2.1 | C14: 57 | D14: 57 | E14: 54 | H14: 7.644 | K14: 3
A15: =IF(Draw!E14=0,"",Draw!E14) -> 13 | B15: 2.1 | C15: 52 | D15: 50 | E15: 50 | H15: 6.916 | K15: 3
A16: =IF(Draw!E15=0,"",Draw!E15) -> 14 | B16: 2.1 | C16: 44 | D16: 45 | E16: 46 | H16: 6.1425 | K16: 3
A17: =IF(Draw!E16=0,"",Draw!E16) -> 15 | B17: 2.1 | C17: 50 | D17: 53 | E17: 52 | H17: 7.0525 | K17: 3
A18: =IF(Draw!E17=0,"",Draw!E17) -> 16 | B18: 2.1 | C18: 49 | D18: 50 | E18: 50 | H18: 6.7795 | K18: 3
A19: =IF(Draw!E18=0,"",Draw!E18) -> 17 | B19: 2.1 | C19: 51 | D19: 51 | E19: 50 | H19: 6.916 | K19: 3
A20: =IF(Draw!E19=0,"",Draw!E19) -> 18 | B20: 2.1 | C20: 52 | D20: 56 | E20: 56 | H20: 7.462 | K20: 3
A21: =IF(Draw!E20=0,"",Draw!E20) -> 19 | B21: 2.1 | C21: 54 | D21: 52 | E21: 53 | H21: 7.2345 | K21: 3
A22: =IF(Draw!E21=0,"",Draw!E21) -> 20 | B22: 2.1 | C22: 48 | D22: 45 | E22: 49 | H22: 6.461 | K22: 3
A23: =IF(Draw!E22=0,"",Draw!E22) -> 21 | B23: 2.1 | C23: 51 | D23: 50 | E23: 48 | H23: 6.7795 | K23: 3
A24: =IF(Draw!E23=0,"",Draw!E23) -> 22 | B24: 2.1 | C24: 50 | D24: 49 | E24: 50 | H24: 6.7795 | K24: 3
A25: =IF(Draw!E24=0,"",Draw!E24) -> 23 | B25: 2.1 | C25: 43 | D25: 45 | E25: 45 | H25: 6.0515 | K25: 3
A26: =IF(Draw!E25=0,"",Draw!E25) -> 24 | B26: 2.1 | C26: 56 | D26: 57 | E26: 55 | H26: 7.644 | K26: 3
A27: =IF(Draw!E26=0,"",Draw!E26) -> 25 | B27: 2.1 | C27: 51 | D27: 48 | E27: 49 | H27: 6.734 | K27: 3
A28: =IF(Draw!E27=0,"",Draw!E27) -> 26 | B28: 2.1 | C28: 46 | D28: 50 | E28: 49 | H28: 6.5975 | K28: 3
A29: =IF(Draw!E28=0,"",Draw!E28) ->  | K29: 0
A30: =IF(Draw!E29=0,"",Draw!E29) ->  | K30: 0
A31: =IF(Draw!E30=0,"",Draw!E30) ->  | K31: 0
A32: =IF(Draw!E31=0,"",Draw!E31) ->  | K32: 0
A33: =IF(Draw!E32=0,"",Draw!E32) ->  | K33: 0
A34: =IF(Draw!E33=0,"",Draw!E33) ->  | K34: 0
A35: =IF(Draw!E34=0,"",Draw!E34) ->  | K35: 0
A36: =IF(Draw!E35=0,"",Draw!E35) ->  | K36: 0
A37: =IF(Draw!E36=0,"",Draw!E36) ->  | K37: 0
A38: =IF(Draw!E37=0,"",Draw!E37) ->  | K38: 0
A39: =IF(Draw!E38=0,"",Draw!E38) ->  | K39: 0
A40: =IF(Draw!E39=0,"",Draw!E39) ->  | K40: 0
A41: =IF(Draw!E40=0,"",Draw!E40) ->  | K41: 0
A42: =IF(Draw!E41=0,"",Draw!E41) ->  | K42: 0
A43: =IF(Draw!E42=0,"",Draw!E42) ->  | K43: 0
A44: =IF(Draw!E43=0,"",Draw!E43) ->  | K44: 0
A45: =IF(Draw!E44=0,"",Draw!E44) ->  | K45: 0
A46: =IF(Draw!E45=0,"",Draw!E45) ->  | K46: 0
A47: =IF(Draw!E46=0,"",Draw!E46) ->  | K47: 0
A48: =IF(Draw!E47=0,"",Draw!E47) ->  | K48: 0
A49: =IF(Draw!E48=0,"",Draw!E48) ->  | K49: 0
A50: =IF(Draw!E49=0,"",Draw!E49) ->  | K50: 0
A51: =IF(Draw!E50=0,"",Draw!E50) ->  | K51: 0
A52: =IF(Draw!E51=0,"",Draw!E51) ->  | K52: 0
A53: =IF(Draw!E52=0,"",Draw!E52) ->  | K53: 0
A54: =IF(Draw!E53=0,"",Draw!E53) ->  | K54: 0
A55: =IF(Draw!E54=0,"",Draw!E54) ->  | K55: 0
A56: =IF(Draw!E55=0,"",Draw!E55) ->  | K56: 0
A57: =IF(Draw!E56=0,"",Draw!E56) ->  | K57: 0
A58: =IF(Draw!E57=0,"",Draw!E57) ->  | K58: 0
A59: =IF(Draw!E58=0,"",Draw!E58) ->  | K59: 0
A60: =IF(Draw!E59=0,"",Draw!E59) ->  | K60: 0
A61: =IF(Draw!E60=0,"",Draw!E60) ->  | K61: 0
A62: =IF(Draw!E61=0,"",Draw!E61) ->  | K62: 0
A63: =IF(Draw!E62=0,"",Draw!E62) ->  | K63: 0
A64: =IF(Draw!E63=0,"",Draw!E63) ->  | K64: 0
A65: =IF(Draw!E64=0,"",Draw!E64) ->  | K65: 0
A66: =IF(Draw!E65=0,"",Draw!E65) ->  | K66: 0
A67: =IF(Draw!E66=0,"",Draw!E66) ->  | K67: 0
A68: =IF(Draw!E67=0,"",Draw!E67) ->  | K68: =COUNT(C68:G68) -> 0
A69: =IF(Draw!E68=0,"",Draw!E68) ->  | K69: 0
A70: =IF(Draw!E69=0,"",Draw!E69) ->  | B70: =IF(A70="","",B$3) ->  | H70: =IF(B70="","",IF(K70=3,(SUM(C70:G70)/(300/(6.5+(B70-1)*6.5))),IF(K70=4,(SUM(C70:G70)-MAX(C70:G70))/(300/(6.5+(B70-1)*6.5)),IF(K70=5,(SUM(C70:G70)-MAX(C70:G70)-MIN(C70:G70))/(300/(6.5+(B70-1)*6.5)),0)))) ->  | K70: 0
A71: =IF(Draw!E70=0,"",Draw!E70) ->  | K71: 0
A72: =IF(Draw!E71=0,"",Draw!E71) ->  | K72: 0
A73: =IF(Draw!E72=0,"",Draw!E72) ->  | K73: 0
A74: =IF(Draw!E73=0,"",Draw!E73) ->  | K74: 0
A75: =IF(Draw!E74=0,"",Draw!E74) ->  | K75: 0
A76: =IF(Draw!E75=0,"",Draw!E75) ->  | K76: 0
A77: =IF(Draw!E76=0,"",Draw!E76) ->  | K77: 0
A78: =IF(Draw!E77=0,"",Draw!E77) ->  | K78: 0
A79: =IF(Draw!E78=0,"",Draw!E78) ->  | K79: 0
A80: =IF(Draw!E79=0,"",Draw!E79) ->  | K80: 0
A81: =IF(Draw!E80=0,"",Draw!E80) ->  | K81: 0
A82: =IF(Draw!E81=0,"",Draw!E81) ->  | K82: 0
A83: =IF(Draw!E82=0,"",Draw!E82) ->  | K83: 0
A84: =IF(Draw!E83=0,"",Draw!E83) ->  | K84: 0
A85: =IF(Draw!E84=0,"",Draw!E84) ->  | K85: 0
A86: =IF(Draw!E85=0,"",Draw!E85) ->  | K86: 0
A87: =IF(Draw!E86=0,"",Draw!E86) ->  | K87: 0
A88: =IF(Draw!E87=0,"",Draw!E87) ->  | K88: 0
A89: =IF(Draw!E88=0,"",Draw!E88) ->  | K89: 0
A90: =IF(Draw!E89=0,"",Draw!E89) ->  | K90: 0
A91: =IF(Draw!E90=0,"",Draw!E90) ->  | K91: 0
A92: =IF(Draw!E91=0,"",Draw!E91) ->  | K92: 0
A93: =IF(Draw!E92=0,"",Draw!E92) ->  | K93: 0
A94: =IF(Draw!E93=0,"",Draw!E93) ->  | K94: 0
A95: =IF(Draw!E94=0,"",Draw!E94) ->  | K95: 0
A96: =IF(Draw!E95=0,"",Draw!E95) ->  | K96: 0
A97: =IF(Draw!E96=0,"",Draw!E96) ->  | K97: 0
A98: =IF(Draw!E97=0,"",Draw!E97) ->  | K98: 0
A99: =IF(Draw!E98=0,"",Draw!E98) ->  | K99: 0
A100: =IF(Draw!E99=0,"",Draw!E99) ->  | K100: 0
A101: =IF(Draw!E100=0,"",Draw!E100) ->  | K101: 0
A102: =IF(Draw!E101=0,"",Draw!E101) ->  | K102: 0
A103: =IF(Draw!E102=0,"",Draw!E102) ->  | K103: 0
A104: =IF(Draw!E103=0,"",Draw!E103) ->  | K104: 0
A105: =IF(Draw!E104=0,"",Draw!E104) ->  | K105: 0
A106: =IF(Draw!E105=0,"",Draw!E105) ->  | K106: 0
A107: =IF(Draw!E106=0,"",Draw!E106) ->  | K107: 0
A108: =IF(Draw!E107=0,"",Draw!E107) ->  | K108: 0
A109: =IF(Draw!E108=0,"",Draw!E108) ->  | K109: 0
A110: =IF(Draw!E109=0,"",Draw!E109) ->  | K110: 0
A111: =IF(Draw!E110=0,"",Draw!E110) ->  | K111: 0
A112: =IF(Draw!E111=0,"",Draw!E111) ->  | K112: 0
A113: =IF(Draw!E112=0,"",Draw!E112) ->  | K113: 0
A114: =IF(Draw!E113=0,"",Draw!E113) ->  | K114: 0
A115: =IF(Draw!E114=0,"",Draw!E114) ->  | K115: 0
A116: =IF(Draw!E115=0,"",Draw!E115) ->  | K116: 0
A117: =IF(Draw!E116=0,"",Draw!E116) ->  | K117: 0
A118: =IF(Draw!E117=0,"",Draw!E117) ->  | K118: 0
A119: =IF(Draw!E118=0,"",Draw!E118) ->  | K119: 0
A120: =IF(Draw!E119=0,"",Draw!E119) ->  | K120: 0
A121: =IF(Draw!E120=0,"",Draw!E120) ->  | K121: 0
A122: =IF(Draw!E121=0,"",Draw!E121) ->  | K122: 0
A123: =IF(Draw!E122=0,"",Draw!E122) ->  | K123: 0
A124: =IF(Draw!E123=0,"",Draw!E123) ->  | K124: 0
A125: =IF(Draw!E124=0,"",Draw!E124) ->  | K125: 0
A126: =IF(Draw!E125=0,"",Draw!E125) ->  | K126: 0
A127: =IF(Draw!E126=0,"",Draw!E126) ->  | K127: 0
A128: =IF(Draw!E127=0,"",Draw!E127) ->  | K128: 0
A129: =IF(Draw!E128=0,"",Draw!E128) ->  | K129: 0
A130: =IF(Draw!E129=0,"",Draw!E129) ->  | K130: 0
A131: =IF(Draw!E130=0,"",Draw!E130) ->  | K131: 0
A132: =IF(Draw!E131=0,"",Draw!E131) ->  | K132: =COUNT(C132:G132) -> 0
A133: =IF(Draw!E132=0,"",Draw!E132) ->  | K133: 0
A134: =IF(Draw!E133=0,"",Draw!E133) ->  | B134: =IF(A134="","",B$3) ->  | H134: =IF(B134="","",IF(K134=3,(SUM(C134:G134)/(300/(6.5+(B134-1)*6.5))),IF(K134=4,(SUM(C134:G134)-MAX(C134:G134))/(300/(6.5+(B134-1)*6.5)),IF(K134=5,(SUM(C134:G134)-MAX(C134:G134)-MIN(C134:G134))/(300/(6.5+(B134-1)*6.5)),0)))) ->  | K134: 0
A135: =IF(Draw!E134=0,"",Draw!E134) ->  | K135: 0
A136: =IF(Draw!E135=0,"",Draw!E135) ->  | K136: 0
A137: =IF(Draw!E136=0,"",Draw!E136) ->  | K137: 0
A138: =IF(Draw!E137=0,"",Draw!E137) ->  | K138: 0
A139: =IF(Draw!E138=0,"",Draw!E138) ->  | K139: 0
A140: =IF(Draw!E139=0,"",Draw!E139) ->  | K140: 0
A141: =IF(Draw!E140=0,"",Draw!E140) ->  | K141: 0
A142: =IF(Draw!E141=0,"",Draw!E141) ->  | K142: 0
A143: =IF(Draw!E142=0,"",Draw!E142) ->  | K143: 0
A144: =IF(Draw!E143=0,"",Draw!E143) ->  | K144: 0
A145: =IF(Draw!E144=0,"",Draw!E144) ->  | K145: 0
A146: =IF(Draw!E145=0,"",Draw!E145) ->  | K146: 0
A147: =IF(Draw!E146=0,"",Draw!E146) ->  | K147: 0
A148: =IF(Draw!E147=0,"",Draw!E147) ->  | K148: 0
A149: =IF(Draw!E148=0,"",Draw!E148) ->  | K149: 0
A150: =IF(Draw!E149=0,"",Draw!E149) ->  | K150: 0

Sheet Totals
A1: # | B1: Swimmer | C1: School | D1: Total Score | E1: Place | F1: Figure 1 | G1: Figure 2 | H1: Figure 3 | I1: Figure 4 | J1: Penalties | K1: Score
A2: =IF(Draw!E2=0,"",Draw!E2) -> 1 | B2: Emily Honnold | C2: Osseo-Maple Grove | D2: =IF($A2="","",SUM(F2:I2)-J2) -> 19.59966667 | E2: =IF($A2="","",RANK(D2,D$2:D$200)) -> 22 | F2: =IF($A2="","",'Fig 1 Ballet Leg'!H3) -> 4.922666667 | G2: =IF($A2="","",'Fig 2 Somersault, Back Tuck'!H3) -> 3.265166667 | H2: =IF($A2="","",'Fig 3 Somersault, Front Pike'!H3) -> 5.451333333 | I2: =IF($A2="","",'Fig 4 Optional'!H3) -> 5.9605 | J2: =IF($A2="","",'Fig 1 Ballet Leg'!I3+'Fig 2 Somersault, Back Tuck'!I3+'Fig 3 Somersault, Front Pike'!I3+'Fig 4 Optional'!I3) -> 0 | K2: =IF($A2="","",IF(A2="","",VLOOKUP(E2,AX$3:AY$102,2,FALSE))) -> 0
A3: =IF(Draw!E3=0,"",Draw!E3) -> 2 | B3: Kya Hodgdon | C3: Stillwater | D3: =IF($A3="","",SUM(F3:I3)-J3) -> 20.23016667 | E3: =IF($A3="","",RANK(D3,D$2:D$200)) -> 21 | F3: =IF($A3="","",'Fig 1 Ballet Leg'!H4) -> 4.888 | G3: =IF($A3="","",'Fig 2 Somersault, Back Tuck'!H4) -> 3.622666667 | H3: =IF($A3="","",'Fig 3 Somersault, Front Pike'!H4) -> 5.304 | I3: =IF($A3="","",'Fig 4 Optional'!H4) -> 6.4155 | J3: =IF($A3="","",'Fig 1 Ballet Leg'!I4+'Fig 2 Somersault, Back Tuck'!I4+'Fig 3 Somersault, Front Pike'!I4+'Fig 4 Optional'!I4) -> 0 | K3: =IF($A3="","",IF(A3="","",VLOOKUP(E3,AX$3:AY$102,2,FALSE))) -> 0 | AX3: 1 | AY3: 8
A4: =IF(Draw!E4=0,"",Draw!E4) -> 3 | B4: Khuluc Yang | C4: Stillwater | D4: 18.135 | E4: 24 | F4: =IF($A4="","",'Fig 1 Ballet Leg'!H5) -> 4.645333333 | G4: =IF($A4="","",'Fig 2 Somersault, Back Tuck'!H5) -> 3.622666667 | H4: =IF($A4="","",'Fig 3 Somersault, Front Pike'!H5) -> 5.525 | I4: =IF($A4="","",'Fig 4 Optional'!H5) -> 4.342 | J4: =IF($A4="","",'Fig 1 Ballet Leg'!I5+'Fig 2 Somersault, Back Tuck'!I5+'Fig 3 Somersault, Front Pike'!I5+'Fig 4 Optional'!I5) -> 0 | K4: 0 | AX4: 2 | AY4: 6
A5: =IF(Draw!E5=0,"",Draw!E5) -> 4 | B5: Bree Sheridan | C5: Stillwater | D5: =IF($A5="","",SUM(F5:I5)-J5) -> 21.385 | E5: =IF($A5="","",RANK(D5,D$2:D$200)) -> 13 | F5: =IF($A5="","",'Fig 1 Ballet Leg'!H6) -> 5.096 | G5: =IF($A5="","",'Fig 2 Somersault, Back Tuck'!H6) -> 3.7895 | H5: =IF($A5="","",'Fig 3 Somersault, Front Pike'!H6) -> 5.8565 | I5: =IF($A5="","",'Fig 4 Optional'!H6) -> 6.643 | J5: =IF($A5="","",'Fig 1 Ballet Leg'!I6+'Fig 2 Somersault, Back Tuck'!I6+'Fig 3 Somersault, Front Pike'!I6+'Fig 4 Optional'!I6) -> 0 | K5: =IF($A5="","",IF(A5="","",VLOOKUP(E5,AX$3:AY$102,2,FALSE))) -> 0 | AX5: 3 | AY5: 5
A6: =IF(Draw!E6=0,"",Draw!E6) -> 5 | B6: Hayley Heiss | C6: Osseo-Maple Grove | D6: 21.82483333 | E6: 10 | F6: =IF($A6="","",'Fig 1 Ballet Leg'!H7) -> 5.408 | G6: =IF($A6="","",'Fig 2 Somersault, Back Tuck'!H7) -> 3.7895 | H6: =IF($A6="","",'Fig 3 Somersault, Front Pike'!H7) -> 5.893333333 | I6: =IF($A6="","",'Fig 4 Optional'!H7) -> 6.734 | J6: =IF($A6="","",'Fig 1 Ballet Leg'!I7+'Fig 2 Somersault, Back Tuck'!I7+'Fig 3 Somersault, Front Pike'!I7+'Fig 4 Optional'!I7) -> 0 | K6: 0 | AX6: 4 | AY6: 4
A7: =IF(Draw!E7=0,"",Draw!E7) -> 6 | B7: Morgan Tope-Yates | C7: Stillwater | D7: 23.62966667 | E7: 1 | F7: =IF($A7="","",'Fig 1 Ballet Leg'!H8) -> 5.650666667 | G7: =IF($A7="","",'Fig 2 Somersault, Back Tuck'!H8) -> 3.861 | H7: =IF($A7="","",'Fig 3 Somersault, Front Pike'!H8) -> 6.5195 | I7: =IF($A7="","",'Fig 4 Optional'!H8) -> 7.5985 | J7: =IF($A7="","",'Fig 1 Ballet Leg'!I8+'Fig 2 Somersault, Back Tuck'!I8+'Fig 3 Somersault, Front Pike'!I8+'Fig 4 Optional'!I8) -> 0 | K7: 8 | AX7: 5 | AY7: 3
A8: =IF(Draw!E8=0,"",Draw!E8) -> 7 | B8: Margo Prentice | C8: Osseo-Maple Grove | D8: 21.34816667 | E8: 14 | F8: =IF($A8="","",'Fig 1 Ballet Leg'!H9) -> 5.304 | G8: =IF($A8="","",'Fig 2 Somersault, Back Tuck'!H9) -> 3.718 | H8: =IF($A8="","",'Fig 3 Somersault, Front Pike'!H9) -> 5.819666667 | I8: =IF($A8="","",'Fig 4 Optional'!H9) -> 6.5065 | J8: =IF($A8="","",'Fig 1 Ballet Leg'!I9+'Fig 2 Somersault, Back Tuck'!I9+'Fig 3 Somersault, Front Pike'!I9+'Fig 4 Optional'!I9) -> 0 | K8: 0 | AX8: 6 | AY8: 2
A9: =IF(Draw!E9=0,"",Draw!E9) -> 8 | B9: Emily Shanley | C9: Stillwater | D9: 20.45766667 | E9: 20 | F9: =IF($A9="","",'Fig 1 Ballet Leg'!H10) -> 5.373333333 | G9: =IF($A9="","",'Fig 2 Somersault, Back Tuck'!H10) -> 3.7895 | H9: =IF($A9="","",'Fig 3 Somersault, Front Pike'!H10) -> 5.561833333 | I9: =IF($A9="","",'Fig 4 Optional'!H10) -> 5.733 | J9: =IF($A9="","",'Fig 1 Ballet Leg'!I10+'Fig 2 Somersault, Back Tuck'!I10+'Fig 3 Somersault, Front Pike'!I10+'Fig 4 Optional'!I10) -> 0 | K9: 0 | AX9: 7 | AY9: 1
A10: =IF(Draw!E10=0,"",Draw!E10) -> 9 | B10: Zoe Waldron | C10: Osseo-Maple Grove | D10: 22.95583333 | E10: 5 | F10: =IF($A10="","",'Fig 1 Ballet Leg'!H11) -> 5.685333333 | G10: =IF($A10="","",'Fig 2 Somersault, Back Tuck'!H11) -> 3.837166667 | H10: =IF($A10="","",'Fig 3 Somersault, Front Pike'!H11) -> 6.335333333 | I10: =IF($A10="","",'Fig 4 Optional'!H11) -> 7.098 | J10: =IF($A10="","",'Fig 1 Ballet Leg'!I11+'Fig 2 Somersault, Back Tuck'!I11+'Fig 3 Somersault, Front Pike'!I11+'Fig 4 Optional'!I11) -> 0 | K10: 3 | AX10: 8 | AY10: 0
A11: =IF(Draw!E11=0,"",Draw!E11) -> 10 | B11: Ellery Mason | C11: Osseo-Maple Grove | D11: 22.05666667 | E11: 9 | F11: =IF($A11="","",'Fig 1 Ballet Leg'!H12) -> 5.477333333 | G11: =IF($A11="","",'Fig 2 Somersault, Back Tuck'!H12) -> 3.622666667 | H11: =IF($A11="","",'Fig 3 Somersault, Front Pike'!H12) -> 6.040666667 | I11: =IF($A11="","",'Fig 4 Optional'!H12) -> 6.916 | J11: =IF($A11="","",'Fig 1 Ballet Leg'!I12+'Fig 2 Somersault, Back Tuck'!I12+'Fig 3 Somersault, Front Pike'!I12+'Fig 4 Optional'!I12) -> 0 | K11: 0 | AX11: 9 | AY11: 0
A12: =IF(Draw!E12=0,"",Draw!E12) -> 11 | B12: Carolyn Wrightsman | C12: Stillwater | D12: 23.07716667 | E12: 4 | F12: =IF($A12="","",'Fig 1 Ballet Leg'!H13) -> 5.650666667 | G12: =IF($A12="","",'Fig 2 Somersault, Back Tuck'!H13) -> 4.051666667 | H12: =IF($A12="","",'Fig 3 Somersault, Front Pike'!H13) -> 6.003833333 | I12: =IF($A12="","",'Fig 4 Optional'!H13) -> 7.371 | J12: =IF($A12="","",'Fig 1 Ballet Leg'!I13+'Fig 2 Somersault, Back Tuck'!I13+'Fig 3 Somersault, Front Pike'!I13+'Fig 4 Optional'!I13) -> 0 | K12: 4 | AX12: 10 | AY12: 0
A13: =IF(Draw!E13=0,"",Draw!E13) -> 12 | B13: Hannah Dettmann | C13: Stillwater | D13: 23.1465 | E13: 3 | F13: =IF($A13="","",'Fig 1 Ballet Leg'!H14) -> 5.616 | G13: =IF($A13="","",'Fig 2 Somersault, Back Tuck'!H14) -> 3.956333333 | H13: =IF($A13="","",'Fig 3 Somersault, Front Pike'!H14) -> 5.930166667 | I13: =IF($A13="","",'Fig 4 Optional'!H14) -> 7.644 | J13: =IF($A13="","",'Fig 1 Ballet Leg'!I14+'Fig 2 Somersault, Back Tuck'!I14+'Fig 3 Somersault, Front Pike'!I14+'Fig 4 Optional'!I14) -> 0 | K13: 5 | AX13: 11 | AY13: 0
A14: =IF(Draw!E14=0,"",Draw!E14) -> 13 | B14: Grace Sneden | C14: Stillwater | D14: 22.3145 | E14: 7 | F14: =IF($A14="","",'Fig 1 Ballet Leg'!H15) -> 5.442666667 | G14: =IF($A14="","",'Fig 2 Somersault, Back Tuck'!H15) -> 4.099333333 | H14: =IF($A14="","",'Fig 3 Somersault, Front Pike'!H15) -> 5.8565 | I14: =IF($A14="","",'Fig 4 Optional'!H15) -> 6.916 | J14: =IF($A14="","",'Fig 1 Ballet Leg'!I15+'Fig 2 Somersault, Back Tuck'!I15+'Fig 3 Somersault, Front Pike'!I15+'Fig 4 Optional'!I15) -> 0 | K14: 1 | AX14: 12 | AY14: 0
A15: =IF(Draw!E15=0,"",Draw!E15) -> 14 | B15: Sophie Browning | C15: Stillwater | D15: 19.47183333 | E15: 23 | F15: =IF($A15="","",'Fig 1 Ballet Leg'!H16) -> 4.818666667 | G15: =IF($A15="","",'Fig 2 Somersault, Back Tuck'!H16) -> 3.575 | H15: =IF($A15="","",'Fig 3 Somersault, Front Pike'!H16) -> 4.935666667 | I15: =IF($A15="","",'Fig 4 Optional'!H16) -> 6.1425 | J15: =IF($A15="","",'Fig 1 Ballet Leg'!I16+'Fig 2 Somersault, Back Tuck'!I16+'Fig 3 Somersault, Front Pike'!I16+'Fig 4 Optional'!I16) -> 0 | K15: 0 | AX15: 13 | AY15: 0
A16: =IF(Draw!E16=0,"",Draw!E16) -> 15 | B16: Andrea Finholt | C16: Stillwater | D16: 21.5085 | E16: 12 | F16: =IF($A16="","",'Fig 1 Ballet Leg'!H17) -> 5.338666667 | G16: =IF($A16="","",'Fig 2 Somersault, Back Tuck'!H17) -> 3.813333333 | H16: =IF($A16="","",'Fig 3 Somersault, Front Pike'!H17) -> 5.304 | I16: =IF($A16="","",'Fig 4 Optional'!H17) -> 7.0525 | J16: =IF($A16="","",'Fig 1 Ballet Leg'!I17+'Fig 2 Somersault, Back Tuck'!I17+'Fig 3 Somersault, Front Pike'!I17+'Fig 4 Optional'!I17) -> 0 | K16: 0 | AX16: 14 | AY16: 0
A17: =IF(Draw!E17=0,"",Draw!E17) -> 16 | B17: Rachel Knox | C17: Osseo-Maple Grove | D17: 20.657 | E17: 19 | F17: =IF($A17="","",'Fig 1 Ballet Leg'!H18) -> 4.957333333 | G17: =IF($A17="","",'Fig 2 Somersault, Back Tuck'!H18) -> 3.432 | H17: =IF($A17="","",'Fig 3 Somersault, Front Pike'!H18) -> 5.488166667 | I17: =IF($A17="","",'Fig 4 Optional'!H18) -> 6.7795 | J17: =IF($A17="","",'Fig 1 Ballet Leg'!I18+'Fig 2 Somersault, Back Tuck'!I18+'Fig 3 Somersault, Front Pike'!I18+'Fig 4 Optional'!I18) -> 0 | K17: 0 | AX17: 15 | AY17: 0
A18: =IF(Draw!E18=0,"",Draw!E18) -> 17 | B18: Angelina Langford | C18: Stillwater | D18: 21.294 | E18: 15 | F18: =IF($A18="","",'Fig 1 Ballet Leg'!H19) -> 4.957333333 | G18: =IF($A18="","",'Fig 2 Somersault, Back Tuck'!H19) -> 3.527333333 | H18: =IF($A18="","",'Fig 3 Somersault, Front Pike'!H19) -> 5.893333333 | I18: =IF($A18="","",'Fig 4 Optional'!H19) -> 6.916 | J18: =IF($A18="","",'Fig 1 Ballet Leg'!I19+'Fig 2 Somersault, Back Tuck'!I19+'Fig 3 Somersault, Front Pike'!I19+'Fig 4 Optional'!I19) -> 0 | K18: 0 | AX18: 16 | AY18: 0
A19: =IF(Draw!E19=0,"",Draw!E19) -> 18 | B19: Rachel Duerr | C19: Stillwater | D19: 22.29066667 | E19: 8 | F19: =IF($A19="","",'Fig 1 Ballet Leg'!H20) -> 5.373333333 | G19: =IF($A19="","",'Fig 2 Somersault, Back Tuck'!H20) -> 3.598833333 | H19: =IF($A19="","",'Fig 3 Somersault, Front Pike'!H20) -> 5.8565 | I19: =IF($A19="","",'Fig 4 Optional'!H20) -> 7.462 | J19: =IF($A19="","",'Fig 1 Ballet Leg'!I20+'Fig 2 Somersault, Back Tuck'!I20+'Fig 3 Somersault, Front Pike'!I20+'Fig 4 Optional'!I20) -> 0 | K19: 0 | AX19: 17 | AY19: 0
A20: =IF(Draw!E20=0,"",Draw!E20) -> 19 | B20: Emma Sneden | C20: Stillwater | D20: 22.95366667 | E20: 6 | F20: =IF($A20="","",'Fig 1 Ballet Leg'!H21) -> 5.858666667 | G20: =IF($A20="","",'Fig 2 Somersault, Back Tuck'!H21) -> 4.004 | H20: =IF($A20="","",'Fig 3 Somersault, Front Pike'!H21) -> 5.8565 | I20: =IF($A20="","",'Fig 4 Optional'!H21) -> 7.2345 | J20: =IF($A20="","",'Fig 1 Ballet Leg'!I21+'Fig 2 Somersault, Back Tuck'!I21+'Fig 3 Somersault, Front Pike'!I21+'Fig 4 Optional'!I21) -> 0 | K20: 2 | AX20: 18 | AY20: 0
A21: =IF(Draw!E21=0,"",Draw!E21) -> 20 | B21: Laurel Bremer | C21: Stillwater | D21: 20.95383333 | E21: 16 | F21: =IF($A21="","",'Fig 1 Ballet Leg'!H22) -> 4.922666667 | G21: =IF($A21="","",'Fig 2 Somersault, Back Tuck'!H22) -> 3.861 | H21: =IF($A21="","",'Fig 3 Somersault, Front Pike'!H22) -> 5.709166667 | I21: =IF($A21="","",'Fig 4 Optional'!H22) -> 6.461 | J21: =IF($A21="","",'Fig 1 Ballet Leg'!I22+'Fig 2 Somersault, Back Tuck'!I22+'Fig 3 Somersault, Front Pike'!I22+'Fig 4 Optional'!I22) -> 0 | K21: 0 | AX21: 19 | AY21: 0
A22: =IF(Draw!E22=0,"",Draw!E22) -> 21 | B22: Katherine Hildebrandt | C22: Osseo-Maple Grove | D22: 20.73933333 | E22: 18 | F22: =IF($A22="","",'Fig 1 Ballet Leg'!H23) -> 4.992 | G22: =IF($A22="","",'Fig 2 Somersault, Back Tuck'!H23) -> 3.479666667 | H22: =IF($A22="","",'Fig 3 Somersault, Front Pike'!H23) -> 5.488166667 | I22: =IF($A22="","",'Fig 4 Optional'!H23) -> 6.7795 | J22: =IF($A22="","",'Fig 1 Ballet Leg'!I23+'Fig 2 Somersault, Back Tuck'!I23+'Fig 3 Somersault, Front Pike'!I23+'Fig 4 Optional'!I23) -> 0 | K22: 0 | AX22: 20 | AY22: 0
A23: =IF(Draw!E23=0,"",Draw!E23) -> 22 | B23: Mira Torzewski | C23: Stillwater | D23: 21.567 | E23: 11 | F23: =IF($A23="","",'Fig 1 Ballet Leg'!H24) -> 5.338666667 | G23: =IF($A23="","",'Fig 2 Somersault, Back Tuck'!H24) -> 3.813333333 | H23: =IF($A23="","",'Fig 3 Somersault, Front Pike'!H24) -> 5.6355 | I23: =IF($A23="","",'Fig 4 Optional'!H24) -> 6.7795 | J23: =IF($A23="","",'Fig 1 Ballet Leg'!I24+'Fig 2 Somersault, Back Tuck'!I24+'Fig 3 Somersault, Front Pike'!I24+'Fig 4 Optional'!I24) -> 0 | K23: 0 | AX23: 21 | AY23: 0
A24: =IF(Draw!E24=0,"",Draw!E24) -> 23 | B24: Anneke DeLooze | C24: Osseo-Maple Grove | D24: 18.11116667 | E24: 25 | F24: =IF($A24="","",'Fig 1 Ballet Leg'!H25) -> 4.125333333 | G24: =IF($A24="","",'Fig 2 Somersault, Back Tuck'!H25) -> 3.146 | H24: =IF($A24="","",'Fig 3 Somersault, Front Pike'!H25) -> 4.788333333 | I24: =IF($A24="","",'Fig 4 Optional'!H25) -> 6.0515 | J24: =IF($A24="","",'Fig 1 Ballet Leg'!I25+'Fig 2 Somersault, Back Tuck'!I25+'Fig 3 Somersault, Front Pike'!I25+'Fig 4 Optional'!I25) -> 0 | K24: 0 | AX24: 22 | AY24: 0
A25: =IF(Draw!E25=0,"",Draw!E25) -> 24 | B25: Rubie Ballantyne | C25: Stillwater | D25: 23.59066667 | E25: 2 | F25: =IF($A25="","",'Fig 1 Ballet Leg'!H26) -> 5.512 | G25: =IF($A25="","",'Fig 2 Somersault, Back Tuck'!H26) -> 4.099333333 | H25: =IF($A25="","",'Fig 3 Somersault, Front Pike'!H26) -> 6.335333333 | I25: =IF($A25="","",'Fig 4 Optional'!H26) -> 7.644 | J25: =IF($A25="","",'Fig 1 Ballet Leg'!I26+'Fig 2 Somersault, Back Tuck'!I26+'Fig 3 Somersault, Front Pike'!I26+'Fig 4 Optional'!I26) -> 0 | K25: 6 | AX25: 23 | AY25: 0
A26: =IF(Draw!E26=0,"",Draw!E26) -> 25 | B26: Madison Peters | C26: Osseo-Maple Grove | D26: 15.2945 | E26: 26 | F26: =IF($A26="","",'Fig 1 Ballet Leg'!H27) -> 4.818666667 | G26: =IF($A26="","",'Fig 2 Somersault, Back Tuck'!H27) -> 3.741833333 | H26: =IF($A26="","",'Fig 3 Somersault, Front Pike'!H27) -> 0 | I26: =IF($A26="","",'Fig 4 Optional'!H27) -> 6.734 | J26: =IF($A26="","",'Fig 1 Ballet Leg'!I27+'Fig 2 Somersault, Back Tuck'!I27+'Fig 3 Somersault, Front Pike'!I27+'Fig 4 Optional'!I27) -> 0 | K26: 0 | AX26: 24 | AY26: 0
A27: =IF(Draw!E27=0,"",Draw!E27) -> 26 | B27: Allison Hannan | C27: Osseo-Maple Grove | D27: 20.88883333 | E27: 17 | F27: =IF($A27="","",'Fig 1 Ballet Leg'!H28) -> 4.922666667 | G27: =IF($A27="","",'Fig 2 Somersault, Back Tuck'!H28) -> 3.622666667 | H27: =IF($A27="","",'Fig 3 Somersault, Front Pike'!H28) -> 5.746 | I27: =IF($A27="","",'Fig 4 Optional'!H28) -> 6.5975 | J27: =IF($A27="","",'Fig 1 Ballet Leg'!I28+'Fig 2 Somersault, Back Tuck'!I28+'Fig 3 Somersault, Front Pike'!I28+'Fig 4 Optional'!I28) -> 0 | K27: 0 | AX27: 25 | AY27: 0
A28: =IF(Draw!E28=0,"",Draw!E28) ->  | F28: =IF($A28="","",'Fig 1 Ballet Leg'!H29) ->  | G28: =IF($A28="","",'Fig 2 Somersault, Back Tuck'!H29) ->  | H28: =IF($A28="","",'Fig 3 Somersault, Front Pike'!H29) ->  | I28: =IF($A28="","",'Fig 4 Optional'!H29) ->  | J28: =IF($A28="","",'Fig 1 Ballet Leg'!I29+'Fig 2 Somersault, Back Tuck'!I29+'Fig 3 Somersault, Front Pike'!I29+'Fig 4 Optional'!I29) ->  | AX28: 26 | AY28: 0
A29: =IF(Draw!E29=0,"",Draw!E29) ->  | F29: =IF($A29="","",'Fig 1 Ballet Leg'!H30) ->  | G29: =IF($A29="","",'Fig 2 Somersault, Back Tuck'!H30) ->  | H29: =IF($A29="","",'Fig 3 Somersault, Front Pike'!H30) ->  | I29: =IF($A29="","",'Fig 4 Optional'!H30) ->  | J29: =IF($A29="","",'Fig 1 Ballet Leg'!I30+'Fig 2 Somersault, Back Tuck'!I30+'Fig 3 Somersault, Front Pike'!I30+'Fig 4 Optional'!I30) ->  | AX29: 27 | AY29: 0
A30: =IF(Draw!E30=0,"",Draw!E30) ->  | F30: =IF($A30="","",'Fig 1 Ballet Leg'!H31) ->  | G30: =IF($A30="","",'Fig 2 Somersault, Back Tuck'!H31) ->  | H30: =IF($A30="","",'Fig 3 Somersault, Front Pike'!H31) ->  | I30: =IF($A30="","",'Fig 4 Optional'!H31) ->  | J30: =IF($A30="","",'Fig 1 Ballet Leg'!I31+'Fig 2 Somersault, Back Tuck'!I31+'Fig 3 Somersault, Front Pike'!I31+'Fig 4 Optional'!I31) ->  | AX30: 28 | AY30: 0
A31: =IF(Draw!E31=0,"",Draw!E31) ->  | F31: =IF($A31="","",'Fig 1 Ballet Leg'!H32) ->  | G31: =IF($A31="","",'Fig 2 Somersault, Back Tuck'!H32) ->  | H31: =IF($A31="","",'Fig 3 Somersault, Front Pike'!H32) ->  | I31: =IF($A31="","",'Fig 4 Optional'!H32) ->  | J31: =IF($A31="","",'Fig 1 Ballet Leg'!I32+'Fig 2 Somersault, Back Tuck'!I32+'Fig 3 Somersault, Front Pike'!I32+'Fig 4 Optional'!I32) ->  | AX31: 29 | AY31: 0
A32: =IF(Draw!E32=0,"",Draw!E32) ->  | F32: =IF($A32="","",'Fig 1 Ballet Leg'!H33) ->  | G32: =IF($A32="","",'Fig 2 Somersault, Back Tuck'!H33) ->  | H32: =IF($A32="","",'Fig 3 Somersault, Front Pike'!H33) ->  | I32: =IF($A32="","",'Fig 4 Optional'!H33) ->  | J32: =IF($A32="","",'Fig 1 Ballet Leg'!I33+'Fig 2 Somersault, Back Tuck'!I33+'Fig 3 Somersault, Front Pike'!I33+'Fig 4 Optional'!I33) ->  | AX32: 30 | AY32: 0
A33: =IF(Draw!E33=0,"",Draw!E33) ->  | F33: =IF($A33="","",'Fig 1 Ballet Leg'!H34) ->  | G33: =IF($A33="","",'Fig 2 Somersault, Back Tuck'!H34) ->  | H33: =IF($A33="","",'Fig 3 Somersault, Front Pike'!H34) ->  | I33: =IF($A33="","",'Fig 4 Optional'!H34) ->  | J33: =IF($A33="","",'Fig 1 Ballet Leg'!I34+'Fig 2 Somersault, Back Tuck'!I34+'Fig 3 Somersault, Front Pike'!I34+'Fig 4 Optional'!I34) ->  | AX33: 31 | AY33: 0
A34: =IF(Draw!E34=0,"",Draw!E34) ->  | F34: =IF($A34="","",'Fig 1 Ballet Leg'!H35) ->  | G34: =IF($A34="","",'Fig 2 Somersault, Back Tuck'!H35) ->  | H34: =IF($A34="","",'Fig 3 Somersault, Front Pike'!H35) ->  | I34: =IF($A34="","",'Fig 4 Optional'!H35) ->  | J34: =IF($A34="","",'Fig 1 Ballet Leg'!I35+'Fig 2 Somersault, Back Tuck'!I35+'Fig 3 Somersault, Front Pike'!I35+'Fig 4 Optional'!I35) ->  | AX34: 32 | AY34: 0
A35: =IF(Draw!E35=0,"",Draw!E35) ->  | F35: =IF($A35="","",'Fig 1 Ballet Leg'!H36) ->  | G35: =IF($A35="","",'Fig 2 Somersault, Back Tuck'!H36) ->  | H35: =IF($A35="","",'Fig 3 Somersault, Front Pike'!H36) ->  | I35: =IF($A35="","",'Fig 4 Optional'!H36) ->  | J35: =IF($A35="","",'Fig 1 Ballet Leg'!I36+'Fig 2 Somersault, Back Tuck'!I36+'Fig 3 Somersault, Front Pike'!I36+'Fig 4 Optional'!I36) ->  | AX35: 33 | AY35: 0
A36: =IF(Draw!E36=0,"",Draw!E36) ->  | F36: =IF($A36="","",'Fig 1 Ballet Leg'!H37) ->  | G36: =IF($A36="","",'Fig 2 Somersault, Back Tuck'!H37) ->  | H36: =IF($A36="","",'Fig 3 Somersault, Front Pike'!H37) ->  | I36: =IF($A36="","",'Fig 4 Optional'!H37) ->  | J36: =IF($A36="","",'Fig 1 Ballet Leg'!I37+'Fig 2 Somersault, Back Tuck'!I37+'Fig 3 Somersault, Front Pike'!I37+'Fig 4 Optional'!I37) ->  | AX36: 34 | AY36: 0
A37: =IF(Draw!E37=0,"",Draw!E37) ->  | F37: =IF($A37="","",'Fig 1 Ballet Leg'!H38) ->  | G37: =IF($A37="","",'Fig 2 Somersault, Back Tuck'!H38) ->  | H37: =IF($A37="","",'Fig 3 Somersault, Front Pike'!H38) ->  | I37: =IF($A37="","",'Fig 4 Optional'!H38) ->  | J37: =IF($A37="","",'Fig 1 Ballet Leg'!I38+'Fig 2 Somersault, Back Tuck'!I38+'Fig 3 Somersault, Front Pike'!I38+'Fig 4 Optional'!I38) ->  | AX37: 35 | AY37: 0
A38: =IF(Draw!E38=0,"",Draw!E38) ->  | F38: =IF($A38="","",'Fig 1 Ballet Leg'!H39) ->  | G38: =IF($A38="","",'Fig 2 Somersault, Back Tuck'!H39) ->  | H38: =IF($A38="","",'Fig 3 Somersault, Front Pike'!H39) ->  | I38: =IF($A38="","",'Fig 4 Optional'!H39) ->  | J38: =IF($A38="","",'Fig 1 Ballet Leg'!I39+'Fig 2 Somersault, Back Tuck'!I39+'Fig 3 Somersault, Front Pike'!I39+'Fig 4 Optional'!I39) ->  | AX38: 36 | AY38: 0
A39: =IF(Draw!E39=0,"",Draw!E39) ->  | F39: =IF($A39="","",'Fig 1 Ballet Leg'!H40) ->  | G39: =IF($A39="","",'Fig 2 Somersault, Back Tuck'!H40) ->  | H39: =IF($A39="","",'Fig 3 Somersault, Front Pike'!H40) ->  | I39: =IF($A39="","",'Fig 4 Optional'!H40) ->  | J39: =IF($A39="","",'Fig 1 Ballet Leg'!I40+'Fig 2 Somersault, Back Tuck'!I40+'Fig 3 Somersault, Front Pike'!I40+'Fig 4 Optional'!I40) ->  | AX39: 37 | AY39: 0
A40: =IF(Draw!E40=0,"",Draw!E40) ->  | F40: =IF($A40="","",'Fig 1 Ballet Leg'!H41) ->  | G40: =IF($A40="","",'Fig 2 Somersault, Back Tuck'!H41) ->  | H40: =IF($A40="","",'Fig 3 Somersault, Front Pike'!H41) ->  | I40: =IF($A40="","",'Fig 4 Optional'!H41) ->  | J40: =IF($A40="","",'Fig 1 Ballet Leg'!I41+'Fig 2 Somersault, Back Tuck'!I41+'Fig 3 Somersault, Front Pike'!I41+'Fig 4 Optional'!I41) ->  | AX40: 38 | AY40: 0
A41: =IF(Draw!E41=0,"",Draw!E41) ->  | F41: =IF($A41="","",'Fig 1 Ballet Leg'!H42) ->  | G41: =IF($A41="","",'Fig 2 Somersault, Back Tuck'!H42) ->  | H41: =IF($A41="","",'Fig 3 Somersault, Front Pike'!H42) ->  | I41: =IF($A41="","",'Fig 4 Optional'!H42) ->  | J41: =IF($A41="","",'Fig 1 Ballet Leg'!I42+'Fig 2 Somersault, Back Tuck'!I42+'Fig 3 Somersault, Front Pike'!I42+'Fig 4 Optional'!I42) ->  | AX41: 39 | AY41: 0
A42: =IF(Draw!E42=0,"",Draw!E42) ->  | F42: =IF($A42="","",'Fig 1 Ballet Leg'!H43) ->  | G42: =IF($A42="","",'Fig 2 Somersault, Back Tuck'!H43) ->  | H42: =IF($A42="","",'Fig 3 Somersault, Front Pike'!H43) ->  | I42: =IF($A42="","",'Fig 4 Optional'!H43) ->  | J42: =IF($A42="","",'Fig 1 Ballet Leg'!I43+'Fig 2 Somersault, Back Tuck'!I43+'Fig 3 Somersault, Front Pike'!I43+'Fig 4 Optional'!I43) ->  | AX42: 40 | AY42: 0
A43: =IF(Draw!E43=0,"",Draw!E43) ->  | F43: =IF($A43="","",'Fig 1 Ballet Leg'!H44) ->  | G43: =IF($A43="","",'Fig 2 Somersault, Back Tuck'!H44) ->  | H43: =IF($A43="","",'Fig 3 Somersault, Front Pike'!H44) ->  | I43: =IF($A43="","",'Fig 4 Optional'!H44) ->  | J43: =IF($A43="","",'Fig 1 Ballet Leg'!I44+'Fig 2 Somersault, Back Tuck'!I44+'Fig 3 Somersault, Front Pike'!I44+'Fig 4 Optional'!I44) ->  | AX43: 41 | AY43: 0
A44: =IF(Draw!E44=0,"",Draw!E44) ->  | F44: =IF($A44="","",'Fig 1 Ballet Leg'!H45) ->  | G44: =IF($A44="","",'Fig 2 Somersault, Back Tuck'!H45) ->  | H44: =IF($A44="","",'Fig 3 Somersault, Front Pike'!H45) ->  | I44: =IF($A44="","",'Fig 4 Optional'!H45) ->  | J44: =IF($A44="","",'Fig 1 Ballet Leg'!I45+'Fig 2 Somersault, Back Tuck'!I45+'Fig 3 Somersault, Front Pike'!I45+'Fig 4 Optional'!I45) ->  | AX44: 42 | AY44: 0
A45: =IF(Draw!E45=0,"",Draw!E45) ->  | F45: =IF($A45="","",'Fig 1 Ballet Leg'!H46) ->  | G45: =IF($A45="","",'Fig 2 Somersault, Back Tuck'!H46) ->  | H45: =IF($A45="","",'Fig 3 Somersault, Front Pike'!H46) ->  | I45: =IF($A45="","",'Fig 4 Optional'!H46) ->  | J45: =IF($A45="","",'Fig 1 Ballet Leg'!I46+'Fig 2 Somersault, Back Tuck'!I46+'Fig 3 Somersault, Front Pike'!I46+'Fig 4 Optional'!I46) ->  | AX45: 43 | AY45: 0
A46: =IF(Draw!E46=0,"",Draw!E46) ->  | F46: =IF($A46="","",'Fig 1 Ballet Leg'!H47) ->  | G46: =IF($A46="","",'Fig 2 Somersault, Back Tuck'!H47) ->  | H46: =IF($A46="","",'Fig 3 Somersault, Front Pike'!H47) ->  | I46: =IF($A46="","",'Fig 4 Optional'!H47) ->  | J46: =IF($A46="","",'Fig 1 Ballet Leg'!I47+'Fig 2 Somersault, Back Tuck'!I47+'Fig 3 Somersault, Front Pike'!I47+'Fig 4 Optional'!I47) ->  | AX46: 44 | AY46: 0
A47: =IF(Draw!E47=0,"",Draw!E47) ->  | F47: =IF($A47="","",'Fig 1 Ballet Leg'!H48) ->  | G47: =IF($A47="","",'Fig 2 Somersault, Back Tuck'!H48) ->  | H47: =IF($A47="","",'Fig 3 Somersault, Front Pike'!H48) ->  | I47: =IF($A47="","",'Fig 4 Optional'!H48) ->  | J47: =IF($A47="","",'Fig 1 Ballet Leg'!I48+'Fig 2 Somersault, Back Tuck'!I48+'Fig 3 Somersault, Front Pike'!I48+'Fig 4 Optional'!I48) ->  | AX47: 45 | AY47: 0
A48: =IF(Draw!E48=0,"",Draw!E48) ->  | F48: =IF($A48="","",'Fig 1 Ballet Leg'!H49) ->  | G48: =IF($A48="","",'Fig 2 Somersault, Back Tuck'!H49) ->  | H48: =IF($A48="","",'Fig 3 Somersault, Front Pike'!H49) ->  | I48: =IF($A48="","",'Fig 4 Optional'!H49) ->  | J48: =IF($A48="","",'Fig 1 Ballet Leg'!I49+'Fig 2 Somersault, Back Tuck'!I49+'Fig 3 Somersault, Front Pike'!I49+'Fig 4 Optional'!I49) ->  | AX48: 46 | AY48: 0
A49: =IF(Draw!E49=0,"",Draw!E49) ->  | F49: =IF($A49="","",'Fig 1 Ballet Leg'!H50) ->  | G49: =IF($A49="","",'Fig 2 Somersault, Back Tuck'!H50) ->  | H49: =IF($A49="","",'Fig 3 Somersault, Front Pike'!H50) ->  | I49: =IF($A49="","",'Fig 4 Optional'!H50) ->  | J49: =IF($A49="","",'Fig 1 Ballet Leg'!I50+'Fig 2 Somersault, Back Tuck'!I50+'Fig 3 Somersault, Front Pike'!I50+'Fig 4 Optional'!I50) ->  | AX49: 47 | AY49: 0
A50: =IF(Draw!E50=0,"",Draw!E50) ->  | F50: =IF($A50="","",'Fig 1 Ballet Leg'!H51) ->  | G50: =IF($A50="","",'Fig 2 Somersault, Back Tuck'!H51) ->  | H50: =IF($A50="","",'Fig 3 Somersault, Front Pike'!H51) ->  | I50: =IF($A50="","",'Fig 4 Optional'!H51) ->  | J50: =IF($A50="","",'Fig 1 Ballet Leg'!I51+'Fig 2 Somersault, Back Tuck'!I51+'Fig 3 Somersault, Front Pike'!I51+'Fig 4 Optional'!I51) ->  | AX50: 48 | AY50: 0
A51: =IF(Draw!E51=0,"",Draw!E51) ->  | F51: =IF($A51="","",'Fig 1 Ballet Leg'!H52) ->  | G51: =IF($A51="","",'Fig 2 Somersault, Back Tuck'!H52) ->  | H51: =IF($A51="","",'Fig 3 Somersault, Front Pike'!H52) ->  | I51: =IF($A51="","",'Fig 4 Optional'!H52) ->  | J51: =IF($A51="","",'Fig 1 Ballet Leg'!I52+'Fig 2 Somersault, Back Tuck'!I52+'Fig 3 Somersault, Front Pike'!I52+'Fig 4 Optional'!I52) ->  | AX51: 49 | AY51: 0
A52: =IF(Draw!E52=0,"",Draw!E52) ->  | F52: =IF($A52="","",'Fig 1 Ballet Leg'!H53) ->  | G52: =IF($A52="","",'Fig 2 Somersault, Back Tuck'!H53) ->  | H52: =IF($A52="","",'Fig 3 Somersault, Front Pike'!H53) ->  | I52: =IF($A52="","",'Fig 4 Optional'!H53) ->  | J52: =IF($A52="","",'Fig 1 Ballet Leg'!I53+'Fig 2 Somersault, Back Tuck'!I53+'Fig 3 Somersault, Front Pike'!I53+'Fig 4 Optional'!I53) ->  | AX52: 50 | AY52: 0
A53: =IF(Draw!E53=0,"",Draw!E53) ->  | F53: =IF($A53="","",'Fig 1 Ballet Leg'!H54) ->  | G53: =IF($A53="","",'Fig 2 Somersault, Back Tuck'!H54) ->  | H53: =IF($A53="","",'Fig 3 Somersault, Front Pike'!H54) ->  | I53: =IF($A53="","",'Fig 4 Optional'!H54) ->  | J53: =IF($A53="","",'Fig 1 Ballet Leg'!I54+'Fig 2 Somersault, Back Tuck'!I54+'Fig 3 Somersault, Front Pike'!I54+'Fig 4 Optional'!I54) ->  | AX53: 51 | AY53: 0
A54: =IF(Draw!E54=0,"",Draw!E54) ->  | F54: =IF($A54="","",'Fig 1 Ballet Leg'!H55) ->  | G54: =IF($A54="","",'Fig 2 Somersault, Back Tuck'!H55) ->  | H54: =IF($A54="","",'Fig 3 Somersault, Front Pike'!H55) ->  | I54: =IF($A54="","",'Fig 4 Optional'!H55) ->  | J54: =IF($A54="","",'Fig 1 Ballet Leg'!I55+'Fig 2 Somersault, Back Tuck'!I55+'Fig 3 Somersault, Front Pike'!I55+'Fig 4 Optional'!I55) ->  | AX54: 52 | AY54: 0
A55: =IF(Draw!E55=0,"",Draw!E55) ->  | F55: =IF($A55="","",'Fig 1 Ballet Leg'!H56) ->  | G55: =IF($A55="","",'Fig 2 Somersault, Back Tuck'!H56) ->  | H55: =IF($A55="","",'Fig 3 Somersault, Front Pike'!H56) ->  | I55: =IF($A55="","",'Fig 4 Optional'!H56) ->  | J55: =IF($A55="","",'Fig 1 Ballet Leg'!I56+'Fig 2 Somersault, Back Tuck'!I56+'Fig 3 Somersault, Front Pike'!I56+'Fig 4 Optional'!I56) ->  | AX55: 53 | AY55: 0
A56: =IF(Draw!E56=0,"",Draw!E56) ->  | F56: =IF($A56="","",'Fig 1 Ballet Leg'!H57) ->  | G56: =IF($A56="","",'Fig 2 Somersault, Back Tuck'!H57) ->  | H56: =IF($A56="","",'Fig 3 Somersault, Front Pike'!H57) ->  | I56: =IF($A56="","",'Fig 4 Optional'!H57) ->  | J56: =IF($A56="","",'Fig 1 Ballet Leg'!I57+'Fig 2 Somersault, Back Tuck'!I57+'Fig 3 Somersault, Front Pike'!I57+'Fig 4 Optional'!I57) ->  | AX56: 54 | AY56: 0
A57: =IF(Draw!E57=0,"",Draw!E57) ->  | F57: =IF($A57="","",'Fig 1 Ballet Leg'!H58) ->  | G57: =IF($A57="","",'Fig 2 Somersault, Back Tuck'!H58) ->  | H57: =IF($A57="","",'Fig 3 Somersault, Front Pike'!H58) ->  | I57: =IF($A57="","",'Fig 4 Optional'!H58) ->  | J57: =IF($A57="","",'Fig 1 Ballet Leg'!I58+'Fig 2 Somersault, Back Tuck'!I58+'Fig 3 Somersault, Front Pike'!I58+'Fig 4 Optional'!I58) ->  | AX57: 55 | AY57: 0
A58: =IF(Draw!E58=0,"",Draw!E58) ->  | F58: =IF($A58="","",'Fig 1 Ballet Leg'!H59) ->  | G58: =IF($A58="","",'Fig 2 Somersault, Back Tuck'!H59) ->  | H58: =IF($A58="","",'Fig 3 Somersault, Front Pike'!H59) ->  | I58: =IF($A58="","",'Fig 4 Optional'!H59) ->  | J58: =IF($A58="","",'Fig 1 Ballet Leg'!I59+'Fig 2 Somersault, Back Tuck'!I59+'Fig 3 Somersault, Front Pike'!I59+'Fig 4 Optional'!I59) ->  | AX58: 56 | AY58: 0
A59: =IF(Draw!E59=0,"",Draw!E59) ->  | F59: =IF($A59="","",'Fig 1 Ballet Leg'!H60) ->  | G59: =IF($A59="","",'Fig 2 Somersault, Back Tuck'!H60) ->  | H59: =IF($A59="","",'Fig 3 Somersault, Front Pike'!H60) ->  | I59: =IF($A59="","",'Fig 4 Optional'!H60) ->  | J59: =IF($A59="","",'Fig 1 Ballet Leg'!I60+'Fig 2 Somersault, Back Tuck'!I60+'Fig 3 Somersault, Front Pike'!I60+'Fig 4 Optional'!I60) ->  | AX59: 57 | AY59: 0
A60: =IF(Draw!E60=0,"",Draw!E60) ->  | F60: =IF($A60="","",'Fig 1 Ballet Leg'!H61) ->  | G60: =IF($A60="","",'Fig 2 Somersault, Back Tuck'!H61) ->  | H60: =IF($A60="","",'Fig 3 Somersault, Front Pike'!H61) ->  | I60: =IF($A60="","",'Fig 4 Optional'!H61) ->  | J60: =IF($A60="","",'Fig 1 Ballet Leg'!I61+'Fig 2 Somersault, Back Tuck'!I61+'Fig 3 Somersault, Front Pike'!I61+'Fig 4 Optional'!I61) ->  | AX60: 58 | AY60: 0
A61: =IF(Draw!E61=0,"",Draw!E61) ->  | F61: =IF($A61="","",'Fig 1 Ballet Leg'!H62) ->  | G61: =IF($A61="","",'Fig 2 Somersault, Back Tuck'!H62) ->  | H61: =IF($A61="","",'Fig 3 Somersault, Front Pike'!H62) ->  | I61: =IF($A61="","",'Fig 4 Optional'!H62) ->  | J61: =IF($A61="","",'Fig 1 Ballet Leg'!I62+'Fig 2 Somersault, Back Tuck'!I62+'Fig 3 Somersault, Front Pike'!I62+'Fig 4 Optional'!I62) ->  | AX61: 59 | AY61: 0
A62: =IF(Draw!E62=0,"",Draw!E62) ->  | F62: =IF($A62="","",'Fig 1 Ballet Leg'!H63) ->  | G62: =IF($A62="","",'Fig 2 Somersault, Back Tuck'!H63) ->  | H62: =IF($A62="","",'Fig 3 Somersault, Front Pike'!H63) ->  | I62: =IF($A62="","",'Fig 4 Optional'!H63) ->  | J62: =IF($A62="","",'Fig 1 Ballet Leg'!I63+'Fig 2 Somersault, Back Tuck'!I63+'Fig 3 Somersault, Front Pike'!I63+'Fig 4 Optional'!I63) ->  | AX62: 60 | AY62: 0
A63: =IF(Draw!E63=0,"",Draw!E63) ->  | F63: =IF($A63="","",'Fig 1 Ballet Leg'!H64) ->  | G63: =IF($A63="","",'Fig 2 Somersault, Back Tuck'!H64) ->  | H63: =IF($A63="","",'Fig 3 Somersault, Front Pike'!H64) ->  | I63: =IF($A63="","",'Fig 4 Optional'!H64) ->  | J63: =IF($A63="","",'Fig 1 Ballet Leg'!I64+'Fig 2 Somersault, Back Tuck'!I64+'Fig 3 Somersault, Front Pike'!I64+'Fig 4 Optional'!I64) ->  | AX63: 61 | AY63: 0
A64: =IF(Draw!E64=0,"",Draw!E64) ->  | F64: =IF($A64="","",'Fig 1 Ballet Leg'!H65) ->  | G64: =IF($A64="","",'Fig 2 Somersault, Back Tuck'!H65) ->  | H64: =IF($A64="","",'Fig 3 Somersault, Front Pike'!H65) ->  | I64: =IF($A64="","",'Fig 4 Optional'!H65) ->  | J64: =IF($A64="","",'Fig 1 Ballet Leg'!I65+'Fig 2 Somersault, Back Tuck'!I65+'Fig 3 Somersault, Front Pike'!I65+'Fig 4 Optional'!I65) ->  | AX64: 62 | AY64: 0
A65: =IF(Draw!E65=0,"",Draw!E65) ->  | F65: =IF($A65="","",'Fig 1 Ballet Leg'!H66) ->  | G65: =IF($A65="","",'Fig 2 Somersault, Back Tuck'!H66) ->  | H65: =IF($A65="","",'Fig 3 Somersault, Front Pike'!H66) ->  | I65: =IF($A65="","",'Fig 4 Optional'!H66) ->  | J65: =IF($A65="","",'Fig 1 Ballet Leg'!I66+'Fig 2 Somersault, Back Tuck'!I66+'Fig 3 Somersault, Front Pike'!I66+'Fig 4 Optional'!I66) ->  | AX65: 63 | AY65: 0
A66: =IF(Draw!E66=0,"",Draw!E66) ->  | F66: =IF($A66="","",'Fig 1 Ballet Leg'!H67) ->  | G66: =IF($A66="","",'Fig 2 Somersault, Back Tuck'!H67) ->  | H66: =IF($A66="","",'Fig 3 Somersault, Front Pike'!H67) ->  | I66: =IF($A66="","",'Fig 4 Optional'!H67) ->  | J66: =IF($A66="","",'Fig 1 Ballet Leg'!I67+'Fig 2 Somersault, Back Tuck'!I67+'Fig 3 Somersault, Front Pike'!I67+'Fig 4 Optional'!I67) ->  | AX66: 64 | AY66: 0
A67: =IF(Draw!E67=0,"",Draw!E67) ->  | F67: =IF($A67="","",'Fig 1 Ballet Leg'!H68) ->  | G67: =IF($A67="","",'Fig 2 Somersault, Back Tuck'!H68) ->  | H67: =IF($A67="","",'Fig 3 Somersault, Front Pike'!H68) ->  | I67: =IF($A67="","",'Fig 4 Optional'!H68) ->  | J67: =IF($A67="","",'Fig 1 Ballet Leg'!I68+'Fig 2 Somersault, Back Tuck'!I68+'Fig 3 Somersault, Front Pike'!I68+'Fig 4 Optional'!I68) ->  | AX67: 65 | AY67: 0
A68: =IF(Draw!E68=0,"",Draw!E68) ->  | F68: =IF($A68="","",'Fig 1 Ballet Leg'!H69) ->  | G68: =IF($A68="","",'Fig 2 Somersault, Back Tuck'!H69) ->  | H68: =IF($A68="","",'Fig 3 Somersault, Front Pike'!H69) ->  | I68: =IF($A68="","",'Fig 4 Optional'!H69) ->  | J68: =IF($A68="","",'Fig 1 Ballet Leg'!I69+'Fig 2 Somersault, Back Tuck'!I69+'Fig 3 Somersault, Front Pike'!I69+'Fig 4 Optional'!I69) ->  | AX68: 66 | AY68: 0
A69: =IF(Draw!E69=0,"",Draw!E69) ->  | D69: =IF($A69="","",SUM(F69:I69)-J69) ->  | E69: =IF($A69="","",RANK(D69,D$2:D$200)) ->  | F69: =IF($A69="","",'Fig 1 Ballet Leg'!H70) ->  | G69: =IF($A69="","",'Fig 2 Somersault, Back Tuck'!H70) ->  | H69: =IF($A69="","",'Fig 3 Somersault, Front Pike'!H70) ->  | I69: =IF($A69="","",'Fig 4 Optional'!H70) ->  | J69: =IF($A69="","",'Fig 1 Ballet Leg'!I70+'Fig 2 Somersault, Back Tuck'!I70+'Fig 3 Somersault, Front Pike'!I70+'Fig 4 Optional'!I70) ->  | K69: =IF($A69="","",IF(A69="","",VLOOKUP(E69,AX$3:AY$102,2,FALSE))) ->  | AX69: 67 | AY69: 0
A70: =IF(Draw!E70=0,"",Draw!E70) ->  | F70: =IF($A70="","",'Fig 1 Ballet Leg'!H71) ->  | G70: =IF($A70="","",'Fig 2 Somersault, Back Tuck'!H71) ->  | H70: =IF($A70="","",'Fig 3 Somersault, Front Pike'!H71) ->  | I70: =IF($A70="","",'Fig 4 Optional'!H71) ->  | J70: =IF($A70="","",'Fig 1 Ballet Leg'!I71+'Fig 2 Somersault, Back Tuck'!I71+'Fig 3 Somersault, Front Pike'!I71+'Fig 4 Optional'!I71) ->  | AX70: 68 | AY70: 0
A71: =IF(Draw!E71=0,"",Draw!E71) ->  | F71: =IF($A71="","",'Fig 1 Ballet Leg'!H72) ->  | G71: =IF($A71="","",'Fig 2 Somersault, Back Tuck'!H72) ->  | H71: =IF($A71="","",'Fig 3 Somersault, Front Pike'!H72) ->  | I71: =IF($A71="","",'Fig 4 Optional'!H72) ->  | J71: =IF($A71="","",'Fig 1 Ballet Leg'!I72+'Fig 2 Somersault, Back Tuck'!I72+'Fig 3 Somersault, Front Pike'!I72+'Fig 4 Optional'!I72) ->  | AX71: 69 | AY71: 0
A72: =IF(Draw!E72=0,"",Draw!E72) ->  | F72: =IF($A72="","",'Fig 1 Ballet Leg'!H73) ->  | G72: =IF($A72="","",'Fig 2 Somersault, Back Tuck'!H73) ->  | H72: =IF($A72="","",'Fig 3 Somersault, Front Pike'!H73) ->  | I72: =IF($A72="","",'Fig 4 Optional'!H73) ->  | J72: =IF($A72="","",'Fig 1 Ballet Leg'!I73+'Fig 2 Somersault, Back Tuck'!I73+'Fig 3 Somersault, Front Pike'!I73+'Fig 4 Optional'!I73) ->  | AX72: 70 | AY72: 0
A73: =IF(Draw!E73=0,"",Draw!E73) ->  | F73: =IF($A73="","",'Fig 1 Ballet Leg'!H74) ->  | G73: =IF($A73="","",'Fig 2 Somersault, Back Tuck'!H74) ->  | H73: =IF($A73="","",'Fig 3 Somersault, Front Pike'!H74) ->  | I73: =IF($A73="","",'Fig 4 Optional'!H74) ->  | J73: =IF($A73="","",'Fig 1 Ballet Leg'!I74+'Fig 2 Somersault, Back Tuck'!I74+'Fig 3 Somersault, Front Pike'!I74+'Fig 4 Optional'!I74) ->  | AX73: 71 | AY73: 0
A74: =IF(Draw!E74=0,"",Draw!E74) ->  | F74: =IF($A74="","",'Fig 1 Ballet Leg'!H75) ->  | G74: =IF($A74="","",'Fig 2 Somersault, Back Tuck'!H75) ->  | H74: =IF($A74="","",'Fig 3 Somersault, Front Pike'!H75) ->  | I74: =IF($A74="","",'Fig 4 Optional'!H75) ->  | J74: =IF($A74="","",'Fig 1 Ballet Leg'!I75+'Fig 2 Somersault, Back Tuck'!I75+'Fig 3 Somersault, Front Pike'!I75+'Fig 4 Optional'!I75) ->  | AX74: 72 | AY74: 0
A75: =IF(Draw!E75=0,"",Draw!E75) ->  | F75: =IF($A75="","",'Fig 1 Ballet Leg'!H76) ->  | G75: =IF($A75="","",'Fig 2 Somersault, Back Tuck'!H76) ->  | H75: =IF($A75="","",'Fig 3 Somersault, Front Pike'!H76) ->  | I75: =IF($A75="","",'Fig 4 Optional'!H76) ->  | J75: =IF($A75="","",'Fig 1 Ballet Leg'!I76+'Fig 2 Somersault, Back Tuck'!I76+'Fig 3 Somersault, Front Pike'!I76+'Fig 4 Optional'!I76) ->  | AX75: 73 | AY75: 0
A76: =IF(Draw!E76=0,"",Draw!E76) ->  | F76: =IF($A76="","",'Fig 1 Ballet Leg'!H77) ->  | G76: =IF($A76="","",'Fig 2 Somersault, Back Tuck'!H77) ->  | H76: =IF($A76="","",'Fig 3 Somersault, Front Pike'!H77) ->  | I76: =IF($A76="","",'Fig 4 Optional'!H77) ->  | J76: =IF($A76="","",'Fig 1 Ballet Leg'!I77+'Fig 2 Somersault, Back Tuck'!I77+'Fig 3 Somersault, Front Pike'!I77+'Fig 4 Optional'!I77) ->  | AX76: 74 | AY76: 0
A77: =IF(Draw!E77=0,"",Draw!E77) ->  | F77: =IF($A77="","",'Fig 1 Ballet Leg'!H78) ->  | G77: =IF($A77="","",'Fig 2 Somersault, Back Tuck'!H78) ->  | H77: =IF($A77="","",'Fig 3 Somersault, Front Pike'!H78) ->  | I77: =IF($A77="","",'Fig 4 Optional'!H78) ->  | J77: =IF($A77="","",'Fig 1 Ballet Leg'!I78+'Fig 2 Somersault, Back Tuck'!I78+'Fig 3 Somersault, Front Pike'!I78+'Fig 4 Optional'!I78) ->  | AX77: 75 | AY77: 0
A78: =IF(Draw!E78=0,"",Draw!E78) ->  | F78: =IF($A78="","",'Fig 1 Ballet Leg'!H79) ->  | G78: =IF($A78="","",'Fig 2 Somersault, Back Tuck'!H79) ->  | H78: =IF($A78="","",'Fig 3 Somersault, Front Pike'!H79) ->  | I78: =IF($A78="","",'Fig 4 Optional'!H79) ->  | J78: =IF($A78="","",'Fig 1 Ballet Leg'!I79+'Fig 2 Somersault, Back Tuck'!I79+'Fig 3 Somersault, Front Pike'!I79+'Fig 4 Optional'!I79) ->  | AX78: 76 | AY78: 0
A79: =IF(Draw!E79=0,"",Draw!E79) ->  | F79: =IF($A79="","",'Fig 1 Ballet Leg'!H80) ->  | G79: =IF($A79="","",'Fig 2 Somersault, Back Tuck'!H80) ->  | H79: =IF($A79="","",'Fig 3 Somersault, Front Pike'!H80) ->  | I79: =IF($A79="","",'Fig 4 Optional'!H80) ->  | J79: =IF($A79="","",'Fig 1 Ballet Leg'!I80+'Fig 2 Somersault, Back Tuck'!I80+'Fig 3 Somersault, Front Pike'!I80+'Fig 4 Optional'!I80) ->  | AX79: 77 | AY79: 0
A80: =IF(Draw!E80=0,"",Draw!E80) ->  | F80: =IF($A80="","",'Fig 1 Ballet Leg'!H81) ->  | G80: =IF($A80="","",'Fig 2 Somersault, Back Tuck'!H81) ->  | H80: =IF($A80="","",'Fig 3 Somersault, Front Pike'!H81) ->  | I80: =IF($A80="","",'Fig 4 Optional'!H81) ->  | J80: =IF($A80="","",'Fig 1 Ballet Leg'!I81+'Fig 2 Somersault, Back Tuck'!I81+'Fig 3 Somersault, Front Pike'!I81+'Fig 4 Optional'!I81) ->  | AX80: 78 | AY80: 0
A81: =IF(Draw!E81=0,"",Draw!E81) ->  | F81: =IF($A81="","",'Fig 1 Ballet Leg'!H82) ->  | G81: =IF($A81="","",'Fig 2 Somersault, Back Tuck'!H82) ->  | H81: =IF($A81="","",'Fig 3 Somersault, Front Pike'!H82) ->  | I81: =IF($A81="","",'Fig 4 Optional'!H82) ->  | J81: =IF($A81="","",'Fig 1 Ballet Leg'!I82+'Fig 2 Somersault, Back Tuck'!I82+'Fig 3 Somersault, Front Pike'!I82+'Fig 4 Optional'!I82) ->  | AX81: 79 | AY81: 0
A82: =IF(Draw!E82=0,"",Draw!E82) ->  | F82: =IF($A82="","",'Fig 1 Ballet Leg'!H83) ->  | G82: =IF($A82="","",'Fig 2 Somersault, Back Tuck'!H83) ->  | H82: =IF($A82="","",'Fig 3 Somersault, Front Pike'!H83) ->  | I82: =IF($A82="","",'Fig 4 Optional'!H83) ->  | J82: =IF($A82="","",'Fig 1 Ballet Leg'!I83+'Fig 2 Somersault, Back Tuck'!I83+'Fig 3 Somersault, Front Pike'!I83+'Fig 4 Optional'!I83) ->  | AX82: 80 | AY82: 0
A83: =IF(Draw!E83=0,"",Draw!E83) ->  | F83: =IF($A83="","",'Fig 1 Ballet Leg'!H84) ->  | G83: =IF($A83="","",'Fig 2 Somersault, Back Tuck'!H84) ->  | H83: =IF($A83="","",'Fig 3 Somersault, Front Pike'!H84) ->  | I83: =IF($A83="","",'Fig 4 Optional'!H84) ->  | J83: =IF($A83="","",'Fig 1 Ballet Leg'!I84+'Fig 2 Somersault, Back Tuck'!I84+'Fig 3 Somersault, Front Pike'!I84+'Fig 4 Optional'!I84) ->  | AX83: 81 | AY83: 0
A84: =IF(Draw!E84=0,"",Draw!E84) ->  | F84: =IF($A84="","",'Fig 1 Ballet Leg'!H85) ->  | G84: =IF($A84="","",'Fig 2 Somersault, Back Tuck'!H85) ->  | H84: =IF($A84="","",'Fig 3 Somersault, Front Pike'!H85) ->  | I84: =IF($A84="","",'Fig 4 Optional'!H85) ->  | J84: =IF($A84="","",'Fig 1 Ballet Leg'!I85+'Fig 2 Somersault, Back Tuck'!I85+'Fig 3 Somersault, Front Pike'!I85+'Fig 4 Optional'!I85) ->  | AX84: 82 | AY84: 0
A85: =IF(Draw!E85=0,"",Draw!E85) ->  | F85: =IF($A85="","",'Fig 1 Ballet Leg'!H86) ->  | G85: =IF($A85="","",'Fig 2 Somersault, Back Tuck'!H86) ->  | H85: =IF($A85="","",'Fig 3 Somersault, Front Pike'!H86) ->  | I85: =IF($A85="","",'Fig 4 Optional'!H86) ->  | J85: =IF($A85="","",'Fig 1 Ballet Leg'!I86+'Fig 2 Somersault, Back Tuck'!I86+'Fig 3 Somersault, Front Pike'!I86+'Fig 4 Optional'!I86) ->  | AX85: 83 | AY85: 0
A86: =IF(Draw!E86=0,"",Draw!E86) ->  | F86: =IF($A86="","",'Fig 1 Ballet Leg'!H87) ->  | G86: =IF($A86="","",'Fig 2 Somersault, Back Tuck'!H87) ->  | H86: =IF($A86="","",'Fig 3 Somersault, Front Pike'!H87) ->  | I86: =IF($A86="","",'Fig 4 Optional'!H87) ->  | J86: =IF($A86="","",'Fig 1 Ballet Leg'!I87+'Fig 2 Somersault, Back Tuck'!I87+'Fig 3 Somersault, Front Pike'!I87+'Fig 4 Optional'!I87) ->  | AX86: 84 | AY86: 0
A87: =IF(Draw!E87=0,"",Draw!E87) ->  | F87: =IF($A87="","",'Fig 1 Ballet Leg'!H88) ->  | G87: =IF($A87="","",'Fig 2 Somersault, Back Tuck'!H88) ->  | H87: =IF($A87="","",'Fig 3 Somersault, Front Pike'!H88) ->  | I87: =IF($A87="","",'Fig 4 Optional'!H88) ->  | J87: =IF($A87="","",'Fig 1 Ballet Leg'!I88+'Fig 2 Somersault, Back Tuck'!I88+'Fig 3 Somersault, Front Pike'!I88+'Fig 4 Optional'!I88) ->  | AX87: 85 | AY87: 0
A88: =IF(Draw!E88=0,"",Draw!E88) ->  | F88: =IF($A88="","",'Fig 1 Ballet Leg'!H89) ->  | G88: =IF($A88="","",'Fig 2 Somersault, Back Tuck'!H89) ->  | H88: =IF($A88="","",'Fig 3 Somersault, Front Pike'!H89) ->  | I88: =IF($A88="","",'Fig 4 Optional'!H89) ->  | J88: =IF($A88="","",'Fig 1 Ballet Leg'!I89+'Fig 2 Somersault, Back Tuck'!I89+'Fig 3 Somersault, Front Pike'!I89+'Fig 4 Optional'!I89) ->  | AX88: 86 | AY88: 0
A89: =IF(Draw!E89=0,"",Draw!E89) ->  | F89: =IF($A89="","",'Fig 1 Ballet Leg'!H90) ->  | G89: =IF($A89="","",'Fig 2 Somersault, Back Tuck'!H90) ->  | H89: =IF($A89="","",'Fig 3 Somersault, Front Pike'!H90) ->  | I89: =IF($A89="","",'Fig 4 Optional'!H90) ->  | J89: =IF($A89="","",'Fig 1 Ballet Leg'!I90+'Fig 2 Somersault, Back Tuck'!I90+'Fig 3 Somersault, Front Pike'!I90+'Fig 4 Optional'!I90) ->  | AX89: 87 | AY89: 0
A90: =IF(Draw!E90=0,"",Draw!E90) ->  | F90: =IF($A90="","",'Fig 1 Ballet Leg'!H91) ->  | G90: =IF($A90="","",'Fig 2 Somersault, Back Tuck'!H91) ->  | H90: =IF($A90="","",'Fig 3 Somersault, Front Pike'!H91) ->  | I90: =IF($A90="","",'Fig 4 Optional'!H91) ->  | J90: =IF($A90="","",'Fig 1 Ballet Leg'!I91+'Fig 2 Somersault, Back Tuck'!I91+'Fig 3 Somersault, Front Pike'!I91+'Fig 4 Optional'!I91) ->  | AX90: 88 | AY90: 0
A91: =IF(Draw!E91=0,"",Draw!E91) ->  | F91: =IF($A91="","",'Fig 1 Ballet Leg'!H92) ->  | G91: =IF($A91="","",'Fig 2 Somersault, Back Tuck'!H92) ->  | H91: =IF($A91="","",'Fig 3 Somersault, Front Pike'!H92) ->  | I91: =IF($A91="","",'Fig 4 Optional'!H92) ->  | J91: =IF($A91="","",'Fig 1 Ballet Leg'!I92+'Fig 2 Somersault, Back Tuck'!I92+'Fig 3 Somersault, Front Pike'!I92+'Fig 4 Optional'!I92) ->  | AX91: 89 | AY91: 0
A92: =IF(Draw!E92=0,"",Draw!E92) ->  | F92: =IF($A92="","",'Fig 1 Ballet Leg'!H93) ->  | G92: =IF($A92="","",'Fig 2 Somersault, Back Tuck'!H93) ->  | H92: =IF($A92="","",'Fig 3 Somersault, Front Pike'!H93) ->  | I92: =IF($A92="","",'Fig 4 Optional'!H93) ->  | J92: =IF($A92="","",'Fig 1 Ballet Leg'!I93+'Fig 2 Somersault, Back Tuck'!I93+'Fig 3 Somersault, Front Pike'!I93+'Fig 4 Optional'!I93) ->  | AX92: 90 | AY92: 0
A93: =IF(Draw!E93=0,"",Draw!E93) ->  | F93: =IF($A93="","",'Fig 1 Ballet Leg'!H94) ->  | G93: =IF($A93="","",'Fig 2 Somersault, Back Tuck'!H94) ->  | H93: =IF($A93="","",'Fig 3 Somersault, Front Pike'!H94) ->  | I93: =IF($A93="","",'Fig 4 Optional'!H94) ->  | J93: =IF($A93="","",'Fig 1 Ballet Leg'!I94+'Fig 2 Somersault, Back Tuck'!I94+'Fig 3 Somersault, Front Pike'!I94+'Fig 4 Optional'!I94) ->  | AX93: 91 | AY93: 0
A94: =IF(Draw!E94=0,"",Draw!E94) ->  | F94: =IF($A94="","",'Fig 1 Ballet Leg'!H95) ->  | G94: =IF($A94="","",'Fig 2 Somersault, Back Tuck'!H95) ->  | H94: =IF($A94="","",'Fig 3 Somersault, Front Pike'!H95) ->  | I94: =IF($A94="","",'Fig 4 Optional'!H95) ->  | J94: =IF($A94="","",'Fig 1 Ballet Leg'!I95+'Fig 2 Somersault, Back Tuck'!I95+'Fig 3 Somersault, Front Pike'!I95+'Fig 4 Optional'!I95) ->  | AX94: 92 | AY94: 0
A95: =IF(Draw!E95=0,"",Draw!E95) ->  | F95: =IF($A95="","",'Fig 1 Ballet Leg'!H96) ->  | G95: =IF($A95="","",'Fig 2 Somersault, Back Tuck'!H96) ->  | H95: =IF($A95="","",'Fig 3 Somersault, Front Pike'!H96) ->  | I95: =IF($A95="","",'Fig 4 Optional'!H96) ->  | J95: =IF($A95="","",'Fig 1 Ballet Leg'!I96+'Fig 2 Somersault, Back Tuck'!I96+'Fig 3 Somersault, Front Pike'!I96+'Fig 4 Optional'!I96) ->  | AX95: 93 | AY95: 0
A96: =IF(Draw!E96=0,"",Draw!E96) ->  | F96: =IF($A96="","",'Fig 1 Ballet Leg'!H97) ->  | G96: =IF($A96="","",'Fig 2 Somersault, Back Tuck'!H97) ->  | H96: =IF($A96="","",'Fig 3 Somersault, Front Pike'!H97) ->  | I96: =IF($A96="","",'Fig 4 Optional'!H97) ->  | J96: =IF($A96="","",'Fig 1 Ballet Leg'!I97+'Fig 2 Somersault, Back Tuck'!I97+'Fig 3 Somersault, Front Pike'!I97+'Fig 4 Optional'!I97) ->  | AX96: 94 | AY96: 0
A97: =IF(Draw!E97=0,"",Draw!E97) ->  | F97: =IF($A97="","",'Fig 1 Ballet Leg'!H98) ->  | G97: =IF($A97="","",'Fig 2 Somersault, Back Tuck'!H98) ->  | H97: =IF($A97="","",'Fig 3 Somersault, Front Pike'!H98) ->  | I97: =IF($A97="","",'Fig 4 Optional'!H98) ->  | J97: =IF($A97="","",'Fig 1 Ballet Leg'!I98+'Fig 2 Somersault, Back Tuck'!I98+'Fig 3 Somersault, Front Pike'!I98+'Fig 4 Optional'!I98) ->  | AX97: 95 | AY97: 0
A98: =IF(Draw!E98=0,"",Draw!E98) ->  | F98: =IF($A98="","",'Fig 1 Ballet Leg'!H99) ->  | G98: =IF($A98="","",'Fig 2 Somersault, Back Tuck'!H99) ->  | H98: =IF($A98="","",'Fig 3 Somersault, Front Pike'!H99) ->  | I98: =IF($A98="","",'Fig 4 Optional'!H99) ->  | J98: =IF($A98="","",'Fig 1 Ballet Leg'!I99+'Fig 2 Somersault, Back Tuck'!I99+'Fig 3 Somersault, Front Pike'!I99+'Fig 4 Optional'!I99) ->  | AX98: 96 | AY98: 0
A99: =IF(Draw!E99=0,"",Draw!E99) ->  | F99: =IF($A99="","",'Fig 1 Ballet Leg'!H100) ->  | G99: =IF($A99="","",'Fig 2 Somersault, Back Tuck'!H100) ->  | H99: =IF($A99="","",'Fig 3 Somersault, Front Pike'!H100) ->  | I99: =IF($A99="","",'Fig 4 Optional'!H100) ->  | J99: =IF($A99="","",'Fig 1 Ballet Leg'!I100+'Fig 2 Somersault, Back Tuck'!I100+'Fig 3 Somersault, Front Pike'!I100+'Fig 4 Optional'!I100) ->  | AX99: 97 | AY99: 0
A100: =IF(Draw!E100=0,"",Draw!E100) ->  | F100: =IF($A100="","",'Fig 1 Ballet Leg'!H101) ->  | G100: =IF($A100="","",'Fig 2 Somersault, Back Tuck'!H101) ->  | H100: =IF($A100="","",'Fig 3 Somersault, Front Pike'!H101) ->  | I100: =IF($A100="","",'Fig 4 Optional'!H101) ->  | J100: =IF($A100="","",'Fig 1 Ballet Leg'!I101+'Fig 2 Somersault, Back Tuck'!I101+'Fig 3 Somersault, Front Pike'!I101+'Fig 4 Optional'!I101) ->  | AX100: 98 | AY100: 0
A101: =IF(Draw!E101=0,"",Draw!E101) ->  | F101: =IF($A101="","",'Fig 1 Ballet Leg'!H102) ->  | G101: =IF($A101="","",'Fig 2 Somersault, Back Tuck'!H102) ->  | H101: =IF($A101="","",'Fig 3 Somersault, Front Pike'!H102) ->  | I101: =IF($A101="","",'Fig 4 Optional'!H102) ->  | J101: =IF($A101="","",'Fig 1 Ballet Leg'!I102+'Fig 2 Somersault, Back Tuck'!I102+'Fig 3 Somersault, Front Pike'!I102+'Fig 4 Optional'!I102) ->  | AX101: 99 | AY101: 0
A102: =IF(Draw!E102=0,"",Draw!E102) ->  | F102: =IF($A102="","",'Fig 1 Ballet Leg'!H103) ->  | G102: =IF($A102="","",'Fig 2 Somersault, Back Tuck'!H103) ->  | H102: =IF($A102="","",'Fig 3 Somersault, Front Pike'!H103) ->  | I102: =IF($A102="","",'Fig 4 Optional'!H103) ->  | J102: =IF($A102="","",'Fig 1 Ballet Leg'!I103+'Fig 2 Somersault, Back Tuck'!I103+'Fig 3 Somersault, Front Pike'!I103+'Fig 4 Optional'!I103) ->  | AX102: 100 | AY102: 0
A103: =IF(Draw!E103=0,"",Draw!E103) ->  | F103: =IF($A103="","",'Fig 1 Ballet Leg'!H104) ->  | G103: =IF($A103="","",'Fig 2 Somersault, Back Tuck'!H104) ->  | H103: =IF($A103="","",'Fig 3 Somersault, Front Pike'!H104) ->  | I103: =IF($A103="","",'Fig 4 Optional'!H104) ->  | J103: =IF($A103="","",'Fig 1 Ballet Leg'!I104+'Fig 2 Somersault, Back Tuck'!I104+'Fig 3 Somersault, Front Pike'!I104+'Fig 4 Optional'!I104) -> 
A104: =IF(Draw!E104=0,"",Draw!E104) ->  | F104: =IF($A104="","",'Fig 1 Ballet Leg'!H105) ->  | G104: =IF($A104="","",'Fig 2 Somersault, Back Tuck'!H105) ->  | H104: =IF($A104="","",'Fig 3 Somersault, Front Pike'!H105) ->  | I104: =IF($A104="","",'Fig 4 Optional'!H105) ->  | J104: =IF($A104="","",'Fig 1 Ballet Leg'!I105+'Fig 2 Somersault, Back Tuck'!I105+'Fig 3 Somersault, Front Pike'!I105+'Fig 4 Optional'!I105) -> 
A105: =IF(Draw!E105=0,"",Draw!E105) ->  | F105: =IF($A105="","",'Fig 1 Ballet Leg'!H106) ->  | G105: =IF($A105="","",'Fig 2 Somersault, Back Tuck'!H106) ->  | H105: =IF($A105="","",'Fig 3 Somersault, Front Pike'!H106) ->  | I105: =IF($A105="","",'Fig 4 Optional'!H106) ->  | J105: =IF($A105="","",'Fig 1 Ballet Leg'!I106+'Fig 2 Somersault, Back Tuck'!I106+'Fig 3 Somersault, Front Pike'!I106+'Fig 4 Optional'!I106) -> 
A106: =IF(Draw!E106=0,"",Draw!E106) ->  | F106: =IF($A106="","",'Fig 1 Ballet Leg'!H107) ->  | G106: =IF($A106="","",'Fig 2 Somersault, Back Tuck'!H107) ->  | H106: =IF($A106="","",'Fig 3 Somersault, Front Pike'!H107) ->  | I106: =IF($A106="","",'Fig 4 Optional'!H107) ->  | J106: =IF($A106="","",'Fig 1 Ballet Leg'!I107+'Fig 2 Somersault, Back Tuck'!I107+'Fig 3 Somersault, Front Pike'!I107+'Fig 4 Optional'!I107) -> 
A107: =IF(Draw!E107=0,"",Draw!E107) ->  | F107: =IF($A107="","",'Fig 1 Ballet Leg'!H108) ->  | G107: =IF($A107="","",'Fig 2 Somersault, Back Tuck'!H108) ->  | H107: =IF($A107="","",'Fig 3 Somersault, Front Pike'!H108) ->  | I107: =IF($A107="","",'Fig 4 Optional'!H108) ->  | J107: =IF($A107="","",'Fig 1 Ballet Leg'!I108+'Fig 2 Somersault, Back Tuck'!I108+'Fig 3 Somersault, Front Pike'!I108+'Fig 4 Optional'!I108) -> 
A108: =IF(Draw!E108=0,"",Draw!E108) ->  | F108: =IF($A108="","",'Fig 1 Ballet Leg'!H109) ->  | G108: =IF($A108="","",'Fig 2 Somersault, Back Tuck'!H109) ->  | H108: =IF($A108="","",'Fig 3 Somersault, Front Pike'!H109) ->  | I108: =IF($A108="","",'Fig 4 Optional'!H109) ->  | J108: =IF($A108="","",'Fig 1 Ballet Leg'!I109+'Fig 2 Somersault, Back Tuck'!I109+'Fig 3 Somersault, Front Pike'!I109+'Fig 4 Optional'!I109) -> 
A109: =IF(Draw!E109=0,"",Draw!E109) ->  | F109: =IF($A109="","",'Fig 1 Ballet Leg'!H110) ->  | G109: =IF($A109="","",'Fig 2 Somersault, Back Tuck'!H110) ->  | H109: =IF($A109="","",'Fig 3 Somersault, Front Pike'!H110) ->  | I109: =IF($A109="","",'Fig 4 Optional'!H110) ->  | J109: =IF($A109="","",'Fig 1 Ballet Leg'!I110+'Fig 2 Somersault, Back Tuck'!I110+'Fig 3 Somersault, Front Pike'!I110+'Fig 4 Optional'!I110) -> 
A110: =IF(Draw!E110=0,"",Draw!E110) ->  | F110: =IF($A110="","",'Fig 1 Ballet Leg'!H111) ->  | G110: =IF($A110="","",'Fig 2 Somersault, Back Tuck'!H111) ->  | H110: =IF($A110="","",'Fig 3 Somersault, Front Pike'!H111) ->  | I110: =IF($A110="","",'Fig 4 Optional'!H111) ->  | J110: =IF($A110="","",'Fig 1 Ballet Leg'!I111+'Fig 2 Somersault, Back Tuck'!I111+'Fig 3 Somersault, Front Pike'!I111+'Fig 4 Optional'!I111) -> 
A111: =IF(Draw!E111=0,"",Draw!E111) ->  | F111: =IF($A111="","",'Fig 1 Ballet Leg'!H112) ->  | G111: =IF($A111="","",'Fig 2 Somersault, Back Tuck'!H112) ->  | H111: =IF($A111="","",'Fig 3 Somersault, Front Pike'!H112) ->  | I111: =IF($A111="","",'Fig 4 Optional'!H112) ->  | J111: =IF($A111="","",'Fig 1 Ballet Leg'!I112+'Fig 2 Somersault, Back Tuck'!I112+'Fig 3 Somersault, Front Pike'!I112+'Fig 4 Optional'!I112) -> 
A112: =IF(Draw!E112=0,"",Draw!E112) ->  | F112: =IF($A112="","",'Fig 1 Ballet Leg'!H113) ->  | G112: =IF($A112="","",'Fig 2 Somersault, Back Tuck'!H113) ->  | H112: =IF($A112="","",'Fig 3 Somersault, Front Pike'!H113) ->  | I112: =IF($A112="","",'Fig 4 Optional'!H113) ->  | J112: =IF($A112="","",'Fig 1 Ballet Leg'!I113+'Fig 2 Somersault, Back Tuck'!I113+'Fig 3 Somersault, Front Pike'!I113+'Fig 4 Optional'!I113) -> 
A113: =IF(Draw!E113=0,"",Draw!E113) ->  | F113: =IF($A113="","",'Fig 1 Ballet Leg'!H114) ->  | G113: =IF($A113="","",'Fig 2 Somersault, Back Tuck'!H114) ->  | H113: =IF($A113="","",'Fig 3 Somersault, Front Pike'!H114) ->  | I113: =IF($A113="","",'Fig 4 Optional'!H114) ->  | J113: =IF($A113="","",'Fig 1 Ballet Leg'!I114+'Fig 2 Somersault, Back Tuck'!I114+'Fig 3 Somersault, Front Pike'!I114+'Fig 4 Optional'!I114) -> 
A114: =IF(Draw!E114=0,"",Draw!E114) ->  | F114: =IF($A114="","",'Fig 1 Ballet Leg'!H115) ->  | G114: =IF($A114="","",'Fig 2 Somersault, Back Tuck'!H115) ->  | H114: =IF($A114="","",'Fig 3 Somersault, Front Pike'!H115) ->  | I114: =IF($A114="","",'Fig 4 Optional'!H115) ->  | J114: =IF($A114="","",'Fig 1 Ballet Leg'!I115+'Fig 2 Somersault, Back Tuck'!I115+'Fig 3 Somersault, Front Pike'!I115+'Fig 4 Optional'!I115) -> 
A115: =IF(Draw!E115=0,"",Draw!E115) ->  | F115: =IF($A115="","",'Fig 1 Ballet Leg'!H116) ->  | G115: =IF($A115="","",'Fig 2 Somersault, Back Tuck'!H116) ->  | H115: =IF($A115="","",'Fig 3 Somersault, Front Pike'!H116) ->  | I115: =IF($A115="","",'Fig 4 Optional'!H116) ->  | J115: =IF($A115="","",'Fig 1 Ballet Leg'!I116+'Fig 2 Somersault, Back Tuck'!I116+'Fig 3 Somersault, Front Pike'!I116+'Fig 4 Optional'!I116) -> 
A116: =IF(Draw!E116=0,"",Draw!E116) ->  | F116: =IF($A116="","",'Fig 1 Ballet Leg'!H117) ->  | G116: =IF($A116="","",'Fig 2 Somersault, Back Tuck'!H117) ->  | H116: =IF($A116="","",'Fig 3 Somersault, Front Pike'!H117) ->  | I116: =IF($A116="","",'Fig 4 Optional'!H117) ->  | J116: =IF($A116="","",'Fig 1 Ballet Leg'!I117+'Fig 2 Somersault, Back Tuck'!I117+'Fig 3 Somersault, Front Pike'!I117+'Fig 4 Optional'!I117) -> 
A117: =IF(Draw!E117=0,"",Draw!E117) ->  | F117: =IF($A117="","",'Fig 1 Ballet Leg'!H118) ->  | G117: =IF($A117="","",'Fig 2 Somersault, Back Tuck'!H118) ->  | H117: =IF($A117="","",'Fig 3 Somersault, Front Pike'!H118) ->  | I117: =IF($A117="","",'Fig 4 Optional'!H118) ->  | J117: =IF($A117="","",'Fig 1 Ballet Leg'!I118+'Fig 2 Somersault, Back Tuck'!I118+'Fig 3 Somersault, Front Pike'!I118+'Fig 4 Optional'!I118) -> 
A118: =IF(Draw!E118=0,"",Draw!E118) ->  | F118: =IF($A118="","",'Fig 1 Ballet Leg'!H119) ->  | G118: =IF($A118="","",'Fig 2 Somersault, Back Tuck'!H119) ->  | H118: =IF($A118="","",'Fig 3 Somersault, Front Pike'!H119) ->  | I118: =IF($A118="","",'Fig 4 Optional'!H119) ->  | J118: =IF($A118="","",'Fig 1 Ballet Leg'!I119+'Fig 2 Somersault, Back Tuck'!I119+'Fig 3 Somersault, Front Pike'!I119+'Fig 4 Optional'!I119) -> 
A119: =IF(Draw!E119=0,"",Draw!E119) ->  | F119: =IF($A119="","",'Fig 1 Ballet Leg'!H120) ->  | G119: =IF($A119="","",'Fig 2 Somersault, Back Tuck'!H120) ->  | H119: =IF($A119="","",'Fig 3 Somersault, Front Pike'!H120) ->  | I119: =IF($A119="","",'Fig 4 Optional'!H120) ->  | J119: =IF($A119="","",'Fig 1 Ballet Leg'!I120+'Fig 2 Somersault, Back Tuck'!I120+'Fig 3 Somersault, Front Pike'!I120+'Fig 4 Optional'!I120) -> 
A120: =IF(Draw!E120=0,"",Draw!E120) ->  | F120: =IF($A120="","",'Fig 1 Ballet Leg'!H121) ->  | G120: =IF($A120="","",'Fig 2 Somersault, Back Tuck'!H121) ->  | H120: =IF($A120="","",'Fig 3 Somersault, Front Pike'!H121) ->  | I120: =IF($A120="","",'Fig 4 Optional'!H121) ->  | J120: =IF($A120="","",'Fig 1 Ballet Leg'!I121+'Fig 2 Somersault, Back Tuck'!I121+'Fig 3 Somersault, Front Pike'!I121+'Fig 4 Optional'!I121) -> 
A121: =IF(Draw!E121=0,"",Draw!E121) ->  | F121: =IF($A121="","",'Fig 1 Ballet Leg'!H122) ->  | G121: =IF($A121="","",'Fig 2 Somersault, Back Tuck'!H122) ->  | H121: =IF($A121="","",'Fig 3 Somersault, Front Pike'!H122) ->  | I121: =IF($A121="","",'Fig 4 Optional'!H122) ->  | J121: =IF($A121="","",'Fig 1 Ballet Leg'!I122+'Fig 2 Somersault, Back Tuck'!I122+'Fig 3 Somersault, Front Pike'!I122+'Fig 4 Optional'!I122) -> 
A122: =IF(Draw!E122=0,"",Draw!E122) ->  | F122: =IF($A122="","",'Fig 1 Ballet Leg'!H123) ->  | G122: =IF($A122="","",'Fig 2 Somersault, Back Tuck'!H123) ->  | H122: =IF($A122="","",'Fig 3 Somersault, Front Pike'!H123) ->  | I122: =IF($A122="","",'Fig 4 Optional'!H123) ->  | J122: =IF($A122="","",'Fig 1 Ballet Leg'!I123+'Fig 2 Somersault, Back Tuck'!I123+'Fig 3 Somersault, Front Pike'!I123+'Fig 4 Optional'!I123) -> 
A123: =IF(Draw!E123=0,"",Draw!E123) ->  | F123: =IF($A123="","",'Fig 1 Ballet Leg'!H124) ->  | G123: =IF($A123="","",'Fig 2 Somersault, Back Tuck'!H124) ->  | H123: =IF($A123="","",'Fig 3 Somersault, Front Pike'!H124) ->  | I123: =IF($A123="","",'Fig 4 Optional'!H124) ->  | J123: =IF($A123="","",'Fig 1 Ballet Leg'!I124+'Fig 2 Somersault, Back Tuck'!I124+'Fig 3 Somersault, Front Pike'!I124+'Fig 4 Optional'!I124) -> 
A124: =IF(Draw!E124=0,"",Draw!E124) ->  | F124: =IF($A124="","",'Fig 1 Ballet Leg'!H125) ->  | G124: =IF($A124="","",'Fig 2 Somersault, Back Tuck'!H125) ->  | H124: =IF($A124="","",'Fig 3 Somersault, Front Pike'!H125) ->  | I124: =IF($A124="","",'Fig 4 Optional'!H125) ->  | J124: =IF($A124="","",'Fig 1 Ballet Leg'!I125+'Fig 2 Somersault, Back Tuck'!I125+'Fig 3 Somersault, Front Pike'!I125+'Fig 4 Optional'!I125) -> 
A125: =IF(Draw!E125=0,"",Draw!E125) ->  | F125: =IF($A125="","",'Fig 1 Ballet Leg'!H126) ->  | G125: =IF($A125="","",'Fig 2 Somersault, Back Tuck'!H126) ->  | H125: =IF($A125="","",'Fig 3 Somersault, Front Pike'!H126) ->  | I125: =IF($A125="","",'Fig 4 Optional'!H126) ->  | J125: =IF($A125="","",'Fig 1 Ballet Leg'!I126+'Fig 2 Somersault, Back Tuck'!I126+'Fig 3 Somersault, Front Pike'!I126+'Fig 4 Optional'!I126) -> 
A126: =IF(Draw!E126=0,"",Draw!E126) ->  | F126: =IF($A126="","",'Fig 1 Ballet Leg'!H127) ->  | G126: =IF($A126="","",'Fig 2 Somersault, Back Tuck'!H127) ->  | H126: =IF($A126="","",'Fig 3 Somersault, Front Pike'!H127) ->  | I126: =IF($A126="","",'Fig 4 Optional'!H127) ->  | J126: =IF($A126="","",'Fig 1 Ballet Leg'!I127+'Fig 2 Somersault, Back Tuck'!I127+'Fig 3 Somersault, Front Pike'!I127+'Fig 4 Optional'!I127) -> 
A127: =IF(Draw!E127=0,"",Draw!E127) ->  | F127: =IF($A127="","",'Fig 1 Ballet Leg'!H128) ->  | G127: =IF($A127="","",'Fig 2 Somersault, Back Tuck'!H128) ->  | H127: =IF($A127="","",'Fig 3 Somersault, Front Pike'!H128) ->  | I127: =IF($A127="","",'Fig 4 Optional'!H128) ->  | J127: =IF($A127="","",'Fig 1 Ballet Leg'!I128+'Fig 2 Somersault, Back Tuck'!I128+'Fig 3 Somersault, Front Pike'!I128+'Fig 4 Optional'!I128) -> 
A128: =IF(Draw!E128=0,"",Draw!E128) ->  | F128: =IF($A128="","",'Fig 1 Ballet Leg'!H129) ->  | G128: =IF($A128="","",'Fig 2 Somersault, Back Tuck'!H129) ->  | H128: =IF($A128="","",'Fig 3 Somersault, Front Pike'!H129) ->  | I128: =IF($A128="","",'Fig 4 Optional'!H129) ->  | J128: =IF($A128="","",'Fig 1 Ballet Leg'!I129+'Fig 2 Somersault, Back Tuck'!I129+'Fig 3 Somersault, Front Pike'!I129+'Fig 4 Optional'!I129) -> 
A129: =IF(Draw!E129=0,"",Draw!E129) ->  | F129: =IF($A129="","",'Fig 1 Ballet Leg'!H130) ->  | G129: =IF($A129="","",'Fig 2 Somersault, Back Tuck'!H130) ->  | H129: =IF($A129="","",'Fig 3 Somersault, Front Pike'!H130) ->  | I129: =IF($A129="","",'Fig 4 Optional'!H130) ->  | J129: =IF($A129="","",'Fig 1 Ballet Leg'!I130+'Fig 2 Somersault, Back Tuck'!I130+'Fig 3 Somersault, Front Pike'!I130+'Fig 4 Optional'!I130) -> 
A130: =IF(Draw!E130=0,"",Draw!E130) ->  | F130: =IF($A130="","",'Fig 1 Ballet Leg'!H131) ->  | G130: =IF($A130="","",'Fig 2 Somersault, Back Tuck'!H131) ->  | H130: =IF($A130="","",'Fig 3 Somersault, Front Pike'!H131) ->  | I130: =IF($A130="","",'Fig 4 Optional'!H131) ->  | J130: =IF($A130="","",'Fig 1 Ballet Leg'!I131+'Fig 2 Somersault, Back Tuck'!I131+'Fig 3 Somersault, Front Pike'!I131+'Fig 4 Optional'!I131) -> 
A131: =IF(Draw!E131=0,"",Draw!E131) ->  | F131: =IF($A131="","",'Fig 1 Ballet Leg'!H132) ->  | G131: =IF($A131="","",'Fig 2 Somersault, Back Tuck'!H132) ->  | H131: =IF($A131="","",'Fig 3 Somersault, Front Pike'!H132) ->  | I131: =IF($A131="","",'Fig 4 Optional'!H132) ->  | J131: =IF($A131="","",'Fig 1 Ballet Leg'!I132+'Fig 2 Somersault, Back Tuck'!I132+'Fig 3 Somersault, Front Pike'!I132+'Fig 4 Optional'!I132) -> 
A132: =IF(Draw!E132=0,"",Draw!E132) ->  | F132: =IF($A132="","",'Fig 1 Ballet Leg'!H133) ->  | G132: =IF($A132="","",'Fig 2 Somersault, Back Tuck'!H133) ->  | H132: =IF($A132="","",'Fig 3 Somersault, Front Pike'!H133) ->  | I132: =IF($A132="","",'Fig 4 Optional'!H133) ->  | J132: =IF($A132="","",'Fig 1 Ballet Leg'!I133+'Fig 2 Somersault, Back Tuck'!I133+'Fig 3 Somersault, Front Pike'!I133+'Fig 4 Optional'!I133) -> 
A133: =IF(Draw!E133=0,"",Draw!E133) ->  | D133: =IF($A133="","",SUM(F133:I133)-J133) ->  | E133: =IF($A133="","",RANK(D133,D$2:D$200)) ->  | F133: =IF($A133="","",'Fig 1 Ballet Leg'!H134) ->  | G133: =IF($A133="","",'Fig 2 Somersault, Back Tuck'!H134) ->  | H133: =IF($A133="","",'Fig 3 Somersault, Front Pike'!H134) ->  | I133: =IF($A133="","",'Fig 4 Optional'!H134) ->  | J133: =IF($A133="","",'Fig 1 Ballet Leg'!I134+'Fig 2 Somersault, Back Tuck'!I134+'Fig 3 Somersault, Front Pike'!I134+'Fig 4 Optional'!I134) ->  | K133: =IF($A133="","",IF(A133="","",VLOOKUP(E133,AX$3:AY$102,2,FALSE))) -> 
A134: =IF(Draw!E134=0,"",Draw!E134) ->  | F134: =IF($A134="","",'Fig 1 Ballet Leg'!H135) ->  | G134: =IF($A134="","",'Fig 2 Somersault, Back Tuck'!H135) ->  | H134: =IF($A134="","",'Fig 3 Somersault, Front Pike'!H135) ->  | I134: =IF($A134="","",'Fig 4 Optional'!H135) ->  | J134: =IF($A134="","",'Fig 1 Ballet Leg'!I135+'Fig 2 Somersault, Back Tuck'!I135+'Fig 3 Somersault, Front Pike'!I135+'Fig 4 Optional'!I135) -> 
A135: =IF(Draw!E135=0,"",Draw!E135) ->  | F135: =IF($A135="","",'Fig 1 Ballet Leg'!H136) ->  | G135: =IF($A135="","",'Fig 2 Somersault, Back Tuck'!H136) ->  | H135: =IF($A135="","",'Fig 3 Somersault, Front Pike'!H136) ->  | I135: =IF($A135="","",'Fig 4 Optional'!H136) ->  | J135: =IF($A135="","",'Fig 1 Ballet Leg'!I136+'Fig 2 Somersault, Back Tuck'!I136+'Fig 3 Somersault, Front Pike'!I136+'Fig 4 Optional'!I136) -> 
A136: =IF(Draw!E136=0,"",Draw!E136) ->  | F136: =IF($A136="","",'Fig 1 Ballet Leg'!H137) ->  | G136: =IF($A136="","",'Fig 2 Somersault, Back Tuck'!H137) ->  | H136: =IF($A136="","",'Fig 3 Somersault, Front Pike'!H137) ->  | I136: =IF($A136="","",'Fig 4 Optional'!H137) ->  | J136: =IF($A136="","",'Fig 1 Ballet Leg'!I137+'Fig 2 Somersault, Back Tuck'!I137+'Fig 3 Somersault, Front Pike'!I137+'Fig 4 Optional'!I137) -> 
A137: =IF(Draw!E137=0,"",Draw!E137) ->  | F137: =IF($A137="","",'Fig 1 Ballet Leg'!H138) ->  | G137: =IF($A137="","",'Fig 2 Somersault, Back Tuck'!H138) ->  | H137: =IF($A137="","",'Fig 3 Somersault, Front Pike'!H138) ->  | I137: =IF($A137="","",'Fig 4 Optional'!H138) ->  | J137: =IF($A137="","",'Fig 1 Ballet Leg'!I138+'Fig 2 Somersault, Back Tuck'!I138+'Fig 3 Somersault, Front Pike'!I138+'Fig 4 Optional'!I138) -> 
A138: =IF(Draw!E138=0,"",Draw!E138) ->  | F138: =IF($A138="","",'Fig 1 Ballet Leg'!H139) ->  | G138: =IF($A138="","",'Fig 2 Somersault, Back Tuck'!H139) ->  | H138: =IF($A138="","",'Fig 3 Somersault, Front Pike'!H139) ->  | I138: =IF($A138="","",'Fig 4 Optional'!H139) ->  | J138: =IF($A138="","",'Fig 1 Ballet Leg'!I139+'Fig 2 Somersault, Back Tuck'!I139+'Fig 3 Somersault, Front Pike'!I139+'Fig 4 Optional'!I139) -> 
A139: =IF(Draw!E139=0,"",Draw!E139) ->  | F139: =IF($A139="","",'Fig 1 Ballet Leg'!H140) ->  | G139: =IF($A139="","",'Fig 2 Somersault, Back Tuck'!H140) ->  | H139: =IF($A139="","",'Fig 3 Somersault, Front Pike'!H140) ->  | I139: =IF($A139="","",'Fig 4 Optional'!H140) ->  | J139: =IF($A139="","",'Fig 1 Ballet Leg'!I140+'Fig 2 Somersault, Back Tuck'!I140+'Fig 3 Somersault, Front Pike'!I140+'Fig 4 Optional'!I140) -> 
A140: =IF(Draw!E140=0,"",Draw!E140) ->  | F140: =IF($A140="","",'Fig 1 Ballet Leg'!H141) ->  | G140: =IF($A140="","",'Fig 2 Somersault, Back Tuck'!H141) ->  | H140: =IF($A140="","",'Fig 3 Somersault, Front Pike'!H141) ->  | I140: =IF($A140="","",'Fig 4 Optional'!H141) ->  | J140: =IF($A140="","",'Fig 1 Ballet Leg'!I141+'Fig 2 Somersault, Back Tuck'!I141+'Fig 3 Somersault, Front Pike'!I141+'Fig 4 Optional'!I141) -> 
A141: =IF(Draw!E141=0,"",Draw!E141) ->  | F141: =IF($A141="","",'Fig 1 Ballet Leg'!H142) ->  | G141: =IF($A141="","",'Fig 2 Somersault, Back Tuck'!H142) ->  | H141: =IF($A141="","",'Fig 3 Somersault, Front Pike'!H142) ->  | I141: =IF($A141="","",'Fig 4 Optional'!H142) ->  | J141: =IF($A141="","",'Fig 1 Ballet Leg'!I142+'Fig 2 Somersault, Back Tuck'!I142+'Fig 3 Somersault, Front Pike'!I142+'Fig 4 Optional'!I142) -> 
A142: =IF(Draw!E142=0,"",Draw!E142) ->  | F142: =IF($A142="","",'Fig 1 Ballet Leg'!H143) ->  | G142: =IF($A142="","",'Fig 2 Somersault, Back Tuck'!H143) ->  | H142: =IF($A142="","",'Fig 3 Somersault, Front Pike'!H143) ->  | I142: =IF($A142="","",'Fig 4 Optional'!H143) ->  | J142: =IF($A142="","",'Fig 1 Ballet Leg'!I143+'Fig 2 Somersault, Back Tuck'!I143+'Fig 3 Somersault, Front Pike'!I143+'Fig 4 Optional'!I143) -> 
A143: =IF(Draw!E143=0,"",Draw!E143) ->  | F143: =IF($A143="","",'Fig 1 Ballet Leg'!H144) ->  | G143: =IF($A143="","",'Fig 2 Somersault, Back Tuck'!H144) ->  | H143: =IF($A143="","",'Fig 3 Somersault, Front Pike'!H144) ->  | I143: =IF($A143="","",'Fig 4 Optional'!H144) ->  | J143: =IF($A143="","",'Fig 1 Ballet Leg'!I144+'Fig 2 Somersault, Back Tuck'!I144+'Fig 3 Somersault, Front Pike'!I144+'Fig 4 Optional'!I144) -> 
A144: =IF(Draw!E144=0,"",Draw!E144) ->  | F144: =IF($A144="","",'Fig 1 Ballet Leg'!H145) ->  | G144: =IF($A144="","",'Fig 2 Somersault, Back Tuck'!H145) ->  | H144: =IF($A144="","",'Fig 3 Somersault, Front Pike'!H145) ->  | I144: =IF($A144="","",'Fig 4 Optional'!H145) ->  | J144: =IF($A144="","",'Fig 1 Ballet Leg'!I145+'Fig 2 Somersault, Back Tuck'!I145+'Fig 3 Somersault, Front Pike'!I145+'Fig 4 Optional'!I145) -> 
A145: =IF(Draw!E145=0,"",Draw!E145) ->  | F145: =IF($A145="","",'Fig 1 Ballet Leg'!H146) ->  | G145: =IF($A145="","",'Fig 2 Somersault, Back Tuck'!H146) ->  | H145: =IF($A145="","",'Fig 3 Somersault, Front Pike'!H146) ->  | I145: =IF($A145="","",'Fig 4 Optional'!H146) ->  | J145: =IF($A145="","",'Fig 1 Ballet Leg'!I146+'Fig 2 Somersault, Back Tuck'!I146+'Fig 3 Somersault, Front Pike'!I146+'Fig 4 Optional'!I146) -> 
A146: =IF(Draw!E146=0,"",Draw!E146) ->  | F146: =IF($A146="","",'Fig 1 Ballet Leg'!H147) ->  | G146: =IF($A146="","",'Fig 2 Somersault, Back Tuck'!H147) ->  | H146: =IF($A146="","",'Fig 3 Somersault, Front Pike'!H147) ->  | I146: =IF($A146="","",'Fig 4 Optional'!H147) ->  | J146: =IF($A146="","",'Fig 1 Ballet Leg'!I147+'Fig 2 Somersault, Back Tuck'!I147+'Fig 3 Somersault, Front Pike'!I147+'Fig 4 Optional'!I147) -> 
A147: =IF(Draw!E147=0,"",Draw!E147) ->  | F147: =IF($A147="","",'Fig 1 Ballet Leg'!H148) ->  | G147: =IF($A147="","",'Fig 2 Somersault, Back Tuck'!H148) ->  | H147: =IF($A147="","",'Fig 3 Somersault, Front Pike'!H148) ->  | I147: =IF($A147="","",'Fig 4 Optional'!H148) ->  | J147: =IF($A147="","",'Fig 1 Ballet Leg'!I148+'Fig 2 Somersault, Back Tuck'!I148+'Fig 3 Somersault, Front Pike'!I148+'Fig 4 Optional'!I148) -> 
A148: =IF(Draw!E148=0,"",Draw!E148) ->  | F148: =IF($A148="","",'Fig 1 Ballet Leg'!H149) ->  | G148: =IF($A148="","",'Fig 2 Somersault, Back Tuck'!H149) ->  | H148: =IF($A148="","",'Fig 3 Somersault, Front Pike'!H149) ->  | I148: =IF($A148="","",'Fig 4 Optional'!H149) ->  | J148: =IF($A148="","",'Fig 1 Ballet Leg'!I149+'Fig 2 Somersault, Back Tuck'!I149+'Fig 3 Somersault, Front Pike'!I149+'Fig 4 Optional'!I149) -> 
A149: =IF(Draw!E149=0,"",Draw!E149) ->  | F149: =IF($A149="","",'Fig 1 Ballet Leg'!H150) ->  | G149: =IF($A149="","",'Fig 2 Somersault, Back Tuck'!H150) ->  | H149: =IF($A149="","",'Fig 3 Somersault, Front Pike'!H150) ->  | I149: =IF($A149="","",'Fig 4 Optional'!H150) ->  | J149: =IF($A149="","",'Fig 1 Ballet Leg'!I150+'Fig 2 Somersault, Back Tuck'!I150+'Fig 3 Somersault, Front Pike'!I150+'Fig 4 Optional'!I150) -> 
A150: =IF(Draw!E150=0,"",Draw!E150) ->  | F150: =IF($A150="","",'Fig 1 Ballet Leg'!H151) ->  | G150: =IF($A150="","",'Fig 2 Somersault, Back Tuck'!H151) ->  | H150: =IF($A150="","",'Fig 3 Somersault, Front Pike'!H151) ->  | I150: =IF($A150="","",'Fig 4 Optional'!H151) ->  | J150: =IF($A150="","",'Fig 1 Ballet Leg'!I151+'Fig 2 Somersault, Back Tuck'!I151+'Fig 3 Somersault, Front Pike'!I151+'Fig 4 Optional'!I151) -> 
K151: =IF($A151="","",IF(A151="","",VLOOKUP(E151,AX$3:AY$102,2,FALSE))) -> 
A164: =IF(Draw!E164=0,"",Draw!E164) ->  | D164: =IF($A164="","",SUM(F164:I164)-J164) ->  | E164: =IF($A164="","",RANK(D164,D$2:D$25)) ->  | F164: =IF($A164="","",'Fig 1 Ballet Leg'!H165) ->  | G164: =IF($A164="","",'Fig 2 Somersault, Back Tuck'!H165) ->  | H164: =IF($A164="","",'Fig 3 Somersault, Front Pike'!H165) ->  | I164: =IF($A164="","",'Fig 4 Optional'!H165) ->  | J164: =IF($A164="","",'Fig 1 Ballet Leg'!I165+'Fig 2 Somersault, Back Tuck'!I165+'Fig 3 Somersault, Front Pike'!I165+'Fig 4 Optional'!I165) -> 
A165: =IF(Draw!E165=0,"",Draw!E165) ->  | D165: =IF($A165="","",SUM(F165:I165)-J165) ->  | E165: =IF($A165="","",RANK(D165,D$2:D$25)) ->  | F165: =IF($A165="","",'Fig 1 Ballet Leg'!H166) ->  | G165: =IF($A165="","",'Fig 2 Somersault, Back Tuck'!H166) ->  | H165: =IF($A165="","",'Fig 3 Somersault, Front Pike'!H166) ->  | I165: =IF($A165="","",'Fig 4 Optional'!H166) ->  | J165: =IF($A165="","",'Fig 1 Ballet Leg'!I166+'Fig 2 Somersault, Back Tuck'!I166+'Fig 3 Somersault, Front Pike'!I166+'Fig 4 Optional'!I166) -> 
A166: =IF(Draw!E166=0,"",Draw!E166) ->  | F166: =IF($A166="","",'Fig 1 Ballet Leg'!H167) ->  | G166: =IF($A166="","",'Fig 2 Somersault, Back Tuck'!H167) ->  | H166: =IF($A166="","",'Fig 3 Somersault, Front Pike'!H167) ->  | I166: =IF($A166="","",'Fig 4 Optional'!H167) ->  | J166: =IF($A166="","",'Fig 1 Ballet Leg'!I167+'Fig 2 Somersault, Back Tuck'!I167+'Fig 3 Somersault, Front Pike'!I167+'Fig 4 Optional'!I167) -> 
A167: =IF(Draw!E167=0,"",Draw!E167) ->  | F167: =IF($A167="","",'Fig 1 Ballet Leg'!H168) ->  | G167: =IF($A167="","",'Fig 2 Somersault, Back Tuck'!H168) ->  | H167: =IF($A167="","",'Fig 3 Somersault, Front Pike'!H168) ->  | I167: =IF($A167="","",'Fig 4 Optional'!H168) ->  | J167: =IF($A167="","",'Fig 1 Ballet Leg'!I168+'Fig 2 Somersault, Back Tuck'!I168+'Fig 3 Somersault, Front Pike'!I168+'Fig 4 Optional'!I168) -> 
A168: =IF(Draw!E168=0,"",Draw!E168) ->  | F168: =IF($A168="","",'Fig 1 Ballet Leg'!H169) ->  | G168: =IF($A168="","",'Fig 2 Somersault, Back Tuck'!H169) ->  | H168: =IF($A168="","",'Fig 3 Somersault, Front Pike'!H169) ->  | I168: =IF($A168="","",'Fig 4 Optional'!H169) ->  | J168: =IF($A168="","",'Fig 1 Ballet Leg'!I169+'Fig 2 Somersault, Back Tuck'!I169+'Fig 3 Somersault, Front Pike'!I169+'Fig 4 Optional'!I169) -> 
A169: =IF(Draw!E169=0,"",Draw!E169) ->  | F169: =IF($A169="","",'Fig 1 Ballet Leg'!H170) ->  | G169: =IF($A169="","",'Fig 2 Somersault, Back Tuck'!H170) ->  | H169: =IF($A169="","",'Fig 3 Somersault, Front Pike'!H170) ->  | I169: =IF($A169="","",'Fig 4 Optional'!H170) ->  | J169: =IF($A169="","",'Fig 1 Ballet Leg'!I170+'Fig 2 Somersault, Back Tuck'!I170+'Fig 3 Somersault, Front Pike'!I170+'Fig 4 Optional'!I170) -> 
A170: =IF(Draw!E170=0,"",Draw!E170) ->  | F170: =IF($A170="","",'Fig 1 Ballet Leg'!H171) ->  | G170: =IF($A170="","",'Fig 2 Somersault, Back Tuck'!H171) ->  | H170: =IF($A170="","",'Fig 3 Somersault, Front Pike'!H171) ->  | I170: =IF($A170="","",'Fig 4 Optional'!H171) ->  | J170: =IF($A170="","",'Fig 1 Ballet Leg'!I171+'Fig 2 Somersault, Back Tuck'!I171+'Fig 3 Somersault, Front Pike'!I171+'Fig 4 Optional'!I171) -> 
A171: =IF(Draw!E171=0,"",Draw!E171) ->  | F171: =IF($A171="","",'Fig 1 Ballet Leg'!H172) ->  | G171: =IF($A171="","",'Fig 2 Somersault, Back Tuck'!H172) ->  | H171: =IF($A171="","",'Fig 3 Somersault, Front Pike'!H172) ->  | I171: =IF($A171="","",'Fig 4 Optional'!H172) ->  | J171: =IF($A171="","",'Fig 1 Ballet Leg'!I172+'Fig 2 Somersault, Back Tuck'!I172+'Fig 3 Somersault, Front Pike'!I172+'Fig 4 Optional'!I172) -> 
A172: =IF(Draw!E172=0,"",Draw!E172) ->  | F172: =IF($A172="","",'Fig 1 Ballet Leg'!H173) ->  | G172: =IF($A172="","",'Fig 2 Somersault, Back Tuck'!H173) ->  | H172: =IF($A172="","",'Fig 3 Somersault, Front Pike'!H173) ->  | I172: =IF($A172="","",'Fig 4 Optional'!H173) ->  | J172: =IF($A172="","",'Fig 1 Ballet Leg'!I173+'Fig 2 Somersault, Back Tuck'!I173+'Fig 3 Somersault, Front Pike'!I173+'Fig 4 Optional'!I173) -> 
A173: =IF(Draw!E173=0,"",Draw!E173) ->  | D173: =IF($A173="","",SUM(F173:I173)-J173) ->  | E173: =IF($A173="","",RANK(D173,D$2:D$25)) ->  | F173: =IF($A173="","",'Fig 1 Ballet Leg'!H174) ->  | G173: =IF($A173="","",'Fig 2 Somersault, Back Tuck'!H174) ->  | H173: =IF($A173="","",'Fig 3 Somersault, Front Pike'!H174) ->  | I173: =IF($A173="","",'Fig 4 Optional'!H174) ->  | J173: =IF($A173="","",'Fig 1 Ballet Leg'!I174+'Fig 2 Somersault, Back Tuck'!I174+'Fig 3 Somersault, Front Pike'!I174+'Fig 4 Optional'!I174) -> 
A174: =IF(Draw!E174=0,"",Draw!E174) ->  | D174: =IF($A174="","",SUM(F174:I174)-J174) ->  | E174: =IF($A174="","",RANK(D174,D$2:D$25)) ->  | F174: =IF($A174="","",'Fig 1 Ballet Leg'!H175) ->  | G174: =IF($A174="","",'Fig 2 Somersault, Back Tuck'!H175) ->  | H174: =IF($A174="","",'Fig 3 Somersault, Front Pike'!H175) ->  | I174: =IF($A174="","",'Fig 4 Optional'!H175) ->  | J174: =IF($A174="","",'Fig 1 Ballet Leg'!I175+'Fig 2 Somersault, Back Tuck'!I175+'Fig 3 Somersault, Front Pike'!I175+'Fig 4 Optional'!I175) -> 
A175: =IF(Draw!E175=0,"",Draw!E175) ->  | F175: =IF($A175="","",'Fig 1 Ballet Leg'!H176) ->  | G175: =IF($A175="","",'Fig 2 Somersault, Back Tuck'!H176) ->  | H175: =IF($A175="","",'Fig 3 Somersault, Front Pike'!H176) ->  | I175: =IF($A175="","",'Fig 4 Optional'!H176) ->  | J175: =IF($A175="","",'Fig 1 Ballet Leg'!I176+'Fig 2 Somersault, Back Tuck'!I176+'Fig 3 Somersault, Front Pike'!I176+'Fig 4 Optional'!I176) -> 
A176: =IF(Draw!E176=0,"",Draw!E176) ->  | F176: =IF($A176="","",'Fig 1 Ballet Leg'!H177) ->  | G176: =IF($A176="","",'Fig 2 Somersault, Back Tuck'!H177) ->  | H176: =IF($A176="","",'Fig 3 Somersault, Front Pike'!H177) ->  | I176: =IF($A176="","",'Fig 4 Optional'!H177) ->  | J176: =IF($A176="","",'Fig 1 Ballet Leg'!I177+'Fig 2 Somersault, Back Tuck'!I177+'Fig 3 Somersault, Front Pike'!I177+'Fig 4 Optional'!I177) -> 
A177: =IF(Draw!E177=0,"",Draw!E177) ->  | F177: =IF($A177="","",'Fig 1 Ballet Leg'!H178) ->  | G177: =IF($A177="","",'Fig 2 Somersault, Back Tuck'!H178) ->  | H177: =IF($A177="","",'Fig 3 Somersault, Front Pike'!H178) ->  | I177: =IF($A177="","",'Fig 4 Optional'!H178) ->  | J177: =IF($A177="","",'Fig 1 Ballet Leg'!I178+'Fig 2 Somersault, Back Tuck'!I178+'Fig 3 Somersault, Front Pike'!I178+'Fig 4 Optional'!I178) -> 
A178: =IF(Draw!E178=0,"",Draw!E178) ->  | F178: =IF($A178="","",'Fig 1 Ballet Leg'!H179) ->  | G178: =IF($A178="","",'Fig 2 Somersault, Back Tuck'!H179) ->  | H178: =IF($A178="","",'Fig 3 Somersault, Front Pike'!H179) ->  | I178: =IF($A178="","",'Fig 4 Optional'!H179) ->  | J178: =IF($A178="","",'Fig 1 Ballet Leg'!I179+'Fig 2 Somersault, Back Tuck'!I179+'Fig 3 Somersault, Front Pike'!I179+'Fig 4 Optional'!I179) -> 
A179: =IF(Draw!E179=0,"",Draw!E179) ->  | F179: =IF($A179="","",'Fig 1 Ballet Leg'!H180) ->  | G179: =IF($A179="","",'Fig 2 Somersault, Back Tuck'!H180) ->  | H179: =IF($A179="","",'Fig 3 Somersault, Front Pike'!H180) ->  | I179: =IF($A179="","",'Fig 4 Optional'!H180) ->  | J179: =IF($A179="","",'Fig 1 Ballet Leg'!I180+'Fig 2 Somersault, Back Tuck'!I180+'Fig 3 Somersault, Front Pike'!I180+'Fig 4 Optional'!I180) -> 
A180: =IF(Draw!E180=0,"",Draw!E180) ->  | F180: =IF($A180="","",'Fig 1 Ballet Leg'!H181) ->  | G180: =IF($A180="","",'Fig 2 Somersault, Back Tuck'!H181) ->  | H180: =IF($A180="","",'Fig 3 Somersault, Front Pike'!H181) ->  | I180: =IF($A180="","",'Fig 4 Optional'!H181) ->  | J180: =IF($A180="","",'Fig 1 Ballet Leg'!I181+'Fig 2 Somersault, Back Tuck'!I181+'Fig 3 Somersault, Front Pike'!I181+'Fig 4 Optional'!I181) -> 
A181: =IF(Draw!E181=0,"",Draw!E181) ->  | F181: =IF($A181="","",'Fig 1 Ballet Leg'!H182) ->  | G181: =IF($A181="","",'Fig 2 Somersault, Back Tuck'!H182) ->  | H181: =IF($A181="","",'Fig 3 Somersault, Front Pike'!H182) ->  | I181: =IF($A181="","",'Fig 4 Optional'!H182) ->  | J181: =IF($A181="","",'Fig 1 Ballet Leg'!I182+'Fig 2 Somersault, Back Tuck'!I182+'Fig 3 Somersault, Front Pike'!I182+'Fig 4 Optional'!I182) -> 

Sheet Draw (hidden)
A1: 1 | B1: S4 | C1: Stillwater | G1: School | H1: Name | I1: Draw # | J1: Name | K1: School
A2: Emily Honnold | B2: Osseo-Maple Grove | C2: =RAND() -> 0.555012776 | D2: =IF(ISNA(RANK(C2,C$2:C$150,1)),"",RANK(C2,C$2:C$150,1)) -> 15 | E2: =IF(B2<>"",F2,"") -> 1 | F2: 1 | G2: =B2 -> Osseo-Maple Grove | H2: =A2 -> Emily Honnold | I2: =E2 -> 1 | J2: =IF(ISNA(VLOOKUP(I2,D$2:H$150,5,FALSE)),"",VLOOKUP(I2,D$2:H$150,5,FALSE)) -> Emily Shanley | K2: =IF(ISNA(VLOOKUP(I2,D$2:G$150,4,FALSE)),"",VLOOKUP(I2,D$2:G$150,4,FALSE)) -> Stillwater | N2: 1 | O2: Emily Honnold | P2: Osseo-Maple Grove
A3: Kya Hodgdon | B3: Stillwater | C3: 0.7446940671 | D3: =IF(ISNA(RANK(C3,C$2:C$150,1)),"",RANK(C3,C$2:C$150,1)) -> 21 | E3: =IF(B3<>"",F3,"") -> 2 | F3: 2 | G3: =B3 -> Stillwater | H3: =A3 -> Kya Hodgdon | I3: =E3 -> 2 | J3: =IF(ISNA(VLOOKUP(I3,D$2:H$150,5,FALSE)),"",VLOOKUP(I3,D$2:H$150,5,FALSE)) -> Bree Sheridan | K3: =IF(ISNA(VLOOKUP(I3,D$2:G$150,4,FALSE)),"",VLOOKUP(I3,D$2:G$150,4,FALSE)) -> Stillwater | N3: 2 | O3: Kya Hodgdon | P3: Stillwater
A4: Khuluc Yang | B4: Stillwater | C4: 0.7475776634 | D4: 22 | E4: 3 | F4: 3 | G4: Stillwater | H4: Khuluc Yang | I4: 3 | J4: Rachel Duerr | K4: Stillwater | N4: 3 | O4: Khuluc Yang | P4: Stillwater
A5: Bree Sheridan | B5: Stillwater | C5: 0.1053864131 | D5: 2 | E5: 4 | F5: 4 | G5: Stillwater | H5: Bree Sheridan | I5: 4 | J5: Katherine Hildebrandt | K5: Osseo-Maple Grove | N5: 4 | O5: Bree Sheridan | P5: Stillwater
A6: Hayley Heiss | B6: Osseo-Maple Grove | C6: 0.8974503282 | D6: 24 | E6: 5 | F6: 5 | G6: Osseo-Maple Grove | H6: Hayley Heiss | I6: 5 | J6: Emma Sneden | K6: Stillwater | N6: 5 | O6: Hayley Heiss | P6: Osseo-Maple Grove
A7: Morgan Tope-Yates | B7: Stillwater | C7: 0.2973888497 | D7: 7 | E7: 6 | F7: 6 | G7: Stillwater | H7: Morgan Tope-Yates | I7: 6 | J7: Rubie Ballantyne | K7: Stillwater | N7: 6 | O7: Morgan Tope-Yates | P7: Stillwater
A8: Margo Prentice | B8: Osseo-Maple Grove | C8: 0.5363647151 | D8: 13 | E8: 7 | F8: 7 | G8: Osseo-Maple Grove | H8: Margo Prentice | I8: 7 | J8: Morgan Tope-Yates | K8: Stillwater | N8: 7 | O8: Margo Prentice | P8: Osseo-Maple Grove
A9: Emily Shanley | B9: Stillwater | C9: 0.07667633106 | D9: 1 | E9: 8 | F9: 8 | G9: Stillwater | H9: Emily Shanley | I9: 8 | J9: Andrea Finholt | K9: Stillwater | N9: 8 | O9: Emily Shanley | P9: Stillwater
A10: Zoe Waldron | B10: Osseo-Maple Grove | C10: 0.8033103312 | D10: 23 | E10: 9 | F10: 9 | G10: Osseo-Maple Grove | H10: Zoe Waldron | I10: 9 | J10: Laurel Bremer | K10: Stillwater | N10: 9 | O10: Zoe Waldron | P10: Osseo-Maple Grove
A11: Ellery Mason | B11: Osseo-Maple Grove | C11: 0.9745871512 | D11: 26 | E11: 10 | F11: 10 | G11: Osseo-Maple Grove | H11: Ellery Mason | I11: 10 | J11: Angelina Langford | K11: Stillwater | N11: 10 | O11: Ellery Mason | P11: Osseo-Maple Grove
A12: Carolyn Wrightsman | B12: Stillwater | C12: 0.9691930556 | D12: 25 | E12: 11 | F12: 11 | G12: Stillwater | H12: Carolyn Wrightsman | I12: 11 | J12: Rachel Knox | K12: Osseo-Maple Grove | N12: 11 | O12: Carolyn Wrightsman | P12: Stillwater
A13: Hannah Dettmann | B13: Stillwater | C13: 0.5753985098 | D13: 16 | E13: 12 | F13: 12 | G13: Stillwater | H13: Hannah Dettmann | I13: 12 | J13: Madison Peters | K13: Osseo-Maple Grove | N13: 12 | O13: Hannah Dettmann | P13: Stillwater
A14: Grace Sneden | B14: Stillwater | C14: 0.552840372 | D14: 14 | E14: 13 | F14: 13 | G14: Stillwater | H14: Grace Sneden | I14: 13 | J14: Margo Prentice | K14: Osseo-Maple Grove | N14: 13 | O14: Grace Sneden | P14: Stillwater
A15: Sophie Browning | B15: Stillwater | C15: 0.6349995294 | D15: 19 | E15: 14 | F15: 14 | G15: Stillwater | H15: Sophie Browning | I15: 14 | J15: Grace Sneden | K15: Stillwater | N15: 14 | O15: Sophie Browning | P15: Stillwater
A16: Andrea Finholt | B16: Stillwater | C16: 0.3220259125 | D16: 8 | E16: 15 | F16: 15 | G16: Stillwater | H16: Andrea Finholt | I16: 15 | J16: Emily Honnold | K16: Osseo-Maple Grove | N16: 15 | O16: Andrea Finholt | P16: Stillwater
A17: Rachel Knox | B17: Osseo-Maple Grove | C17: 0.410254681 | D17: 11 | E17: 16 | F17: 16 | G17: Osseo-Maple Grove | H17: Rachel Knox | I17: 16 | J17: Hannah Dettmann | K17: Stillwater | N17: 16 | O17: Rachel Knox | P17: Osseo-Maple Grove
A18: Angelina Langford | B18: Stillwater | C18: 0.3830309851 | D18: 10 | E18: 17 | F18: 17 | G18: Stillwater | H18: Angelina Langford | I18: 17 | J18: Mira Torzewski | K18: Stillwater | N18: 17 | O18: Angelina Langford | P18: Stillwater
A19: Rachel Duerr | B19: Stillwater | C19: 0.1065924104 | D19: 3 | E19: 18 | F19: 18 | G19: Stillwater | H19: Rachel Duerr | I19: 18 | J19: Allison Hannan | K19: Osseo-Maple Grove | N19: 18 | O19: Rachel Duerr | P19: Stillwater
A20: Emma Sneden | B20: Stillwater | C20: 0.2109140597 | D20: 5 | E20: 19 | F20: 19 | G20: Stillwater | H20: Emma Sneden | I20: 19 | J20: Sophie Browning | K20: Stillwater | N20: 19 | O20: Emma Sneden | P20: Stillwater
A21: Laurel Bremer | B21: Stillwater | C21: 0.3499592041 | D21: 9 | E21: 20 | F21: 20 | G21: Stillwater | H21: Laurel Bremer | I21: 20 | J21: Anneke DeLooze | K21: Osseo-Maple Grove | N21: 20 | O21: Laurel Bremer | P21: Stillwater
A22: Katherine Hildebrandt | B22: Osseo-Maple Grove | C22: 0.1676488433 | D22: 4 | E22: 21 | F22: 21 | G22: Osseo-Maple Grove | H22: Katherine Hildebrandt | I22: 21 | J22: Kya Hodgdon | K22: Stillwater | N22: 21 | O22: Katherine Hildebrandt | P22: Osseo-Maple Grove
A23: Mira Torzewski | B23: Stillwater | C23: 0.5838931966 | D23: 17 | E23: 22 | F23: 22 | G23: Stillwater | H23: Mira Torzewski | I23: 22 | J23: Khuluc Yang | K23: Stillwater | N23: 22 | O23: Mira Torzewski | P23: Stillwater
A24: Anneke DeLooze | B24: Osseo-Maple Grove | C24: 0.6851486025 | D24: 20 | E24: 23 | F24: 23 | G24: Osseo-Maple Grove | H24: Anneke DeLooze | I24: 23 | J24: Zoe Waldron | K24: Osseo-Maple Grove | N24: 23 | O24: Anneke DeLooze | P24: Osseo-Maple Grove
A25: Rubie Ballantyne | B25: Stillwater | C25: 0.268134366 | D25: 6 | E25: 24 | F25: 24 | G25: Stillwater | H25: Rubie Ballantyne | I25: 24 | J25: Hayley Heiss | K25: Osseo-Maple Grove | N25: 24 | O25: Rubie Ballantyne | P25: Stillwater
A26: Madison Peters | B26: Osseo-Maple Grove | C26: 0.517359788 | D26: 12 | E26: 25 | F26: 25 | G26: Osseo-Maple Grove | H26: Madison Peters | I26: 25 | J26: Carolyn Wrightsman | K26: Stillwater | N26: 25 | O26: Madison Peters | P26: Osseo-Maple Grove
A27: Allison Hannan | B27: Osseo-Maple Grove | C27: 0.6052435885 | D27: 18 | E27: 26 | F27: 26 | G27: Osseo-Maple Grove | H27: Allison Hannan | I27: 26 | J27: Ellery Mason | K27: Osseo-Maple Grove | N27: 26 | O27: Allison Hannan | P27: Osseo-Maple Grove
F28: 27 | G28: 0 | H28: 0 | J28: 0 | K28: 0
F29: 28 | G29: 0 | H29: 0 | J29: 0 | K29: 0
F30: 29 | G30: 0 | H30: 0 | J30: 0 | K30: 0
F31: 30 | G31: 0 | H31: 0 | J31: 0 | K31: 0
E32: =IF(B32<>"",F32,"") ->  | F32: 31 | G32: 0 | H32: 0 | J32: 0 | K32: 0
F33: 32 | G33: 0 | H33: 0 | J33: 0 | K33: 0
F34: 33 | G34: 0 | H34: 0 | J34: 0 | K34: 0
F35: 34 | G35: 0 | H35: 0 | J35: 0 | K35: 0
F36: 35 | G36: 0 | H36: 0 | J36: 0 | K36: 0
F37: 36 | G37: 0 | H37: 0 | J37: 0 | K37: 0
F38: 37 | G38: 0 | H38: 0 | J38: 0 | K38: 0
F39: 38 | G39: 0 | H39: 0 | J39: 0 | K39: 0
F40: 39 | G40: 0 | H40: 0 | J40: 0 | K40: 0
F41: 40 | G41: 0 | H41: 0 | J41: 0 | K41: 0
F42: 41 | G42: 0 | H42: 0 | J42: 0 | K42: 0
F43: 42 | G43: 0 | H43: 0 | J43: 0 | K43: 0
F44: 43 | G44: 0 | H44: 0 | J44: 0 | K44: 0
F45: 44 | G45: 0 | H45: 0 | J45: 0 | K45: 0
F46: 45 | G46: 0 | H46: 0 | J46: 0 | K46: 0
F47: 46 | G47: 0 | H47: 0 | J47: 0 | K47: 0
F48: 47 | G48: 0 | H48: 0 | J48: 0 | K48: 0
F49: 48 | G49: 0 | H49: 0 | J49: 0 | K49: 0
F50: 49 | G50: 0 | H50: 0 | J50: 0 | K50: 0
F51: 50 | G51: 0 | H51: 0 | J51: 0 | K51: 0
F52: 51 | G52: 0 | H52: 0 | J52: 0 | K52: 0
F53: 52 | G53: 0 | H53: 0 | J53: 0 | K53: 0
F54: 53 | G54: 0 | H54: 0 | J54: 0 | K54: 0
F55: 54 | G55: 0 | H55: 0 | J55: 0 | K55: 0
F56: 55 | G56: 0 | H56: 0 | J56: 0 | K56: 0
F57: 56 | G57: 0 | H57: 0 | J57: 0 | K57: 0
F58: 57 | G58: 0 | H58: 0 | J58: 0 | K58: 0
F59: 58 | G59: 0 | H59: 0 | J59: 0 | K59: 0
F60: 59 | G60: 0 | H60: 0 | J60: 0 | K60: 0
F61: 60 | G61: 0 | H61: 0 | J61: 0 | K61: 0
F62: 61 | G62: 0 | H62: 0 | J62: 0 | K62: 0
F63: 62 | G63: 0 | H63: 0 | J63: 0 | K63: 0
F64: 63 | G64: 0 | H64: 0 | J64: 0 | K64: 0
F65: 64 | G65: 0 | H65: 0 | J65: 0 | K65: 0
F66: 65 | G66: 0 | H66: 0 | J66: 0 | K66: 0
F67: 66 | G67: =B67 -> 0 | H67: =A67 -> 0 | I67: =E67 ->  | J67: =IF(ISNA(VLOOKUP(I67,D$2:H$150,5,FALSE)),"",VLOOKUP(I67,D$2:H$150,5,FALSE)) -> 0 | K67: =IF(ISNA(VLOOKUP(I67,D$2:G$150,4,FALSE)),"",VLOOKUP(I67,D$2:G$150,4,FALSE)) -> 0
F68: 67 | G68: 0 | H68: 0 | J68: 0 | K68: 0
F69: 68 | G69: 0 | H69: 0 | J69: 0 | K69: 0
F70: 69 | G70: 0 | H70: 0 | J70: 0 | K70: 0
F71: 70 | G71: 0 | H71: 0 | J71: 0 | K71: 0
F72: 71 | G72: 0 | H72: 0 | J72: 0 | K72: 0
F73: 72 | G73: 0 | H73: 0 | J73: 0 | K73: 0
F74: 73 | G74: 0 | H74: 0 | J74: 0 | K74: 0
F75: 74 | G75: 0 | H75: 0 | J75: 0 | K75: 0
F76: 75 | G76: 0 | H76: 0 | J76: 0 | K76: 0
F77: 76 | G77: 0 | H77: 0 | J77: 0 | K77: 0
F78: 77 | G78: 0 | H78: 0 | J78: 0 | K78: 0
F79: 78 | G79: 0 | H79: 0 | J79: 0 | K79: 0
F80: 79 | G80: 0 | H80: 0 | J80: 0 | K80: 0
F81: 80 | G81: 0 | H81: 0 | J81: 0 | K81: 0
F82: 81 | G82: 0 | H82: 0 | J82: 0 | K82: 0
F83: 82 | G83: 0 | H83: 0 | J83: 0 | K83: 0
F84: 83 | G84: 0 | H84: 0 | J84: 0 | K84: 0
F85: 84 | G85: 0 | H85: 0 | J85: 0 | K85: 0
F86: 85 | G86: 0 | H86: 0 | J86: 0 | K86: 0
F87: 86 | G87: 0 | H87: 0 | J87: 0 | K87: 0
F88: 87 | G88: 0 | H88: 0 | J88: 0 | K88: 0
F89: 88 | G89: 0 | H89: 0 | J89: 0 | K89: 0
F90: 89 | G90: 0 | H90: 0 | J90: 0 | K90: 0
F91: 90 | G91: 0 | H91: 0 | J91: 0 | K91: 0
F92: 91 | G92: 0 | H92: 0 | J92: 0 | K92: 0
F93: 92 | G93: 0 | H93: 0 | J93: 0 | K93: 0
F94: 93 | G94: 0 | H94: 0 | J94: 0 | K94: 0
F95: 94 | G95: =B95 -> 0 | H95: =A95 -> 0 | I95: =E95 ->  | J95: 0 | K95: 0
E96: =IF(B96<>"",F96,"") ->  | F96: 95 | G96: 0 | H96: 0 | J96: 0 | K96: 0
F97: 96 | G97: 0 | H97: 0 | J97: 0 | K97: 0
F98: 97 | G98: 0 | H98: 0 | J98: 0 | K98: 0
F99: 98 | G99: 0 | H99: 0 | J99: 0 | K99: 0
F100: 99 | G100: 0 | H100: 0 | J100: 0 | K100: 0
F101: 100 | G101: 0 | H101: 0 | J101: 0 | K101: 0
F102: 101 | G102: 0 | H102: 0 | J102: 0 | K102: 0
F103: 102 | G103: 0 | H103: 0 | J103: 0 | K103: 0
F104: 103 | G104: 0 | H104: 0 | J104: 0 | K104: 0
F105: 104 | G105: 0 | H105: 0 | J105: 0 | K105: 0
F106: 105 | G106: 0 | H106: 0 | J106: 0 | K106: 0
F107: 106 | G107: 0 | H107: 0 | J107: 0 | K107: 0
F108: 107 | G108: 0 | H108: 0 | J108: 0 | K108: 0
F109: 108 | G109: 0 | H109: 0 | J109: 0 | K109: 0
F110: 109 | G110: 0 | H110: 0 | J110: 0 | K110: 0
F111: 110 | G111: 0 | H111: 0 | J111: 0 | K111: 0
F112: 111 | G112: 0 | H112: 0 | J112: 0 | K112: 0
F113: 112 | G113: 0 | H113: 0 | J113: 0 | K113: 0
F114: 113 | G114: 0 | H114: 0 | J114: 0 | K114: 0
F115: 114 | G115: 0 | H115: 0 | J115: 0 | K115: 0
F116: 115 | G116: 0 | H116: 0 | J116: 0 | K116: 0
F117: 116 | G117: 0 | H117: 0 | J117: 0 | K117: 0
F118: 117 | G118: 0 | H118: 0 | J118: 0 | K118: 0
F119: 118 | G119: 0 | H119: 0 | J119: 0 | K119: 0
F120: 119 | G120: 0 | H120: 0 | J120: 0 | K120: 0
F121: 120 | G121: 0 | H121: 0 | J121: 0 | K121: 0
F122: 121 | G122: 0 | H122: 0 | J122: 0 | K122: 0
F123: 122 | G123: 0 | H123: 0 | J123: 0 | K123: 0
F124: 123 | G124: 0 | H124: 0 | J124: 0 | K124: 0
F125: 124 | G125: 0 | H125: 0 | J125: 0 | K125: 0
F126: 125 | G126: 0 | H126: 0 | J126: 0 | K126: 0
F127: 126 | G127: 0 | H127: 0 | J127: 0 | K127: 0
D128: =IF(ISNA(RANK(C128,C$2:C$150,1)),"",RANK(C128,C$2:C$150,1)) ->  | F128: 127 | G128: 0 | H128: 0 | J128: 0 | K128: 0
F129: 128 | G129: 0 | H129: 0 | J129: 0 | K129: 0
F130: 129 | G130: 0 | H130: 0 | J130: 0 | K130: 0
D131: =IF(ISNA(RANK(C131,C$2:C$150,1)),"",RANK(C131,C$2:C$150,1)) ->  | F131: 130 | G131: 0 | H131: 0 | J131: =IF(ISNA(VLOOKUP(I131,D$2:H$150,5,FALSE)),"",VLOOKUP(I131,D$2:H$150,5,FALSE)) -> 0 | K131: =IF(ISNA(VLOOKUP(I131,D$2:G$150,4,FALSE)),"",VLOOKUP(I131,D$2:G$150,4,FALSE)) -> 0
F132: 131 | G132: 0 | H132: 0 | J132: 0 | K132: 0
F133: 132 | G133: 0 | H133: 0 | J133: 0 | K133: 0
F134: 133 | G134: 0 | H134: 0 | J134: 0 | K134: 0
F135: 134 | G135: 0 | H135: 0 | J135: 0 | K135: 0
F136: 135 | G136: 0 | H136: 0 | J136: 0 | K136: 0
F137: 136 | G137: 0 | H137: 0 | J137: 0 | K137: 0
F138: 137 | G138: 0 | H138: 0 | J138: 0 | K138: 0
F139: 138 | G139: 0 | H139: 0 | J139: 0 | K139: 0
F140: 139 | G140: 0 | H140: 0 | J140: 0 | K140: 0
F141: 140 | G141: 0 | H141: 0 | J141: 0 | K141: 0
F142: 141 | G142: 0 | H142: 0 | J142: 0 | K142: 0
F143: 142 | G143: 0 | H143: 0 | J143: 0 | K143: 0
F144: 143 | G144: 0 | H144: 0 | J144: 0 | K144: 0
F145: 144 | G145: 0 | H145: 0 | J145: 0 | K145: 0
F146: 145 | G146: 0 | H146: 0 | J146: 0 | K146: 0
F147: 146 | G147: 0 | H147: 0 | J147: 0 | K147: 0
F148: 147 | G148: 0 | H148: 0 | J148: 0 | K148: 0
F149: 148 | G149: 0 | H149: 0 | J149: 0 | K149: 0
F150: 149 | G150: 0 | H150: 0 | J150: 0 | K150: 0

Sheet Schools (hidden)
A1: List of Schools:
A2: Blake
A3: Bloomington
A4: Columbia Heights
A5: Eden Prairie
A6: Edina
A7: Forest Lake
A8: Hopkins
A9: Itasca
A10: Osseo-Maple Grove
A11: Prior Lake
A12: Richfield
A13: St. Louis Park
A14: Stillwater
A15: Wayzata

Sheet Official Draw
B2: =Draw!I1 -> Draw # | C2: =Draw!J1 -> Name | D2: =Draw!K1 -> School
B3: 1 | C3: Emily Honnold | D3: Osseo-Maple Grove
B4: 2 | C4: Kya Hodgdon | D4: Stillwater
B5: 3 | C5: Khuluc Yang | D5: Stillwater
B6: 4 | C6: Bree Sheridan | D6: Stillwater
B7: 5 | C7: Hayley Heiss | D7: Osseo-Maple Grove
B8: 6 | C8: Morgan Tope-Yates | D8: Stillwater
B9: 7 | C9: Margo Prentice | D9: Osseo-Maple Grove
B10: 8 | C10: Emily Shanley | D10: Stillwater
B11: 9 | C11: Zoe Waldron | D11: Osseo-Maple Grove
B12: 10 | C12: Ellery Mason | D12: Osseo-Maple Grove
B13: 11 | C13: Carolyn Wrightsman | D13: Stillwater
B14: 12 | C14: Hannah Dettmann | D14: Stillwater
B15: 13 | C15: Grace Sneden | D15: Stillwater
B16: 14 | C16: Sophie Browning | D16: Stillwater
B17: 15 | C17: Andrea Finholt | D17: Stillwater
B18: 16 | C18: Rachel Knox | D18: Osseo-Maple Grove
B19: 17 | C19: Angelina Langford | D19: Stillwater
B20: 18 | C20: Rachel Duerr | D20: Stillwater
B21: 19 | C21: Emma Sneden | D21: Stillwater
B22: 20 | C22: Laurel Bremer | D22: Stillwater
B23: 21 | C23: Katherine Hildebrandt | D23: Osseo-Maple Grove
B24: 22 | C24: Mira Torzewski | D24: Stillwater
B25: 23 | C25: Anneke DeLooze | D25: Osseo-Maple Grove
B26: 24 | C26: Rubie Ballantyne | D26: Stillwater
B27: 25 | C27: Madison Peters | D27: Osseo-Maple Grove
B28: 26 | C28: Allison Hannan | D28: Osseo-Maple Grove
B29: =Draw!N28 ->  | C29: =Draw!O28 -> 0 | D29: =Draw!P28 -> 0
B30: =Draw!N29 ->  | C30: =Draw!O29 -> 0 | D30: =Draw!P29 -> 0
B31: =Draw!N30 ->  | C31: =Draw!O30 -> 0 | D31: =Draw!P30 -> 0
B32: =Draw!N31 ->  | C32: =Draw!O31 -> 0 | D32: =Draw!P31 -> 0
B33: =Draw!N32 ->  | C33: =Draw!O32 -> 0 | D33: =Draw!P32 -> 0
B34: =Draw!N33 ->  | C34: =Draw!O33 -> 0 | D34: =Draw!P33 -> 0
B35: =Draw!N34 ->  | C35: =Draw!O34 -> 0 | D35: =Draw!P34 -> 0
B36: =Draw!N35 ->  | C36: =Draw!O35 -> 0 | D36: =Draw!P35 -> 0
B37: =Draw!N36 ->  | C37: =Draw!O36 -> 0 | D37: =Draw!P36 -> 0
B38: =Draw!N37 ->  | C38: =Draw!O37 -> 0 | D38: =Draw!P37 -> 0
B39: =Draw!N38 ->  | C39: =Draw!O38 -> 0 | D39: =Draw!P38 -> 0
B40: =Draw!N39 ->  | C40: =Draw!O39 -> 0 | D40: =Draw!P39 -> 0
B41: =Draw!N40 ->  | C41: =Draw!O40 -> 0 | D41: =Draw!P40 -> 0
B42: =Draw!N41 ->  | C42: =Draw!O41 -> 0 | D42: =Draw!P41 -> 0
B43: =Draw!N42 ->  | C43: =Draw!O42 -> 0 | D43: =Draw!P42 -> 0
B44: =Draw!N43 ->  | C44: =Draw!O43 -> 0 | D44: =Draw!P43 -> 0
B45: =Draw!N44 ->  | C45: =Draw!O44 -> 0 | D45: =Draw!P44 -> 0
B46: =Draw!N45 ->  | C46: =Draw!O45 -> 0 | D46: =Draw!P45 -> 0
B47: =Draw!N46 ->  | C47: =Draw!O46 -> 0 | D47: =Draw!P46 -> 0
B48: =Draw!N47 ->  | C48: =Draw!O47 -> 0 | D48: =Draw!P47 -> 0
B49: =Draw!N48 ->  | C49: =Draw!O48 -> 0 | D49: =Draw!P48 -> 0
B50: =Draw!N49 ->  | C50: =Draw!O49 -> 0 | D50: =Draw!P49 -> 0
B51: =Draw!N50 ->  | C51: =Draw!O50 -> 0 | D51: =Draw!P50 -> 0
B52: =Draw!N51 ->  | C52: =Draw!O51 -> 0 | D52: =Draw!P51 -> 0
B53: =Draw!N52 ->  | C53: =Draw!O52 -> 0 | D53: =Draw!P52 -> 0
B54: =Draw!N53 ->  | C54: =Draw!O53 -> 0 | D54: =Draw!P53 -> 0
B55: =Draw!N54 ->  | C55: =Draw!O54 -> 0 | D55: =Draw!P54 -> 0
B56: =Draw!N55 ->  | C56: =Draw!O55 -> 0 | D56: =Draw!P55 -> 0
B57: =Draw!N56 ->  | C57: =Draw!O56 -> 0 | D57: =Draw!P56 -> 0
B58: =Draw!N57 ->  | C58: =Draw!O57 -> 0 | D58: =Draw!P57 -> 0
B59: =Draw!N58 ->  | C59: =Draw!O58 -> 0 | D59: =Draw!P58 -> 0
B60: =Draw!N59 ->  | C60: =Draw!O59 -> 0 | D60: =Draw!P59 -> 0
B61: =Draw!N60 ->  | C61: =Draw!O60 -> 0 | D61: =Draw!P60 -> 0
B62: =Draw!N61 ->  | C62: =Draw!O61 -> 0 | D62: =Draw!P61 -> 0
B63: =Draw!N62 ->  | C63: =Draw!O62 -> 0 | D63: =Draw!P62 -> 0
B64: =Draw!N63 ->  | C64: =Draw!O63 -> 0 | D64: =Draw!P63 -> 0
B65: =Draw!N64 ->  | C65: =Draw!O64 -> 0 | D65: =Draw!P64 -> 0
B66: =Draw!N65 ->  | C66: =Draw!O65 -> 0 | D66: =Draw!P65 -> 0
B67: =Draw!N66 ->  | C67: =Draw!O66 -> 0 | D67: =Draw!P66 -> 0
B68: =Draw!N67 ->  | C68: =Draw!O67 -> 0 | D68: =Draw!P67 -> 0
B69: =Draw!N68 ->  | C69: =Draw!O68 -> 0 | D69: =Draw!P68 -> 0
B70: =Draw!N69 ->  | C70: =Draw!O69 -> 0 | D70: =Draw!P69 -> 0
B71: =Draw!N70 ->  | C71: =Draw!O70 -> 0 | D71: =Draw!P70 -> 0
B72: =Draw!N71 ->  | C72: =Draw!O71 -> 0 | D72: =Draw!P71 -> 0
B73: =Draw!N72 ->  | C73: =Draw!O72 -> 0 | D73: =Draw!P72 -> 0
B74: =Draw!N73 ->  | C74: =Draw!O73 -> 0 | D74: =Draw!P73 -> 0
B75: =Draw!N74 ->  | C75: =Draw!O74 -> 0 | D75: =Draw!P74 -> 0
B76: =Draw!N75 ->  | C76: =Draw!O75 -> 0 | D76: =Draw!P75 -> 0
B77: =Draw!N76 ->  | C77: =Draw!O76 -> 0 | D77: =Draw!P76 -> 0
B78: =Draw!N77 ->  | C78: =Draw!O77 -> 0 | D78: =Draw!P77 -> 0
B79: =Draw!N78 ->  | C79: =Draw!O78 -> 0 | D79: =Draw!P78 -> 0
B80: =Draw!N79 ->  | C80: =Draw!O79 -> 0 | D80: =Draw!P79 -> 0
B81: =Draw!N80 ->  | C81: =Draw!O80 -> 0 | D81: =Draw!P80 -> 0
B82: =Draw!N81 ->  | C82: =Draw!O81 -> 0 | D82: =Draw!P81 -> 0
B83: =Draw!N82 ->  | C83: =Draw!O82 -> 0 | D83: =Draw!P82 -> 0
B84: =Draw!N83 ->  | C84: =Draw!O83 -> 0 | D84: =Draw!P83 -> 0
B85: =Draw!N84 ->  | C85: =Draw!O84 -> 0 | D85: =Draw!P84 -> 0
B86: =Draw!N85 ->  | C86: =Draw!O85 -> 0 | D86: =Draw!P85 -> 0
B87: =Draw!N86 ->  | C87: =Draw!O86 -> 0 | D87: =Draw!P86 -> 0
B88: =Draw!N87 ->  | C88: =Draw!O87 -> 0 | D88: =Draw!P87 -> 0
B89: =Draw!N88 ->  | C89: =Draw!O88 -> 0 | D89: =Draw!P88 -> 0
B90: =Draw!N89 ->  | C90: =Draw!O89 -> 0 | D90: =Draw!P89 -> 0
B91: =Draw!N90 ->  | C91: =Draw!O90 -> 0 | D91: =Draw!P90 -> 0
B92: =Draw!N91 ->  | C92: =Draw!O91 -> 0 | D92: =Draw!P91 -> 0
B93: =Draw!N92 ->  | C93: =Draw!O92 -> 0 | D93: =Draw!P92 -> 0
B94: =Draw!N93 ->  | C94: =Draw!O93 -> 0 | D94: =Draw!P93 -> 0
B95: =Draw!N94 ->  | C95: =Draw!O94 -> 0 | D95: =Draw!P94 -> 0
B96: =Draw!N95 ->  | C96: =Draw!O95 -> 0 | D96: =Draw!P95 -> 0
B97: =Draw!N96 ->  | C97: =Draw!O96 -> 0 | D97: =Draw!P96 -> 0
B98: =Draw!N97 ->  | C98: =Draw!O97 -> 0 | D98: =Draw!P97 -> 0
B99: =Draw!N98 ->  | C99: =Draw!O98 -> 0 | D99: =Draw!P98 -> 0
B100: =Draw!N99 ->  | C100: =Draw!O99 -> 0 | D100: =Draw!P99 -> 0
B101: =Draw!N100 ->  | C101: =Draw!O100 -> 0 | D101: =Draw!P100 -> 0
B102: =Draw!N101 ->  | C102: =Draw!O101 -> 0 | D102: =Draw!P101 -> 0
B103: =Draw!N102 ->  | C103: =Draw!O102 -> 0 | D103: =Draw!P102 -> 0
B104: =Draw!N103 ->  | C104: =Draw!O103 -> 0 | D104: =Draw!P103 -> 0
B105: =Draw!N104 ->  | C105: =Draw!O104 -> 0 | D105: =Draw!P104 -> 0
B106: =Draw!N105 ->  | C106: =Draw!O105 -> 0 | D106: =Draw!P105 -> 0
B107: =Draw!N106 ->  | C107: =Draw!O106 -> 0 | D107: =Draw!P106 -> 0
B108: =Draw!N107 ->  | C108: =Draw!O107 -> 0 | D108: =Draw!P107 -> 0
B109: =Draw!N108 ->  | C109: =Draw!O108 -> 0 | D109: =Draw!P108 -> 0
B110: =Draw!N109 ->  | C110: =Draw!O109 -> 0 | D110: =Draw!P109 -> 0
B111: =Draw!N110 ->  | C111: =Draw!O110 -> 0 | D111: =Draw!P110 -> 0
B112: =Draw!N111 ->  | C112: =Draw!O111 -> 0 | D112: =Draw!P111 -> 0
B113: =Draw!N112 ->  | C113: =Draw!O112 -> 0 | D113: =Draw!P112 -> 0
B114: =Draw!N113 ->  | C114: =Draw!O113 -> 0 | D114: =Draw!P113 -> 0
B115: =Draw!N114 ->  | C115: =Draw!O114 -> 0 | D115: =Draw!P114 -> 0
B116: =Draw!N115 ->  | C116: =Draw!O115 -> 0 | D116: =Draw!P115 -> 0
B117: =Draw!N116 ->  | C117: =Draw!O116 -> 0 | D117: =Draw!P116 -> 0
B118: =Draw!N117 ->  | C118: =Draw!O117 -> 0 | D118: =Draw!P117 -> 0
B119: =Draw!N118 ->  | C119: =Draw!O118 -> 0 | D119: =Draw!P118 -> 0
B120: =Draw!N119 ->  | C120: =Draw!O119 -> 0 | D120: =Draw!P119 -> 0
B121: =Draw!N120 ->  | C121: =Draw!O120 -> 0 | D121: =Draw!P120 -> 0
B122: =Draw!N121 ->  | C122: =Draw!O121 -> 0 | D122: =Draw!P121 -> 0
B123: =Draw!N122 ->  | C123: =Draw!O122 -> 0 | D123: =Draw!P122 -> 0
B124: =Draw!N123 ->  | C124: =Draw!O123 -> 0 | D124: =Draw!P123 -> 0
B125: =Draw!N124 ->  | C125: =Draw!O124 -> 0 | D125: =Draw!P124 -> 0
B126: =Draw!N125 ->  | C126: =Draw!O125 -> 0 | D126: =Draw!P125 -> 0
B127: =Draw!N126 ->  | C127: =Draw!O126 -> 0 | D127: =Draw!P126 -> 0
B128: =Draw!N127 ->  | C128: =Draw!O127 -> 0 | D128: =Draw!P127 -> 0
B129: =Draw!N128 ->  | C129: =Draw!O128 -> 0 | D129: =Draw!P128 -> 0
B130: =Draw!N129 ->  | C130: =Draw!O129 -> 0 | D130: =Draw!P129 -> 0
B131: =Draw!N130 ->  | C131: =Draw!O130 -> 0 | D131: =Draw!P130 -> 0
B132: =Draw!N131 ->  | C132: =Draw!O131 -> 0 | D132: =Draw!P131 -> 0
B133: =Draw!N132 ->  | C133: =Draw!O132 -> 0 | D133: =Draw!P132 -> 0
B134: =Draw!N133 ->  | C134: =Draw!O133 -> 0 | D134: =Draw!P133 -> 0
B135: =Draw!N134 ->  | C135: =Draw!O134 -> 0 | D135: =Draw!P134 -> 0
B136: =Draw!N135 ->  | C136: =Draw!O135 -> 0 | D136: =Draw!P135 -> 0
B137: =Draw!N136 ->  | C137: =Draw!O136 -> 0 | D137: =Draw!P136 -> 0
B138: =Draw!N137 ->  | C138: =Draw!O137 -> 0 | D138: =Draw!P137 -> 0
B139: =Draw!N138 ->  | C139: =Draw!O138 -> 0 | D139: =Draw!P138 -> 0
B140: =Draw!N139 ->  | C140: =Draw!O139 -> 0 | D140: =Draw!P139 -> 0
B141: =Draw!N140 ->  | C141: =Draw!O140 -> 0 | D141: =Draw!P140 -> 0
B142: =Draw!N141 ->  | C142: =Draw!O141 -> 0 | D142: =Draw!P141 -> 0
B143: =Draw!N142 ->  | C143: =Draw!O142 -> 0 | D143: =Draw!P142 -> 0
B144: =Draw!N143 ->  | C144: =Draw!O143 -> 0 | D144: =Draw!P143 -> 0
B145: =Draw!N144 ->  | C145: =Draw!O144 -> 0 | D145: =Draw!P144 -> 0
B146: =Draw!N145 ->  | C146: =Draw!O145 -> 0 | D146: =Draw!P145 -> 0
B147: =Draw!N146 ->  | C147: =Draw!O146 -> 0 | D147: =Draw!P146 -> 0
B148: =Draw!N147 ->  | C148: =Draw!O147 -> 0 | D148: =Draw!P147 -> 0
B149: =Draw!N148 ->  | C149: =Draw!O148 -> 0 | D149: =Draw!P148 -> 0
B150: =Draw!N149 ->  | C150: =Draw!O149 -> 0 | D150: =Draw!P149 -> 0
B151: =Draw!N150 ->  | C151: =Draw!O150 -> 0 | D151: =Draw!P150 -> 0

Sheet Meet Results
D2: Stillwater | E2: =SUMIF($F5:$H150,D2,$H5:$H150) -> 26 | F2: Osseo-Maple Grove | G2: =SUMIF($F5:$H150,F2,$H5:$H150) -> 3
D3: Total Score
D4: # | E4: Swimmer | F4: School | G4: Total | H4: SCORE | I4: PLACE
D5: 6 | E5: Morgan Tope-Yates | F5: Stillwater | G5: 23.62966667 | H5: =IF(ISNA(VLOOKUP(I5,Totals!$AX$3:$AY$102,2,FALSE)),"",VLOOKUP(I5,Totals!$AX$3:$AY$102,2,FALSE)) -> 8 | I5: =IF(ISNA(RANK(G5,G$5:G$150)),"",RANK(G5,G$5:G$150)) -> 1
D6: 24 | E6: Rubie Ballantyne | F6: Stillwater | G6: 23.59066667 | H6: =IF(ISNA(VLOOKUP(I6,Totals!$AX$3:$AY$102,2,FALSE)),"",VLOOKUP(I6,Totals!$AX$3:$AY$102,2,FALSE)) -> 6 | I6: =IF(G6=G5,I5,IF(ISNA(RANK(G6,G$5:G$150)),"",RANK(G6,G$5:G$150))) -> 2
D7: 12 | E7: Hannah Dettmann | F7: Stillwater | G7: 23.1465 | H7: =IF(ISNA(VLOOKUP(I7,Totals!$AX$3:$AY$102,2,FALSE)),"",VLOOKUP(I7,Totals!$AX$3:$AY$102,2,FALSE)) -> 5 | I7: =IF(G7=G6,I6,IF(ISNA(RANK(G7,G$5:G$150)),"",RANK(G7,G$5:G$150))) -> 3
D8: 11 | E8: Carolyn Wrightsman | F8: Stillwater | G8: 23.07716667 | H8: =IF(ISNA(VLOOKUP(I8,Totals!$AX$3:$AY$102,2,FALSE)),"",VLOOKUP(I8,Totals!$AX$3:$AY$102,2,FALSE)) -> 4 | I8: 4
D9: 9 | E9: Zoe Waldron | F9: Osseo-Maple Grove | G9: 22.95583333 | H9: =IF(ISNA(VLOOKUP(I9,Totals!$AX$3:$AY$102,2,FALSE)),"",VLOOKUP(I9,Totals!$AX$3:$AY$102,2,FALSE)) -> 3 | I9: 5
D10: 19 | E10: Emma Sneden | F10: Stillwater | G10: 22.95366667 | H10: =IF(ISNA(VLOOKUP(I10,Totals!$AX$3:$AY$102,2,FALSE)),"",VLOOKUP(I10,Totals!$AX$3:$AY$102,2,FALSE)) -> 2 | I10: 6
D11: 13 | E11: Grace Sneden | F11: Stillwater | G11: 22.3145 | H11: =IF(ISNA(VLOOKUP(I11,Totals!$AX$3:$AY$102,2,FALSE)),"",VLOOKUP(I11,Totals!$AX$3:$AY$102,2,FALSE)) -> 1 | I11: 7
D12: 18 | E12: Rachel Duerr | F12: Stillwater | G12: 22.29066667 | H12: =IF(ISNA(VLOOKUP(I12,Totals!$AX$3:$AY$102,2,FALSE)),"",VLOOKUP(I12,Totals!$AX$3:$AY$102,2,FALSE)) -> 0 | I12: 8
D13: 10 | E13: Ellery Mason | F13: Osseo-Maple Grove | G13: 22.05666667 | H13: =IF(ISNA(VLOOKUP(I13,Totals!$AX$3:$AY$102,2,FALSE)),"",VLOOKUP(I13,Totals!$AX$3:$AY$102,2,FALSE)) -> 0 | I13: 9
D14: 5 | E14: Hayley Heiss | F14: Osseo-Maple Grove | G14: 21.82483333 | H14: =IF(ISNA(VLOOKUP(I14,Totals!$AX$3:$AY$102,2,FALSE)),"",VLOOKUP(I14,Totals!$AX$3:$AY$102,2,FALSE)) -> 0 | I14: 10
D15: 22 | E15: Mira Torzewski | F15: Stillwater | G15: 21.567 | H15: =IF(ISNA(VLOOKUP(I15,Totals!$AX$3:$AY$102,2,FALSE)),"",VLOOKUP(I15,Totals!$AX$3:$AY$102,2,FALSE)) -> 0 | I15: 11
D16: 15 | E16: Andrea Finholt | F16: Stillwater | G16: 21.5085 | H16: =IF(ISNA(VLOOKUP(I16,Totals!$AX$3:$AY$102,2,FALSE)),"",VLOOKUP(I16,Totals!$AX$3:$AY$102,2,FALSE)) -> 0 | I16: 12
D17: 4 | E17: Bree Sheridan | F17: Stillwater | G17: 21.385 | H17: =IF(ISNA(VLOOKUP(I17,Totals!$AX$3:$AY$102,2,FALSE)),"",VLOOKUP(I17,Totals!$AX$3:$AY$102,2,FALSE)) -> 0 | I17: 13
D18: 7 | E18: Margo Prentice | F18: Osseo-Maple Grove | G18: 21.34816667 | H18: =IF(ISNA(VLOOKUP(I18,Totals!$AX$3:$AY$102,2,FALSE)),"",VLOOKUP(I18,Totals!$AX$3:$AY$102,2,FALSE)) -> 0 | I18: 14
D19: 17 | E19: Angelina Langford | F19: Stillwater | G19: 21.294 | H19: =IF(ISNA(VLOOKUP(I19,Totals!$AX$3:$AY$102,2,FALSE)),"",VLOOKUP(I19,Totals!$AX$3:$AY$102,2,FALSE)) -> 0 | I19: 15
D20: 20 | E20: Laurel Bremer | F20: Stillwater | G20: 20.95383333 | H20: =IF(ISNA(VLOOKUP(I20,Totals!$AX$3:$AY$102,2,FALSE)),"",VLOOKUP(I20,Totals!$AX$3:$AY$102,2,FALSE)) -> 0 | I20: 16
D21: 26 | E21: Allison Hannan | F21: Osseo-Maple Grove | G21: 20.88883333 | H21: =IF(ISNA(VLOOKUP(I21,Totals!$AX$3:$AY$102,2,FALSE)),"",VLOOKUP(I21,Totals!$AX$3:$AY$102,2,FALSE)) -> 0 | I21: 17
D22: 21 | E22: Katherine Hildebrandt | F22: Osseo-Maple Grove | G22: 20.73933333 | H22: =IF(ISNA(VLOOKUP(I22,Totals!$AX$3:$AY$102,2,FALSE)),"",VLOOKUP(I22,Totals!$AX$3:$AY$102,2,FALSE)) -> 0 | I22: 18
D23: 16 | E23: Rachel Knox | F23: Osseo-Maple Grove | G23: 20.657 | H23: =IF(ISNA(VLOOKUP(I23,Totals!$AX$3:$AY$102,2,FALSE)),"",VLOOKUP(I23,Totals!$AX$3:$AY$102,2,FALSE)) -> 0 | I23: 19
D24: 8 | E24: Emily Shanley | F24: Stillwater | G24: 20.45766667 | H24: =IF(ISNA(VLOOKUP(I24,Totals!$AX$3:$AY$102,2,FALSE)),"",VLOOKUP(I24,Totals!$AX$3:$AY$102,2,FALSE)) -> 0 | I24: 20
D25: 2 | E25: Kya Hodgdon | F25: Stillwater | G25: 20.23016667 | H25: =IF(ISNA(VLOOKUP(I25,Totals!$AX$3:$AY$102,2,FALSE)),"",VLOOKUP(I25,Totals!$AX$3:$AY$102,2,FALSE)) -> 0 | I25: 21
D26: 1 | E26: Emily Honnold | F26: Osseo-Maple Grove | G26: 19.59966667 | H26: =IF(ISNA(VLOOKUP(I26,Totals!$AX$3:$AY$102,2,FALSE)),"",VLOOKUP(I26,Totals!$AX$3:$AY$102,2,FALSE)) -> 0 | I26: 22
D27: 14 | E27: Sophie Browning | F27: Stillwater | G27: 19.47183333 | H27: =IF(ISNA(VLOOKUP(I27,Totals!$AX$3:$AY$102,2,FALSE)),"",VLOOKUP(I27,Totals!$AX$3:$AY$102,2,FALSE)) -> 0 | I27: 23
D28: 3 | E28: Khuluc Yang | F28: Stillwater | G28: 18.135 | H28: =IF(ISNA(VLOOKUP(I28,Totals!$AX$3:$AY$102,2,FALSE)),"",VLOOKUP(I28,Totals!$AX$3:$AY$102,2,FALSE)) -> 0 | I28: 24
D29: 23 | E29: Anneke DeLooze | F29: Osseo-Maple Grove | G29: 18.11116667 | H29: =IF(ISNA(VLOOKUP(I29,Totals!$AX$3:$AY$102,2,FALSE)),"",VLOOKUP(I29,Totals!$AX$3:$AY$102,2,FALSE)) -> 0 | I29: 25
D30: 25 | E30: Madison Peters | F30: Osseo-Maple Grove | G30: 15.2945 | H30: =IF(ISNA(VLOOKUP(I30,Totals!$AX$3:$AY$102,2,FALSE)),"",VLOOKUP(I30,Totals!$AX$3:$AY$102,2,FALSE)) -> 0 | I30: 26
H31: =IF(ISNA(VLOOKUP(I31,Totals!$AX$3:$AY$102,2,FALSE)),"",VLOOKUP(I31,Totals!$AX$3:$AY$102,2,FALSE)) -> 
H32: =IF(ISNA(VLOOKUP(I32,Totals!$AX$3:$AY$102,2,FALSE)),"",VLOOKUP(I32,Totals!$AX$3:$AY$102,2,FALSE)) -> 
H33: =IF(ISNA(VLOOKUP(I33,Totals!$AX$3:$AY$102,2,FALSE)),"",VLOOKUP(I33,Totals!$AX$3:$AY$102,2,FALSE)) -> 
H34: =IF(ISNA(VLOOKUP(I34,Totals!$AX$3:$AY$102,2,FALSE)),"",VLOOKUP(I34,Totals!$AX$3:$AY$102,2,FALSE)) -> 
H35: =IF(ISNA(VLOOKUP(I35,Totals!$AX$3:$AY$102,2,FALSE)),"",VLOOKUP(I35,Totals!$AX$3:$AY$102,2,FALSE)) -> 
H36: =IF(ISNA(VLOOKUP(I36,Totals!$AX$3:$AY$102,2,FALSE)),"",VLOOKUP(I36,Totals!$AX$3:$AY$102,2,FALSE)) -> 
H37: =IF(ISNA(VLOOKUP(I37,Totals!$AX$3:$AY$102,2,FALSE)),"",VLOOKUP(I37,Totals!$AX$3:$AY$102,2,FALSE)) -> 
H38: =IF(ISNA(VLOOKUP(I38,Totals!$AX$3:$AY$102,2,FALSE)),"",VLOOKUP(I38,Totals!$AX$3:$AY$102,2,FALSE)) ->  | I38: =IF(G38=G37,I37,IF(ISNA(RANK(G38,G$5:G$150)),"",RANK(G38,G$5:G$150))) -> 
H39: =IF(ISNA(VLOOKUP(I39,Totals!$AX$3:$AY$102,2,FALSE)),"",VLOOKUP(I39,Totals!$AX$3:$AY$102,2,FALSE)) -> 
H40: =IF(ISNA(VLOOKUP(I40,Totals!$AX$3:$AY$102,2,FALSE)),"",VLOOKUP(I40,Totals!$AX$3:$AY$102,2,FALSE)) -> 
H41: =IF(ISNA(VLOOKUP(I41,Totals!$AX$3:$AY$102,2,FALSE)),"",VLOOKUP(I41,Totals!$AX$3:$AY$102,2,FALSE)) -> 
H42: =IF(ISNA(VLOOKUP(I42,Totals!$AX$3:$AY$102,2,FALSE)),"",VLOOKUP(I42,Totals!$AX$3:$AY$102,2,FALSE)) -> 
H43: =IF(ISNA(VLOOKUP(I43,Totals!$AX$3:$AY$102,2,FALSE)),"",VLOOKUP(I43,Totals!$AX$3:$AY$102,2,FALSE)) -> 
H44: =IF(ISNA(VLOOKUP(I44,Totals!$AX$3:$AY$102,2,FALSE)),"",VLOOKUP(I44,Totals!$AX$3:$AY$102,2,FALSE)) -> 
H45: =IF(ISNA(VLOOKUP(I45,Totals!$AX$3:$AY$102,2,FALSE)),"",VLOOKUP(I45,Totals!$AX$3:$AY$102,2,FALSE)) -> 
H46: =IF(ISNA(VLOOKUP(I46,Totals!$AX$3:$AY$102,2,FALSE)),"",VLOOKUP(I46,Totals!$AX$3:$AY$102,2,FALSE)) -> 
H47: =IF(ISNA(VLOOKUP(I47,Totals!$AX$3:$AY$102,2,FALSE)),"",VLOOKUP(I47,Totals!$AX$3:$AY$102,2,FALSE)) -> 
H48: =IF(ISNA(VLOOKUP(I48,Totals!$AX$3:$AY$102,2,FALSE)),"",VLOOKUP(I48,Totals!$AX$3:$AY$102,2,FALSE)) -> 
H49: =IF(ISNA(VLOOKUP(I49,Totals!$AX$3:$AY$102,2,FALSE)),"",VLOOKUP(I49,Totals!$AX$3:$AY$102,2,FALSE)) -> 
H50: =IF(ISNA(VLOOKUP(I50,Totals!$AX$3:$AY$102,2,FALSE)),"",VLOOKUP(I50,Totals!$AX$3:$AY$102,2,FALSE)) -> 
H51: =IF(ISNA(VLOOKUP(I51,Totals!$AX$3:$AY$102,2,FALSE)),"",VLOOKUP(I51,Totals!$AX$3:$AY$102,2,FALSE)) -> 
H52: =IF(ISNA(VLOOKUP(I52,Totals!$AX$3:$AY$102,2,FALSE)),"",VLOOKUP(I52,Totals!$AX$3:$AY$102,2,FALSE)) -> 
H53: =IF(ISNA(VLOOKUP(I53,Totals!$AX$3:$AY$102,2,FALSE)),"",VLOOKUP(I53,Totals!$AX$3:$AY$102,2,FALSE)) -> 
H54: =IF(ISNA(VLOOKUP(I54,Totals!$AX$3:$AY$102,2,FALSE)),"",VLOOKUP(I54,Totals!$AX$3:$AY$102,2,FALSE)) -> 
H55: =IF(ISNA(VLOOKUP(I55,Totals!$AX$3:$AY$102,2,FALSE)),"",VLOOKUP(I55,Totals!$AX$3:$AY$102,2,FALSE)) -> 
H56: =IF(ISNA(VLOOKUP(I56,Totals!$AX$3:$AY$102,2,FALSE)),"",VLOOKUP(I56,Totals!$AX$3:$AY$102,2,FALSE)) -> 
H57: =IF(ISNA(VLOOKUP(I57,Totals!$AX$3:$AY$102,2,FALSE)),"",VLOOKUP(I57,Totals!$AX$3:$AY$102,2,FALSE)) -> 
H58: =IF(ISNA(VLOOKUP(I58,Totals!$AX$3:$AY$102,2,FALSE)),"",VLOOKUP(I58,Totals!$AX$3:$AY$102,2,FALSE)) -> 
H59: =IF(ISNA(VLOOKUP(I59,Totals!$AX$3:$AY$102,2,FALSE)),"",VLOOKUP(I59,Totals!$AX$3:$AY$102,2,FALSE)) -> 
H60: =IF(ISNA(VLOOKUP(I60,Totals!$AX$3:$AY$102,2,FALSE)),"",VLOOKUP(I60,Totals!$AX$3:$AY$102,2,FALSE)) -> 
H61: =IF(ISNA(VLOOKUP(I61,Totals!$AX$3:$AY$102,2,FALSE)),"",VLOOKUP(I61,Totals!$AX$3:$AY$102,2,FALSE)) -> 
H62: =IF(ISNA(VLOOKUP(I62,Totals!$AX$3:$AY$102,2,FALSE)),"",VLOOKUP(I62,Totals!$AX$3:$AY$102,2,FALSE)) -> 
H63: =IF(ISNA(VLOOKUP(I63,Totals!$AX$3:$AY$102,2,FALSE)),"",VLOOKUP(I63,Totals!$AX$3:$AY$102,2,FALSE)) -> 
H64: =IF(ISNA(VLOOKUP(I64,Totals!$AX$3:$AY$102,2,FALSE)),"",VLOOKUP(I64,Totals!$AX$3:$AY$102,2,FALSE)) -> 
H65: =IF(ISNA(VLOOKUP(I65,Totals!$AX$3:$AY$102,2,FALSE)),"",VLOOKUP(I65,Totals!$AX$3:$AY$102,2,FALSE)) -> 
H66: =IF(ISNA(VLOOKUP(I66,Totals!$AX$3:$AY$102,2,FALSE)),"",VLOOKUP(I66,Totals!$AX$3:$AY$102,2,FALSE)) -> 
H67: =IF(ISNA(VLOOKUP(I67,Totals!$AX$3:$AY$102,2,FALSE)),"",VLOOKUP(I67,Totals!$AX$3:$AY$102,2,FALSE)) -> 
H68: =IF(ISNA(VLOOKUP(I68,Totals!$AX$3:$AY$102,2,FALSE)),"",VLOOKUP(I68,Totals!$AX$3:$AY$102,2,FALSE)) -> 
H69: =IF(ISNA(VLOOKUP(I69,Totals!$AX$3:$AY$102,2,FALSE)),"",VLOOKUP(I69,Totals!$AX$3:$AY$102,2,FALSE)) -> 
H70: =IF(ISNA(VLOOKUP(I70,Totals!$AX$3:$AY$102,2,FALSE)),"",VLOOKUP(I70,Totals!$AX$3:$AY$102,2,FALSE)) -> 
H71: =IF(ISNA(VLOOKUP(I71,Totals!$AX$3:$AY$102,2,FALSE)),"",VLOOKUP(I71,Totals!$AX$3:$AY$102,2,FALSE)) ->  | I71: =IF(G71=G70,I70,IF(ISNA(RANK(G71,G$5:G$150)),"",RANK(G71,G$5:G$150))) -> 
H72: =IF(ISNA(VLOOKUP(I72,Totals!$AX$3:$AY$102,2,FALSE)),"",VLOOKUP(I72,Totals!$AX$3:$AY$102,2,FALSE)) -> 
H73: =IF(ISNA(VLOOKUP(I73,Totals!$AX$3:$AY$102,2,FALSE)),"",VLOOKUP(I73,Totals!$AX$3:$AY$102,2,FALSE)) -> 
H74: =IF(ISNA(VLOOKUP(I74,Totals!$AX$3:$AY$102,2,FALSE)),"",VLOOKUP(I74,Totals!$AX$3:$AY$102,2,FALSE)) -> 
H75: =IF(ISNA(VLOOKUP(I75,Totals!$AX$3:$AY$102,2,FALSE)),"",VLOOKUP(I75,Totals!$AX$3:$AY$102,2,FALSE)) -> 
H76: =IF(ISNA(VLOOKUP(I76,Totals!$AX$3:$AY$102,2,FALSE)),"",VLOOKUP(I76,Totals!$AX$3:$AY$102,2,FALSE)) -> 
H77: =IF(ISNA(VLOOKUP(I77,Totals!$AX$3:$AY$102,2,FALSE)),"",VLOOKUP(I77,Totals!$AX$3:$AY$102,2,FALSE)) -> 
H78: =IF(ISNA(VLOOKUP(I78,Totals!$AX$3:$AY$102,2,FALSE)),"",VLOOKUP(I78,Totals!$AX$3:$AY$102,2,FALSE)) -> 
H79: =IF(ISNA(VLOOKUP(I79,Totals!$AX$3:$AY$102,2,FALSE)),"",VLOOKUP(I79,Totals!$AX$3:$AY$102,2,FALSE)) -> 
H80: =IF(ISNA(VLOOKUP(I80,Totals!$AX$3:$AY$102,2,FALSE)),"",VLOOKUP(I80,Totals!$AX$3:$AY$102,2,FALSE)) -> 
H81: =IF(ISNA(VLOOKUP(I81,Totals!$AX$3:$AY$102,2,FALSE)),"",VLOOKUP(I81,Totals!$AX$3:$AY$102,2,FALSE)) -> 
H82: =IF(ISNA(VLOOKUP(I82,Totals!$AX$3:$AY$102,2,FALSE)),"",VLOOKUP(I82,Totals!$AX$3:$AY$102,2,FALSE)) -> 
H83: =IF(ISNA(VLOOKUP(I83,Totals!$AX$3:$AY$102,2,FALSE)),"",VLOOKUP(I83,Totals!$AX$3:$AY$102,2,FALSE)) -> 
H84: =IF(ISNA(VLOOKUP(I84,Totals!$AX$3:$AY$102,2,FALSE)),"",VLOOKUP(I84,Totals!$AX$3:$AY$102,2,FALSE)) -> 
H85: =IF(ISNA(VLOOKUP(I85,Totals!$AX$3:$AY$102,2,FALSE)),"",VLOOKUP(I85,Totals!$AX$3:$AY$102,2,FALSE)) -> 
H86: =IF(ISNA(VLOOKUP(I86,Totals!$AX$3:$AY$102,2,FALSE)),"",VLOOKUP(I86,Totals!$AX$3:$AY$102,2,FALSE)) -> 
H87: =IF(ISNA(VLOOKUP(I87,Totals!$AX$3:$AY$102,2,FALSE)),"",VLOOKUP(I87,Totals!$AX$3:$AY$102,2,FALSE)) -> 
H88: =IF(ISNA(VLOOKUP(I88,Totals!$AX$3:$AY$102,2,FALSE)),"",VLOOKUP(I88,Totals!$AX$3:$AY$102,2,FALSE)) -> 
H89: =IF(ISNA(VLOOKUP(I89,Totals!$AX$3:$AY$102,2,FALSE)),"",VLOOKUP(I89,Totals!$AX$3:$AY$102,2,FALSE)) -> 
H90: =IF(ISNA(VLOOKUP(I90,Totals!$AX$3:$AY$102,2,FALSE)),"",VLOOKUP(I90,Totals!$AX$3:$AY$102,2,FALSE)) -> 
H91: =IF(ISNA(VLOOKUP(I91,Totals!$AX$3:$AY$102,2,FALSE)),"",VLOOKUP(I91,Totals!$AX$3:$AY$102,2,FALSE)) -> 
H92: =IF(ISNA(VLOOKUP(I92,Totals!$AX$3:$AY$102,2,FALSE)),"",VLOOKUP(I92,Totals!$AX$3:$AY$102,2,FALSE)) -> 
H93: =IF(ISNA(VLOOKUP(I93,Totals!$AX$3:$AY$102,2,FALSE)),"",VLOOKUP(I93,Totals!$AX$3:$AY$102,2,FALSE)) -> 
H94: =IF(ISNA(VLOOKUP(I94,Totals!$AX$3:$AY$102,2,FALSE)),"",VLOOKUP(I94,Totals!$AX$3:$AY$102,2,FALSE)) -> 
H95: =IF(ISNA(VLOOKUP(I95,Totals!$AX$3:$AY$102,2,FALSE)),"",VLOOKUP(I95,Totals!$AX$3:$AY$102,2,FALSE)) -> 
H96: =IF(ISNA(VLOOKUP(I96,Totals!$AX$3:$AY$102,2,FALSE)),"",VLOOKUP(I96,Totals!$AX$3:$AY$102,2,FALSE)) -> 
H97: =IF(ISNA(VLOOKUP(I97,Totals!$AX$3:$AY$102,2,FALSE)),"",VLOOKUP(I97,Totals!$AX$3:$AY$102,2,FALSE)) -> 
H98: =IF(ISNA(VLOOKUP(I98,Totals!$AX$3:$AY$102,2,FALSE)),"",VLOOKUP(I98,Totals!$AX$3:$AY$102,2,FALSE)) -> 
H99: =IF(ISNA(VLOOKUP(I99,Totals!$AX$3:$AY$102,2,FALSE)),"",VLOOKUP(I99,Totals!$AX$3:$AY$102,2,FALSE)) -> 
H100: =IF(ISNA(VLOOKUP(I100,Totals!$AX$3:$AY$102,2,FALSE)),"",VLOOKUP(I100,Totals!$AX$3:$AY$102,2,FALSE)) -> 
H101: =IF(ISNA(VLOOKUP(I101,Totals!$AX$3:$AY$102,2,FALSE)),"",VLOOKUP(I101,Totals!$AX$3:$AY$102,2,FALSE)) -> 
H102: =IF(ISNA(VLOOKUP(I102,Totals!$AX$3:$AY$102,2,FALSE)),"",VLOOKUP(I102,Totals!$AX$3:$AY$102,2,FALSE)) -> 
H103: =IF(ISNA(VLOOKUP(I103,Totals!$AX$3:$AY$102,2,FALSE)),"",VLOOKUP(I103,Totals!$AX$3:$AY$102,2,FALSE)) -> 
H104: =IF(ISNA(VLOOKUP(I104,Totals!$AX$3:$AY$102,2,FALSE)),"",VLOOKUP(I104,Totals!$AX$3:$AY$102,2,FALSE)) -> 
H105: =IF(ISNA(VLOOKUP(I105,Totals!$AX$3:$AY$102,2,FALSE)),"",VLOOKUP(I105,Totals!$AX$3:$AY$102,2,FALSE)) -> 
H106: =IF(ISNA(VLOOKUP(I106,Totals!$AX$3:$AY$102,2,FALSE)),"",VLOOKUP(I106,Totals!$AX$3:$AY$102,2,FALSE)) -> 
H107: =IF(ISNA(VLOOKUP(I107,Totals!$AX$3:$AY$102,2,FALSE)),"",VLOOKUP(I107,Totals!$AX$3:$AY$102,2,FALSE)) -> 
H108: =IF(ISNA(VLOOKUP(I108,Totals!$AX$3:$AY$102,2,FALSE)),"",VLOOKUP(I108,Totals!$AX$3:$AY$102,2,FALSE)) -> 
H109: =IF(ISNA(VLOOKUP(I109,Totals!$AX$3:$AY$102,2,FALSE)),"",VLOOKUP(I109,Totals!$AX$3:$AY$102,2,FALSE)) -> 
H110: =IF(ISNA(VLOOKUP(I110,Totals!$AX$3:$AY$102,2,FALSE)),"",VLOOKUP(I110,Totals!$AX$3:$AY$102,2,FALSE)) -> 
H111: =IF(ISNA(VLOOKUP(I111,Totals!$AX$3:$AY$102,2,FALSE)),"",VLOOKUP(I111,Totals!$AX$3:$AY$102,2,FALSE)) -> 
H112: =IF(ISNA(VLOOKUP(I112,Totals!$AX$3:$AY$102,2,FALSE)),"",VLOOKUP(I112,Totals!$AX$3:$AY$102,2,FALSE)) -> 
H113: =IF(ISNA(VLOOKUP(I113,Totals!$AX$3:$AY$102,2,FALSE)),"",VLOOKUP(I113,Totals!$AX$3:$AY$102,2,FALSE)) -> 
H114: =IF(ISNA(VLOOKUP(I114,Totals!$AX$3:$AY$102,2,FALSE)),"",VLOOKUP(I114,Totals!$AX$3:$AY$102,2,FALSE)) -> 
H115: =IF(ISNA(VLOOKUP(I115,Totals!$AX$3:$AY$102,2,FALSE)),"",VLOOKUP(I115,Totals!$AX$3:$AY$102,2,FALSE)) -> 
H116: =IF(ISNA(VLOOKUP(I116,Totals!$AX$3:$AY$102,2,FALSE)),"",VLOOKUP(I116,Totals!$AX$3:$AY$102,2,FALSE)) -> 
H117: =IF(ISNA(VLOOKUP(I117,Totals!$AX$3:$AY$102,2,FALSE)),"",VLOOKUP(I117,Totals!$AX$3:$AY$102,2,FALSE)) -> 
H118: =IF(ISNA(VLOOKUP(I118,Totals!$AX$3:$AY$102,2,FALSE)),"",VLOOKUP(I118,Totals!$AX$3:$AY$102,2,FALSE)) -> 
H119: =IF(ISNA(VLOOKUP(I119,Totals!$AX$3:$AY$102,2,FALSE)),"",VLOOKUP(I119,Totals!$AX$3:$AY$102,2,FALSE)) -> 
H120: =IF(ISNA(VLOOKUP(I120,Totals!$AX$3:$AY$102,2,FALSE)),"",VLOOKUP(I120,Totals!$AX$3:$AY$102,2,FALSE)) -> 
H121: =IF(ISNA(VLOOKUP(I121,Totals!$AX$3:$AY$102,2,FALSE)),"",VLOOKUP(I121,Totals!$AX$3:$AY$102,2,FALSE)) -> 
H122: =IF(ISNA(VLOOKUP(I122,Totals!$AX$3:$AY$102,2,FALSE)),"",VLOOKUP(I122,Totals!$AX$3:$AY$102,2,FALSE)) -> 
H123: =IF(ISNA(VLOOKUP(I123,Totals!$AX$3:$AY$102,2,FALSE)),"",VLOOKUP(I123,Totals!$AX$3:$AY$102,2,FALSE)) -> 
H124: =IF(ISNA(VLOOKUP(I124,Totals!$AX$3:$AY$102,2,FALSE)),"",VLOOKUP(I124,Totals!$AX$3:$AY$102,2,FALSE)) -> 
H125: =IF(ISNA(VLOOKUP(I125,Totals!$AX$3:$AY$102,2,FALSE)),"",VLOOKUP(I125,Totals!$AX$3:$AY$102,2,FALSE)) -> 
H126: =IF(ISNA(VLOOKUP(I126,Totals!$AX$3:$AY$102,2,FALSE)),"",VLOOKUP(I126,Totals!$AX$3:$AY$102,2,FALSE)) -> 
H127: =IF(ISNA(VLOOKUP(I127,Totals!$AX$3:$AY$102,2,FALSE)),"",VLOOKUP(I127,Totals!$AX$3:$AY$102,2,FALSE)) -> 
H128: =IF(ISNA(VLOOKUP(I128,Totals!$AX$3:$AY$102,2,FALSE)),"",VLOOKUP(I128,Totals!$AX$3:$AY$102,2,FALSE)) -> 
H129: =IF(ISNA(VLOOKUP(I129,Totals!$AX$3:$AY$102,2,FALSE)),"",VLOOKUP(I129,Totals!$AX$3:$AY$102,2,FALSE)) -> 
H130: =IF(ISNA(VLOOKUP(I130,Totals!$AX$3:$AY$102,2,FALSE)),"",VLOOKUP(I130,Totals!$AX$3:$AY$102,2,FALSE)) -> 
H131: =IF(ISNA(VLOOKUP(I131,Totals!$AX$3:$AY$102,2,FALSE)),"",VLOOKUP(I131,Totals!$AX$3:$AY$102,2,FALSE)) -> 
H132: =IF(ISNA(VLOOKUP(I132,Totals!$AX$3:$AY$102,2,FALSE)),"",VLOOKUP(I132,Totals!$AX$3:$AY$102,2,FALSE)) -> 
H133: =IF(ISNA(VLOOKUP(I133,Totals!$AX$3:$AY$102,2,FALSE)),"",VLOOKUP(I133,Totals!$AX$3:$AY$102,2,FALSE)) -> 
H134: =IF(ISNA(VLOOKUP(I134,Totals!$AX$3:$AY$102,2,FALSE)),"",VLOOKUP(I134,Totals!$AX$3:$AY$102,2,FALSE)) -> 
H135: =IF(ISNA(VLOOKUP(I135,Totals!$AX$3:$AY$102,2,FALSE)),"",VLOOKUP(I135,Totals!$AX$3:$AY$102,2,FALSE)) ->  | I135: =IF(G135=G134,I134,IF(ISNA(RANK(G135,G$5:G$150)),"",RANK(G135,G$5:G$150))) -> 
H136: =IF(ISNA(VLOOKUP(I136,Totals!$AX$3:$AY$102,2,FALSE)),"",VLOOKUP(I136,Totals!$AX$3:$AY$102,2,FALSE)) -> 
H137: =IF(ISNA(VLOOKUP(I137,Totals!$AX$3:$AY$102,2,FALSE)),"",VLOOKUP(I137,Totals!$AX$3:$AY$102,2,FALSE)) -> 
H138: =IF(ISNA(VLOOKUP(I138,Totals!$AX$3:$AY$102,2,FALSE)),"",VLOOKUP(I138,Totals!$AX$3:$AY$102,2,FALSE)) -> 
H139: =IF(ISNA(VLOOKUP(I139,Totals!$AX$3:$AY$102,2,FALSE)),"",VLOOKUP(I139,Totals!$AX$3:$AY$102,2,FALSE)) -> 
H140: =IF(ISNA(VLOOKUP(I140,Totals!$AX$3:$AY$102,2,FALSE)),"",VLOOKUP(I140,Totals!$AX$3:$AY$102,2,FALSE)) -> 
H141: =IF(ISNA(VLOOKUP(I141,Totals!$AX$3:$AY$102,2,FALSE)),"",VLOOKUP(I141,Totals!$AX$3:$AY$102,2,FALSE)) -> 
H142: =IF(ISNA(VLOOKUP(I142,Totals!$AX$3:$AY$102,2,FALSE)),"",VLOOKUP(I142,Totals!$AX$3:$AY$102,2,FALSE)) -> 
H143: =IF(ISNA(VLOOKUP(I143,Totals!$AX$3:$AY$102,2,FALSE)),"",VLOOKUP(I143,Totals!$AX$3:$AY$102,2,FALSE)) -> 
H144: =IF(ISNA(VLOOKUP(I144,Totals!$AX$3:$AY$102,2,FALSE)),"",VLOOKUP(I144,Totals!$AX$3:$AY$102,2,FALSE)) -> 
H145: =IF(ISNA(VLOOKUP(I145,Totals!$AX$3:$AY$102,2,FALSE)),"",VLOOKUP(I145,Totals!$AX$3:$AY$102,2,FALSE)) -> 
H146: =IF(ISNA(VLOOKUP(I146,Totals!$AX$3:$AY$102,2,FALSE)),"",VLOOKUP(I146,Totals!$AX$3:$AY$102,2,FALSE)) -> 
H147: =IF(ISNA(VLOOKUP(I147,Totals!$AX$3:$AY$102,2,FALSE)),"",VLOOKUP(I147,Totals!$AX$3:$AY$102,2,FALSE)) -> 
H148: =IF(ISNA(VLOOKUP(I148,Totals!$AX$3:$AY$102,2,FALSE)),"",VLOOKUP(I148,Totals!$AX$3:$AY$102,2,FALSE)) -> 
H149: =IF(ISNA(VLOOKUP(I149,Totals!$AX$3:$AY$102,2,FALSE)),"",VLOOKUP(I149,Totals!$AX$3:$AY$102,2,FALSE)) -> 
H150: =IF(ISNA(VLOOKUP(I150,Totals!$AX$3:$AY$102,2,FALSE)),"",VLOOKUP(I150,Totals!$AX$3:$AY$102,2,FALSE)) -> 
